Workbook

Sheet AER CF (hidden)
B1: AER CONDITIONAL FORMATTING
B4: CONDITIONAL FORMATTING MAP
F5: =INDEX(dms_CF_3.6.1, MATCH(dms_TradingName,dms_CF_TradingName))="Y" | G5: =INDEX(dms_CF_3.6.5, MATCH(dms_TradingName,dms_CF_TradingName))="Y" | H5: =INDEX(dms_CF_3.6.6, MATCH(dms_TradingName,dms_CF_TradingName))="Y" | I5: =INDEX(dms_CF_3.6.7.1, MATCH(dms_TradingName,dms_CF_TradingName))="Y" | J5: =INDEX(dms_CF_3.6.7.2, MATCH(dms_TradingName,dms_CF_TradingName))="Y" | K5: =INDEX(dms_CF_3.6.7.3, MATCH(dms_TradingName,dms_CF_TradingName))="Y" | L5: =INDEX(dms_CF_3.6.7.4, MATCH(dms_TradingName,dms_CF_TradingName))="Y" | M5: =INDEX(dms_CF_3.6.8, MATCH(dms_TradingName,dms_CF_TradingName))="Y" | N5: =INDEX(dms_CF_4.1, MATCH(dms_TradingName,dms_CF_TradingName))="Y" | O5: =INDEX(dms_CF_6.6.1, MATCH(dms_TradingName,dms_CF_TradingName))="Y" | P5: =INDEX(dms_CF_6.8, MATCH(dms_TradingName,dms_CF_TradingName))="Y" | Q5: =INDEX(dms_CF_7.12, MATCH(dms_TradingName,dms_CF_TradingName))="Y" | R5: =INDEX(dms_CF_8.1_A, MATCH(dms_TradingName,dms_CF_TradingName))="Y" | S5: =INDEX(dms_CF_8.1_B, MATCH(dms_TradingName,dms_CF_TradingName))="Y" | T5: =INDEX(dms_CF_8.1_Neg, MATCH(dms_TradingName,dms_CF_TradingName))="Y" | U5: =INDEX(dms_CF_4.4.1_Neg, MATCH(dms_TradingName,dms_CF_TradingName))="Y"
B6: dms_CF_TradingName | C6: JurisdictionList | D6: Sector | E6: Segment | F6: dms_CF_3.6.1 | G6: dms_CF_3.6.5 | H6: dms_CF_3.6.6 | I6: dms_CF_3.6.7.1 | J6: dms_CF_3.6.7.2 | K6: dms_CF_3.6.7.3 | L6: dms_CF_3.6.7.4 | M6: dms_CF_3.6.8 | N6: dms_CF_4.1 | O6: dms_CF_6.6.1 | P6: dms_CF_6.8 | Q6: dms_CF_7.12 | R6: dms_CF_8.1_A | S6: dms_CF_8.1_B | T6: dms_CF_8.1_Neg | U6: dms_CF_4.4.1 | V6: dms_CF_MAIFI_flag | W6: Spare1 | X6: Spare2
B7: ActewAGL Distribution | C7: ACT | D7: Electricity | E7: Distribution | G7: Y | I7: Y | J7: Y | K7: N | L7: Y | M7: N | N7: N | O7: N | P7: Y | Q7: Y | R7: N | S7: Y | T7: Y | U7: N | V7: N | W7: N | X7: N
B8: Ausgrid | C8: NSW | D8: Electricity | E8: Distribution | G8: Y | I8: N | J8: N | K8: N | L8: Y | M8: N | N8: N | O8: N | P8: Y | Q8: Y | R8: N | S8: Y | T8: Y | U8: N | V8: N | W8: N | X8: N
B9: AusNet (D) | C9: Vic | D9: Electricity | E9: Distribution | G9: N | I9: N | J9: N | K9: N | L9: N | M9: N | N9: Y | O9: N | P9: Y | Q9: N | R9: N | S9: N | T9: Y | U9: N | V9: N | W9: N | X9: N
B10: AusNet (T) | C10: Vic | D10: Electricity | E10: Transmission | G10: N | I10: N | J10: N | K10: N | L10: N | M10: N | N10: Y | O10: N | P10: Y | Q10: N | R10: N | S10: N | T10: Y | U10: N | V10: N | W10: N | X10: N
B11: CitiPower | C11: Vic | D11: Electricity | E11: Distribution | G11: N | I11: N | J11: N | K11: N | L11: N | M11: N | N11: Y | O11: N | P11: Y | Q11: N | R11: N | S11: N | T11: Y | U11: N | V11: N | W11: N | X11: N
B12: Directlink | C12: Qld | D12: Electricity | E12: Transmission | G12: N | I12: N | J12: N | K12: N | L12: N | M12: N | N12: Y | O12: N | P12: Y | Q12: N | R12: N | S12: Y | T12: Y | U12: N | V12: N | W12: N | X12: N
B13: ElectraNet | C13: SA | D13: Electricity | E13: Transmission | G13: N | I13: N | J13: N | K13: N | L13: N | M13: N | N13: Y | O13: N | P13: Y | Q13: N | R13: N | S13: Y | T13: Y | U13: N | V13: N | W13: N | X13: N
B14: Endeavour Energy | C14: NSW | D14: Electricity | E14: Distribution | G14: Y | I14: N | J14: N | K14: N | L14: Y | M14: N | N14: N | O14: N | P14: Y | Q14: Y | R14: N | S14: Y | T14: Y | U14: Y | V14: N | W14: N | X14: N
B15: Energex | C15: Qld | D15: Electricity | E15: Distribution | G15: Y | I15: N | J15: N | K15: N | L15: N | M15: N | N15: N | O15: N | P15: Y | Q15: Y | R15: N | S15: Y | T15: Y | U15: Y | V15: N | W15: N | X15: N
B16: Ergon Energy | C16: Qld | D16: Electricity | E16: Distribution | G16: Y | I16: N | J16: N | K16: N | L16: N | M16: N | N16: N | O16: N | P16: Y | Q16: Y | R16: N | S16: Y | T16: Y | U16: N | V16: N | W16: N | X16: N
B17: Essential Energy | C17: NSW | D17: Electricity | E17: Distribution | G17: Y | I17: N | J17: N | K17: N | L17: Y | M17: N | N17: N | O17: N | P17: Y | Q17: Y | R17: N | S17: Y | T17: Y | U17: N | V17: N | W17: N | X17: N
B18: Jemena Electricity | C18: Vic | D18: Electricity | E18: Distribution | G18: N | I18: N | J18: N | K18: N | L18: N | M18: N | N18: Y | O18: N | P18: Y | Q18: N | R18: N | S18: N | T18: Y | U18: N | V18: N | W18: N | X18: N
B19: Murraylink | C19: SA | D19: Electricity | E19: Transmission | G19: N | I19: N | J19: N | K19: N | L19: N | M19: N | N19: Y | O19: N | P19: Y | Q19: N | R19: N | S19: Y | T19: Y | U19: N | V19: N | W19: N | X19: N
B20: Power and Water | C20: NT | D20: Electricity | E20: Distribution | G20: N | I20: N | J20: Y | K20: N | L20: N | M20: Y | N20: Y | O20: Y | P20: Y | Q20: Y | R20: N | S20: Y | T20: Y | U20: N | V20: N | W20: N | X20: N
B21: Powercor Australia | C21: Vic | D21: Electricity | E21: Distribution | G21: N | I21: N | J21: N | K21: N | L21: N | M21: N | N21: Y | O21: N | P21: Y | Q21: N | R21: N | S21: N | T21: Y | U21: N | V21: N | W21: N | X21: N
B22: Powerlink | C22: Qld | D22: Electricity | E22: Transmission | G22: N | I22: N | J22: N | K22: N | L22: N | M22: N | N22: Y | O22: N | P22: Y | Q22: N | R22: N | S22: Y | T22: Y | U22: N | V22: N | W22: N | X22: N
B23: SA Power Networks | C23: SA | D23: Electricity | E23: Distribution | G23: Y | I23: N | J23: N | K23: N | L23: N | M23: N | N23: Y | O23: N | P23: Y | Q23: Y | R23: Y | S23: Y | T23: N | U23: N | V23: N | W23: N | X23: N
B24: TasNetworks (D) | C24: Tas | D24: Electricity | E24: Distribution | G24: Y | I24: N | J24: N | K24: N | L24: N | M24: N | N24: N | O24: N | P24: Y | Q24: Y | R24: N | S24: Y | T24: Y | U24: N | V24: N | W24: N | X24: N
B25: TasNetworks (T) | C25: Tas | D25: Electricity | E25: Transmission | G25: N | I25: N | J25: N | K25: N | L25: N | M25: N | N25: Y | O25: N | P25: Y | Q25: N | R25: N | S25: Y | T25: Y | U25: N | V25: N | W25: N | X25: N
B26: TransGrid | C26: NSW | D26: Electricity | E26: Transmission | G26: N | I26: N | J26: N | K26: N | L26: N | M26: N | N26: Y | O26: N | P26: Y | Q26: N | R26: N | S26: Y | T26: Y | U26: N | V26: N | W26: N | X26: N
B27: United Energy | C27: Vic | D27: Electricity | E27: Distribution | G27: N | I27: N | J27: N | K27: N | L27: N | M27: N | N27: Y | O27: N | P27: Y | Q27: N | R27: N | S27: N | T27: Y | U27: N | V27: N | W27: N | X27: N
B30: Confidential
B31: Amended
B33: Worksheet 6.2 STPIS reliability
B34: Formula | F34: Applied to:
B36: =INDEX(dms_CBD_flag,MATCH(dms_TradingName,dms_TradingName_List))="NO" | F36: $D$11,$D$17,$D$23,$D$33,$D$39,$D$45,$D$55,$D$61,$D$67,$D$77,$D$83,$D$89
B37: =INDEX(dms_Urban_flag,MATCH(dms_TradingName,dms_TradingName_List))="NO" | F37: $D$12,$D$18,$D$24,$D$56,$D$62,$D$78,$D$68,$D$84
B38: =INDEX(dms_ShortRural_flag,MATCH(dms_TradingName,dms_TradingName_List))="NO" | F38: $D$13,$D$19,$D$25,$D$57,$D$63,$D$69,$D$79,$D$85
B39: =INDEX(dms_LongRural_flag,MATCH(dms_TradingName,dms_TradingName_List))="NO" | F39: $D$14,$D$20,$D$26,$D$58,$D$64,$D$65,$D$70,$D$71,$D$80,$D$86
B40: =INDEX(dms_FeederType_5_flag,MATCH(dms_TradingName,dms_TradingName_List))="NO" | F40: $D$87,$D$81,$D$71,$D$65,$D$59,$D$49,$D$43,$D$37,$D$21,$D$15
B41: =dms_MAIFI_Flag="No" | F41: $D$55:$D$72
B44: Business & other details
B45: =(INDEX(dms_Model_Span,MATCH(dms_Model,dms_Model_List))>1)
B46: =(INDEX(dms_Model_Span,MATCH(dms_Model,dms_Model_List))=1)
B49: STYLES IN USE
C50: dms_1
C51: dms_2
C52: dms_3
C53: dms_4
C54: dms_5
C55: dms_NUM
C56: dms_NUM%
C57: dms_Row_Locked
C58: dms_Row1
C59: dms_Row2
C60: dms_T1
C61: dms_T2
C62: dms_BH
C63: dms_BY1
C64: dms_BY2
C65: dms_GH
C66: dms_GY1
C67: dms_GY2
C126: 0
C127: =IFERROR(IF(dms_Model="ARR",(MAX(0,dms_0608_LastRow-dms_0608_OffsetRows)),"not an ARR"),"0") -> 0

Sheet AER NRs (hidden)
B1: AER NAMED RANGES
B3: DROP DOWN SELECTORS USED IN WORKBOOKS
B5: COVER SHEET | C5: dms_DataQuality_List | D5: dms_Confid_status_List
C6: -- select -- | D6: -- select --
C7: Actual | D7: Public
C8: Estimate | D8: Confidential
C9: Consolidated
C12: For all files either AER or business needs to be able to specify the type of submission | D12: For PTRM & RFM templates we must provide a choice in case they change their form of control - otherwise it is drawn from the business specific lookup table above.
C13: dms_SourceList | D13: dms_FormControl_Choices
C14: -- select -- | D14: Revenue cap
C15: After appeal | D15: Revenue yield
C16: Draft decision | D16: Weighted average price cap
C17: Final decision
C18: PTRM update 1
C19: PTRM update 2
C20: PTRM update 3
C21: PTRM update 4
C22: PTRM update 5
C23: PTRM update 6
C24: PTRM update 7
C25: Regulatory proposal
C26: Reporting
C27: Revised regulatory proposal
K30: This is used to create an image to insert on 6.3 STPIS sheet - not for dropdown lists.
B31: CA & RESET RINS DNSP | C31: dms_DNSP_020301_SubstationType | D31: dms_DNSP_020301_ProjectType | E31: dms_DNSP_020301_ProjectTrigger | F31: dms_DNSP_020302_ProjectType | G31: dms_DNSP_020302_ProjectTrigger | H31: dms_STPIS_Exclusion_List | I31: dms_Reason_Interruption | J31: dms_Reason_Interruption_Detailed | K31: Reason for interruption | N31: dms_N0205_AssetType
C32: Subtransmission substation | D32: New substation establishment | E32: Demand growth | F32: New line on new route - single circuit | G32: Demand growth | H32: Weather | I32: Animal | J32: Animal impact | K32: Animal | L32: Animal impact | N32: Cast Iron
C33: Zone substation | D33: Substation upgrade - capacity | E33: Voltage issues | F33: New line on new route - dual circuit | G33: Voltage issues | H33: Equipment failure | I33: Asset failure | J33: Animal nesting/burrowing, etc and other | L33: Animal nesting/burrowing, etc and other | N33: PVC
C34: Switching station | D34: Substation upgrade - voltage | E34: Reactive power issue | F34: New line on new route - other | G34: Reactive power issue | H34: Operational error | I34: Other | J34: Other | L34: Other | N34: Polyamide
C35: Other | D35: Other | E35: Fault level issues | F35: Line rebuild over existing route - single circuit | G35: Fault level issues | H35: Vegetation | I35: Overloads | J35: LV | K35: Asset failure | L35: LV | N35: High density polyethylene (80)
E36: Safety | F36: Line rebuild over existing route - dual circuit | G36: Net market benefit | H36: Animals | I36: Planned | J36: Distribution substation | L36: Distribution substation | N36: High density polyethylene (100)
E37: Environment | F37: Reconductor - Single circuit | G37: Safety | H37: Third party impacts | I37: Network business | J37: HV | L37: HV | N37: High density polyethylene (250)
E38: Other | F38: Reconductor - Dual circuit | G38: Environment | H38: Transmission failure | I38: Third party | J38: Zone substation | L38: Zone substation | N38: High density polyethylene (575)
F39: Reconductor - Other | G39: Other | H39: Load shedding | I39: Unknown | J39: Subtransmission | L39: Subtransmission | N39: Medium density polyethylene
F40: Line upgrade - raising/retensoring | H40: Inter-distributor connection failure | I40: Vegetation | J40: insert description of 'other' | K40: Other | L40: insert description of 'other' | N40: Unprotected steel
F41: Line upgrade - voltage upgrade | H41: Other | I41: Weather | J41: Network error | K41: Overloads | N41: Protected steel
F42: Line upgrade - capacity | I42: 2 - STPIS Exclusion (3.3)(a) | J42: Switching and protection error | K42: Planned | N42: Other
F43: String spare circuit | I43: 3 - STPIS Exclusion (3.3)(a) | J43: Fire | K43: Network business | L43: Network error
F44: Other | I44: 4 - STPIS Exclusion (3.3)(a) | J44: Other | L44: Switching and protection error
I45: 5 - STPIS Exclusion (3.3)(a) | J45: Dig-in | K45: Third party | L45: Fire
I46: 6 - STPIS Exclusion (3.3)(a) | J46: Unauthorised access | L46: Other
I47: 7 - STPIS Exclusion (3.3)(a) | J47: Vehicle impact | L47: Dig-in
J48: Unknown | L48: Unauthorised access
J49: Blow-in/Fall-in - NSP responsibility | L49: Vehicle impact
J50: Grow-in - NSP responsibility | K50: Unknown | L50: Unknown
J51: Blow-in/Fall-in - Other responsible party | K51: Vegetation | L51: Blow-in/Fall-in - NSP responsibility
J52: Grow-in - Other responsible party | L52: Grow-in - NSP responsibility
L53: Blow-in/Fall-in - Other responsible party
L54: Grow-in - Other responsible party
K55: Weather
K56: 2 - STPIS Exclusion (3.3)(a)
K57: 3 - STPIS Exclusion (3.3)(a)
K58: 4 - STPIS Exclusion (3.3)(a)
K59: 5 - STPIS Exclusion (3.3)(a)
K60: 6 - STPIS Exclusion (3.3)(a)
K61: 7 - STPIS Exclusion (3.3)(a)
B64: CA & RESET RINS TNSP | C64: dms_TNSP_0203_SubstationType | D64: dms_TNSP_020301_ProjectType | E64: dms_TNSP_020301_ProjectTrigger | F64: dms_TNSP_020302_ProjectType | G64: dms_TNSP_0203_ProjectTrigger
C65: Terminal station | D65: New substation establishment | E65: Demand growth | F65: New line on new route - single circuit | G65: Demand growth
C66: Switching station | D66: Capacity upgrade | E66: Voltage issues | F66: New line on new route - dual circuit | G66: Voltage issues
C67: Transmission substation | D67: Voltage upgrade | E67: Reactive power issue | F67: New line on new route - other | G67: Reactive power issue
C68: Other | D68: Other | E68: Fault level issues | F68: Line rebuild over existing route - single circuit | G68: Fault level issues
E69: Net market benefit | F69: Line rebuild over existing route - dual circuit | G69: Net market benefit
E70: Safety | F70: Reconductor - Single circuit | G70: Safety
E71: Environment | F71: Reconductor - Dual circuit | G71: Environment
E72: Other | F72: Reconductor - Other | G72: Other
F73: Line upgrade - raising/retensoring
F74: Line upgrade - voltage upgrade
F75: Line upgrade - capacity
F76: String spare circuit
F77: Other
B81: NAMED RANGES USED IN ETL PROCESS
B83: CA & RESET RINS DNSP ONLY | C83: dms_020303_01_UOM | D83: dms_020501_01_UOM | E83: dms_020501_02_UOM | F83: dms_020501_03_UOM | G83: dms_020501_04_UOM | H83: dms_020701_01_UOM | I83: dms_020701_02_UOM | J83: dms_020701_01_Rows | K83: dms_040102_01_UOM | L83: dms_040102_04_UOM | M83: dms_E050201_UOM | N83: dms_E050302_UOM
C84: Circuit line length in km | D84: 0's | E84: 0's | F84: 0's | G84: 0's | H84: km | I84: km | J84: Route line length within zone | K84: 0's | L84: days | M84: per metre per connection | N84: metres per connection
C85: Circuit line length in km | D85: 0's | E85: 0's | F85: 0's | G85: 0's | H85: 0's | I85: 0's | J85: Number of maintenance spans | K85: 0's | L85: 0's | M85: per service per connection | N85: number per connection
C86: Circuit line length in km | D86: MVA added | E86: MVA added | F86: MVA added | G86: MVA added | H86: km | I86: km | J86: Total length of maintenance spans | K86: 0's | L86: $0s | M86: number per connection | N86: number per connection
C87: Circuit line length in km | D87: 0's | E87: 0's | F87: 0's | G87: 0's | H87: km | I87: km | J87: Length of vegetation corridors | K87: $0s | L87: 0's
C88: Number | D88: total spend $0s | E88: total spend $0s | F88: total spend $0s | G88: total spend $0s | H88: 0's | I88: 0's | J88: Average number of trees per maintenance span
C89: Number | D89: net circuit km added | E89: net circuit km added | F89: net circuit km added | G89: net circuit km added | H89: years | I89: years | J89: Average frequency of cutting cycle
C90: Number | D90: total spend $0s | E90: total spend $0s | F90: total spend $0s | G90: total spend $0s
D91: net circuit km added | E91: net circuit km added | F91: net circuit km added | G91: net circuit km added
D92: total spend $0s | E92: total spend $0s | F92: total spend $0s | G92: total spend $0s
D93: 0's | F93: $0s
D94: 0's
D95: 0's
D96: $0s
B99: CA & RESET RINS TNSP ONLY | C99: dms_020701_01_UOM
C100: km
C101: 0's
C102: km
C103: 0's
C104: km
C105: metres
C106: years
B109: CA & RESET RINS DNSP & TNSP | C109: dms_020603_01_UOM
C110: 0's
C111: 0's
C112: 0's
C113: 0's
C114: (per cent)
B117: EB & RESET RINS DNSP ONLY | C117: dms_030601_01_UOM | D117: dms_030601_02_UOM | E117: dms_030701_01_UOM | F117: dms_030702_01_UOM | G117: dms_030703_01_UOM
C118: minutes/customer | D118: minutes/customer | E118: Customer / km | F118: % | G118: km
C119: minutes/customer | D119: minutes/customer | E119: MWh/customer | F119: Number of spans
C120: interruptions/customer | D120: interruptions/customer | E120: kVA / customer | F120: Number of spans
C121: interruptions/customer | D121: interruptions/customer | F121: Number of spans
F122: Number of spans
F123: Years
F124: Years
F125: Trees
F126: Trees
F127: Defects
F128: Defects
F129: Spans
F130: km
F131: Spans
C133: WHEN INSERTING COVER SHEET INTO A TNSP FILE - APPLY THESE NAMED RANGES
B134: EB & RESET RINS TNSP ONLY | C134: dms_030601_01_UOM | E134: dms_030701_01_UOM | F134: dms_030702_01_UOM
C135: % | E135: Number of spans | F135: km
C136: number | E136: Years | F136: %
C137: number | E137: Trees | F137: km
C138: % | E138: Defects | F138: number
C139: number | E139: Number of spans
C140: number | E140: km
C141: % | E141: km
C142: number | E142: Number of spans
C143: number
C144: %
C145: number
C146: %
C147: number
C148: %
C149: number
B151: EB & RESET RINS DNSP & TNSP | C151: dms_EB_RAB_PIT
C152: Beginning of year
C153: End of year
C154: End of year
C155: End of year
C156: End of year
C157: End of year
B159: ARR DNSP ONLY | C159: dms_030605_UOM | D159: dms_03060703_UOM | E159: dms_E020202_UOM | F159: Spare
C160: number | D160: number | E160: Length of mains replaced
C161: number | D161: number | E161: Number of services replaced
C162: number | D162: number
C163: number | D163: number
C164: number | D164: (per cent)
C165: number
C166: number
C167: number
C168: number
C169: number
C170: number
C171: number
C172: (per cent)
C173: (per cent)
B175: RFM | C175: dms_Beg | D175: dms_Mid | E175: dms_End
C176: Beginning of year | D176: Mid year | E176: End of Year
B178: PTRM | C178: dms_PTRM_RAB_PIT | D178: dms_PTRM_TAB_PIT | E178: DMS_Xfactor
C179: Beginning of year | D179: Beginning of year | E179: x factors
C180: End of year | D180: End of year
C181: End of year | D181: End of year
C182: End of year | D182: End of year
C183: End of year
B186: STPIS & MIC NAMED RANGES
B188: These "row descriptions" are the column headings in the various templates but become row descriptions in the ETL process
B190: Table 6.3 sustained interruptions - row descriptions | C190: dms_060301_CustNo_Affected_Row | D190: dms_060301_Avg_Duration_Sustained_Int_Row | E190: dms_060301_Effect_unplanned_SAIDI_Row | F190: dms_060301_Effect_unplanned_SAIFI_Row
C191: Number of customers affected by the interruption | D191: Average duration of sustained customer interruption | E191: Effect on unplanned SAIDI | F191: Effect on unplanned SAIFI
B194: Table 6.1 telephone answering - row descriptions and start date | C194: dms_060101_Rows | D194: dms_060102_Rows | E194: dms_060101_StartDateTxt
C195: Total number of calls (after removing excluded events) | D195: Number of calls answered within 30 seconds (after excluding excluded events) | E195: =dms_060701_StartDateTxt -> 1-Jul-2014
B198: Table 6.8.1 - row descriptions | C198: dms_060801_01_Rows | D198: dms_060801_02_Rows | E198: dms_060801_03_Rows | F198: dms_060801_04_Rows
C199: Number of interruptions | D199: Duration of interruptions | E199: Total unplanned minutes off supply | F199: Effect on unplanned MAIFI
B202: Table 7.9.4 - market impact component - row descriptions | C202: dms_070904_01_Rows | D202: without exclusions | E202: with exclusions
B205: These headings (Lists) are determined from the INDEX/MATCH function on the NSP selected on the Business & other details sheet
B207: Table 6.7.1 - daily performance data - unplanned - MAIFI -- row descriptions and header named range values | C207: dms_060701_Feeder_Header_Lvl4 | D207: =INDEX(dms_FeederName_1,MATCH(dms_TradingName,dms_TradingName_List)) -> CBD | E207: =INDEX(dms_FeederName_1,MATCH(dms_TradingName,dms_TradingName_List)) -> CBD | F207: =INDEX(dms_FeederName_2,MATCH(dms_TradingName,dms_TradingName_List)) -> Urban | G207: =INDEX(dms_FeederName_2,MATCH(dms_TradingName,dms_TradingName_List)) -> Urban | H207: =INDEX(dms_FeederName_3,MATCH(dms_TradingName,dms_TradingName_List)) -> Short rural | I207: =INDEX(dms_FeederName_3,MATCH(dms_TradingName,dms_TradingName_List)) -> Short rural | J207: =INDEX(dms_FeederName_4,MATCH(dms_TradingName,dms_TradingName_List)) -> Long rural | K207: =INDEX(dms_FeederName_4,MATCH(dms_TradingName,dms_TradingName_List)) -> Long rural | L207: =IF((INDEX(dms_FeederName_5,MATCH(dms_TradingName,dms_TradingName_List))=0),"Network",(INDEX(dms_FeederName_5,MATCH(dms_TradingName,dms_TradingName_List)))) -> Network | M207: =IF((INDEX(dms_FeederName_5,MATCH(dms_TradingName,dms_TradingName_List))=0),"Network",(INDEX(dms_FeederName_5,MATCH(dms_TradingName,dms_TradingName_List)))) -> Network | N207: Network | O207: Network
C209: dms_060701_Rows | D209: All events | E209: After removing excluded events | F209: All events | G209: After removing excluded events | H209: All events | I209: After removing excluded events | J209: All events | K209: After removing excluded events | L209: All events | M209: After removing excluded events | N209: All events | O209: After removing excluded events
D210: the number of column headings changes from 10 to 12 depending on the number of feeder categories for the NSP
C212: dms_0603_FeederList | D212: =INDEX(dms_FeederName_1,MATCH(dms_TradingName,dms_TradingName_List)) -> CBD | E212: =INDEX(dms_FeederName_2,MATCH(dms_TradingName,dms_TradingName_List)) -> Urban | F212: =INDEX(dms_FeederName_3,MATCH(dms_TradingName,dms_TradingName_List)) -> Short rural | G212: =INDEX(dms_FeederName_4,MATCH(dms_TradingName,dms_TradingName_List)) -> Long rural
B215: Use these to add to specific worksheets in existing files | C215: Use these to add to specific worksheets in existing files
B218: ARRs 6.7 STPIS daily performance | C218: dms_060101_Values | D218: dms_060102_Values | E218: dms_060701_Values
C219: dms_LeapYear
B222: ARR's 6.8 STPIS exclusions | C222: dms_060801_Event_Date | D222: dms_060801_OutageID | E222: dms_060801_FeederID | F222: dms_060801_FeederClass | G222: dms_060801_CauseID | H222: dms_060801_01_Values | I222: dms_060801_02_Values | J222: dms_060801_03_Values | K222: dms_060801_Excl_Cat | L222: dms_060801_04_Values
C223: dms_060801_StartCell
B226: CA 6.3 sustained interruptions | C226: dms_060301_Event_Date | D226: dms_060301_Event_Time | E226: dms_060301_AssetID | F226: dms_060301_FeederClass | G226: dms_060301_Reason | H226: dms_060301_DetailedReason | I226: dms_060301_CustNo_Affected_Values | J226: dms_060301_Avg_Duration_Sustained_Int_Values | K226: dms_060301_Effect_unplanned_SAIDI_Values | L226: dms_060301_Effect_unplanned_SAIFI_Values | M226: dms_060301_MED

Sheet AER lookups (hidden)
B1: AER LOOKUP TABLES
B3: Data in these columns used for data validation and database purposes.
B4: Date last modified: | C4: 2017-01-16 | D4: added (Albury and Victora) for AGN
C5: 2016-10-17 | D5: updated TransGrid's correct legal name, corrected TasNetworks (T) to June financial year
C6: 2017-02-01 | D6: inserted Power and Water, added NRs (dms_FeederCat_1 and dms_FeederCat_2)
C7: 2017-03-03 | D7: inserted AEMO as a business
C8: 2018-03-28 | D8: major changes to accommodate STPIS
C9: Template Version | D9: 5
Z14: Feeder Types | AD14: TasNetworks (D) | AE14: MAIFI flag | AF14: Feeder Names
B16: dms_TradingName_List | C16: dms_TradingNameFull_List | D16: dms_ABN_List | E16: dms_JurisdictionList | F16: dms_Sector_List | G16: dms_Segment_List | H16: dms_FormControl_List | I16: dms_RPT_List | J16: dms_RPTMonth_List | K16: dms_CRCPlength_List | L16: dms_FRCPlength_List | M16: dms_PRCPlength_List | N16: dms_663_List | O16: dms_DeterminationRef_List | P16: dms_Addr1_List | Q16: dms_Addr2_List | R16: dms_Suburb_List | S16: dms_State_List | T16: dms_PostCode_List | U16: dms_PAddr1_List | V16: dms_PAddr2_List | W16: dms_PSuburb_List | X16: dms_PState_List | Y16: dms_PPostCode_List | Z16: dms_CBD_flag | AA16: dms_Urban_flag | AB16: dms_ShortRural_flag | AC16: dms_LongRural_flag | AD16: dms_FeederType_5_flag | AE16: dms_MAIFI_flag_List | AF16: dms_FeederName_1 | AG16: dms_FeederName_2 | AH16: dms_FeederName_3 | AI16: dms_FeederName_4 | AJ16: dms_FeederName_5 | AK16: dms_Public_Lighting_List | AL16: Name
B17: AGN (Albury and Victoria) | C17: Australian Gas Networks Limited (reporting data for Albury and Victoria) | D17: 19078551685 | E17: Vic | F17: Gas | G17: Distribution | H17: Weighted average price cap | I17: Calendar | J17: December | K17: 5 | L17: 5 | M17: 5 | N17: x | P17: Level 6 | Q17: 400 King William Street | R17: ADELAIDE | S17: SA | T17: 5000 | U17: PO Box 6468 | V17: Halifax Street | W17: ADELAIDE | X17: SA | Y17: 5000 | Z17: NO | AA17: NO | AB17: NO | AC17: NO | AD17: NO | AE17: - | AF17: CBD | AG17: Urban | AH17: Short rural | AI17: Long rural | AK17: NO | AL17: AGN (Albury)
B18: AGN (Albury) | C18: Australian Gas Networks Limited (reporting data for Albury) | D18: 19078551685 | E18: Vic | F18: Gas | G18: Distribution | H18: Weighted average price cap | I18: Calendar | J18: December | K18: 5 | L18: 5 | M18: 5 | N18: x | P18: Level 6 | Q18: 400 King William Street | R18: ADELAIDE | S18: SA | T18: 5000 | U18: PO Box 6468 | V18: Halifax Street | W18: ADELAIDE | X18: SA | Y18: 5000 | Z18: NO | AA18: NO | AB18: NO | AC18: NO | AD18: NO | AE18: - | AF18: CBD | AG18: Urban | AH18: Short rural | AI18: Long rural | AK18: NO
B19: AGN (SA) | C19: Australian Gas Networks Limited (reporting data for SA) | D19: 19078551685 | E19: SA | F19: Gas | G19: Distribution | H19: Weighted average price cap | I19: Financial | J19: June | K19: 5 | L19: 5 | M19: 5 | N19: 5 | O19: distribution determination | P19: Level 6 | Q19: 400 King William Street | R19: ADELAIDE | S19: SA | T19: 5000 | U19: PO Box 6468 | V19: Halifax Street | W19: ADELAIDE | X19: SA | Y19: 5000 | Z19: NO | AA19: NO | AB19: NO | AC19: NO | AD19: NO | AE19: - | AF19: CBD | AG19: Urban | AH19: Short rural | AI19: Long rural | AK19: NO | AL19: AGN (SA)
B20: AGN (Victoria) | C20: Australian Gas Networks Limited (reporting data for Victoria) | D20: 19078551685 | E20: Vic | F20: Gas | G20: Distribution | H20: Weighted average price cap | I20: Calendar | J20: December | K20: 5 | L20: 5 | M20: 5 | N20: x | P20: Level 6 | Q20: 400 King William Street | R20: ADELAIDE | S20: SA | T20: 5000 | U20: PO Box 6468 | V20: Halifax Street | W20: ADELAIDE | X20: SA | Y20: 5000 | Z20: NO | AA20: NO | AB20: NO | AC20: NO | AD20: NO | AE20: - | AF20: CBD | AG20: Urban | AH20: Short rural | AI20: Long rural | AK20: NO | AL20: AGN (Victoria)
B21: Amadeus | C21: APT Pipelines (NT) Pty Ltd | D21: 39009737393 | E21: NT | F21: Gas | G21: Transmission | H21: Weighted average price cap | I21: Financial | J21: June | K21: 5 | L21: 5 | M21: 5 | N21: x | O21: n/a | P21: Level 19, HSBC Building | Q21: 580 George Street | R21: SYDNEY | S21: NSW | T21: 2000 | U21: Level 19, HSBC Building | V21: 580 George Street | W21: SYDNEY | X21: NSW | Y21: 2000 | Z21: NO | AA21: NO | AB21: NO | AC21: NO | AD21: NO | AE21: - | AF21: CBD | AG21: Urban | AH21: Short rural | AI21: Long rural | AK21: NO | AL21: Amadeus
B22: APA GasNet | C22: APA GasNet Australia (Operations) Pty Ltd | D22: 065083009 | E22: Vic | F22: Gas | G22: Transmission | H22: Weighted average price cap | I22: Calendar | J22: December | K22: 5 | L22: 5 | M22: 5 | N22: x | P22: Level 19, HSBC Building | Q22: 580 George Street | R22: SYDNEY | S22: NSW | T22: 2000 | U22: PO Box R41 | W22: ROYAL EXCHANGE | X22: NSW | Y22: 1225 | Z22: NO | AA22: NO | AB22: NO | AC22: NO | AD22: NO | AE22: - | AF22: CBD | AG22: Urban | AH22: Short rural | AI22: Long rural | AK22: NO | AL22: APA GasNet
B23: AusNet (Gas) | C23: AusNet Gas Services | D23: 086015036 | E23: Vic | F23: Gas | G23: Distribution | H23: Weighted average price cap | I23: Calendar | J23: December | K23: 5 | L23: 5 | M23: 5 | N23: X | P23: Level 19, HSBC Building | Q23: 580 George Street | R23: SYDNEY | S23: NSW | T23: 2000 | U23: PO Box R41 | W23: ROYAL EXCHANGE | X23: NSW | Y23: 1225 | Z23: NO | AA23: NO | AB23: NO | AC23: NO | AD23: NO | AE23: - | AF23: CBD | AG23: Urban | AH23: Short rural | AI23: Long rural | AK23: NO | AL23: AusNet (Gas)
B24: Australian Distribution Co. (Gas) | C24: Australian Gas Distribution Co. | D24: 11222333444 | E24: NSW | F24: Gas | G24: Distribution | H24: Weighted average price cap | I24: Financial | J24: June | K24: 5 | L24: 5 | M24: 5 | P24: 123 Straight Street | R24: SYDNEY | S24: NSW | T24: 2000 | U24: PO Box 123 | W24: SYDNEY | X24: NSW | Y24: 2000 | Z24: NO | AA24: NO | AB24: NO | AC24: NO | AD24: NO | AE24: - | AF24: CBD | AG24: Urban | AH24: Short rural | AI24: Long rural | AK24: NO | AL24: Australian Distribution Co. (Vic)
B25: Central Ranges Pipeline (D) | C25: Central Ranges Pipeline Pty Ltd | D25: 108218355 | E25: NSW | F25: Gas | G25: Distribution | H25: Weighted average price cap | I25: Financial | J25: June | K25: 15 | L25: 5 | M25: 5 | N25: 5 | O25: distribution determination | P25: Level 19 | Q25: 580 George Street | R25: SYDNEY | S25: NSW | T25: 2000 | U25: PO Box R41 | W25: ROYAL EXCHANGE | X25: NSW | Y25: 1225 | Z25: NO | AA25: NO | AB25: NO | AC25: NO | AD25: NO | AE25: - | AF25: CBD | AG25: Urban | AH25: Short rural | AI25: Long rural | AK25: NO
B26: Central Ranges Pipeline (T) | C26: Central Ranges Pipeline Pty Ltd | D26: 108218355 | E26: NSW | F26: Gas | G26: Transmission | H26: Weighted average price cap | I26: Financial | J26: June | K26: 14 | L26: 5 | M26: 5 | N26: 5 | O26: transmission determination | P26: Level 19 | Q26: 580 George Street | R26: SYDNEY | S26: NSW | T26: 2000 | U26: PO Box R41 | W26: ROYAL EXCHANGE | X26: NSW | Y26: 1225 | Z26: NO | AA26: NO | AB26: NO | AC26: NO | AD26: NO | AE26: - | AF26: CBD | AG26: Urban | AH26: Short rural | AI26: Long rural | AK26: NO
B27: Evoenergy Gas | C27: Evoenergy Gas | D27: 76670568688 | E27: ACT | F27: Gas | G27: Distribution | H27: Weighted average price cap | I27: Financial | J27: June | K27: 5 | L27: 5 | M27: 5 | N27: x | P27: 40 Bunda Street | R27: CANBERRA | S27: ACT | T27: 2600 | U27: GPO BOX 366 | W27: CANBERRA | X27: ACT | Y27: 2601 | Z27: NO | AA27: NO | AB27: NO | AC27: NO | AD27: NO | AE27: - | AF27: CBD | AG27: Urban | AH27: Short rural | AI27: Long rural | AK27: NO | AL27: ActewAGL Gas
B28: JGN | C28: Jemena Gas Networks (NSW) Ltd | D28: 003 004 322 | E28: NSW | F28: Gas | G28: Distribution | H28: Weighted average price cap | I28: Financial | J28: June | K28: 5 | L28: 5 | M28: 5 | P28: please provide street address | U28: please provide postal address | Z28: NO | AA28: NO | AB28: NO | AC28: NO | AD28: NO | AE28: - | AF28: CBD | AG28: Urban | AH28: Short rural | AI28: Long rural | AK28: NO | AL28: JGN
B29: Multinet Gas | C29: Multinet Gas (DB No.1) Pty Ltd (ACN 086 026 986), Multinet Gas (DB No.2) Pty Ltd (ACN 086 230 122) | D29: 086026986 | E29: Vic | F29: Gas | G29: Distribution | H29: Weighted average price cap | I29: Calendar | J29: December | K29: 5 | L29: 5 | M29: 5 | N29: x | P29: 43-45 Centreway | R29: MT WAVERLEY | S29: Vic | T29: 3149 | Z29: NO | AA29: NO | AB29: NO | AC29: NO | AD29: NO | AE29: - | AF29: CBD | AG29: Urban | AH29: Short rural | AI29: Long rural | AK29: NO | AL29: Multinet Gas
B30: Roma to Brisbane Pipeline | C30: APT Petroleum Pipelines Limited t/a Roma to Brisbane Pipeline | D30: 009 737 393 | E30: Qld | F30: Gas | G30: Transmission | H30: Weighted average price cap | I30: Financial | J30: June | K30: 5 | L30: 5 | M30: 5 | N30: x | O30: n/a | P30: 580 George Street | R30: SYDNEY | S30: NSW | T30: 2000 | U30: PO Box R41 | W30: ROYAL EXCHANGE | X30: NSW | Y30: 1225 | Z30: NO | AA30: NO | AB30: NO | AC30: NO | AD30: NO | AE30: - | AF30: CBD | AG30: Urban | AH30: Short rural | AI30: Long rural | AK30: NO | AL30: Roma to Brisbane Pipeline
B35: The Reg Year Ending (dms_RYE) must be set to the last year of the regulatory period. For forecast data is is usually (FRCP_y5) for actual it is a single year (CRY). For historical actual data the RYE will need to be set manually in the business details sheet by setting the dms_Multiyear_flag to 1 and putting the correct value in 'dms_Specified_FinalYear. See cells C67:C68
B36: dms_Model_List | C36: dms_Model_Name_Format1 | D36: dms_Worksheet_List | E36: dms_Model_Span_List
B37: ARR | C37: Annual Reporting | D37: =IF(dms_MultiYear_ResponseFlag="yes","HISTORICAL ANNUAL REPORTING","ANNUAL REPORTING") -> HISTORICAL ANNUAL REPORTING | E37: 1
B38: CA | C38: Category Analysis | D38: =IF(dms_MultiYear_ResponseFlag="yes","NEW HISTORICAL CATEGORY ANALYSIS","CATEGORY ANALYSIS") -> NEW HISTORICAL CATEGORY ANALYSIS | E38: 1
B39: CESS | C39: Capitlal Expenditure | D39: CAPITLAL EXPENDITURE SHARING SCHEMING | E39: 5
B40: CPI | C40: CPI | D40: CPI | E40: 5
B41: EB | C41: Economic Benchmarking | D41: =IF(dms_MultiYear_ResponseFlag="yes","NEW HISTORICAL ECONOMIC BENCHMARKING","ECONOMIC BENCHMARKING") -> NEW HISTORICAL ECONOMIC BENCHMARKING | E41: 1
B42: Pricing | C42: Pricing Proposal | D42: PRICING PROPOSAL | E42: 5
B43: PTRM | C43: Post Tax Revenue Model | D43: POST TAX REVENUE MODEL | E43: 5
B44: Reset | C44: Regulatory Reporting (Reset) | D44: REGULATORY REPORTING STATEMENT | E44: 5
B45: RFM | C45: Roll Forward Model | D45: ROLL FORWARD MODEL | E45: 5
B46: WACC | C46: Weighted Average Cost of Capital | D46: WEIGHTED AVERAGE COST OF CAPITAL | E46: 1
B50: Financial | C50: Calendar | E50: PREVIOUS | G50: CURRENT | I50: FORTHCOMING
B51: 1987-88 | C51: 1988 | D51: PRCP_y1 | E51: =INDEX(INDIRECT(dms_RPT),dms_PRCP_start_row) -> 2011-12 | F51: CRCP_y1 | G51: =INDEX(INDIRECT(dms_RPT),dms_CRCP_start_row) -> 2016-17 | H51: =FRCP_y1 -> 2021-22 | I51: =INDEX(INDIRECT(dms_RPT),dms_FRCP_start_row) -> 2021-22
B52: 1988-89 | C52: 1989 | D52: PRCP_y2 | E52: =INDEX(INDIRECT(dms_RPT),dms_PRCP_start_row+1) -> 2012-13 | F52: CRCP_y2 | G52: =INDEX(INDIRECT(dms_RPT),dms_CRCP_start_row+1) -> 2017-18 | H52: FRCP_y2 | I52: =INDEX(INDIRECT(dms_RPT),dms_FRCP_start_row+1) -> 2022-23
B53: 1989-90 | C53: 1990 | D53: PRCP_y3 | E53: =INDEX(INDIRECT(dms_RPT),dms_PRCP_start_row+2) -> 2013-14 | F53: CRCP_y3 | G53: =INDEX(INDIRECT(dms_RPT),dms_CRCP_start_row+2) -> 2018-19 | H53: FRCP_y3 | I53: =INDEX(INDIRECT(dms_RPT),dms_FRCP_start_row+2) -> 2023-24
B54: 1990-91 | C54: 1991 | D54: PRCP_y4 | E54: =INDEX(INDIRECT(dms_RPT),dms_PRCP_start_row+3) -> 2014-15 | F54: CRCP_y4 | G54: =INDEX(INDIRECT(dms_RPT),dms_CRCP_start_row+3) -> 2019-20 | H54: FRCP_y4 | I54: =INDEX(INDIRECT(dms_RPT),dms_FRCP_start_row+3) -> 2024-25
B55: 1991-92 | C55: 1992 | D55: PRCP_y5 | E55: =INDEX(INDIRECT(dms_RPT),dms_PRCP_start_row+4) -> 2015-16 | F55: CRCP_y5 | G55: =INDEX(INDIRECT(dms_RPT),dms_CRCP_start_row+4) -> 2020-21 | H55: FRCP_y5 | I55: =INDEX(INDIRECT(dms_RPT),dms_FRCP_start_row+4) -> 2025-26
B56: 1992-93 | C56: 1993 | D56: PRCP_y6 | E56: =INDEX(INDIRECT(dms_RPT),dms_PRCP_start_row+5) -> 2016-17 | F56: CRCP_y6 | G56: =INDEX(INDIRECT(dms_RPT),dms_CRCP_start_row+5) -> 2021-22 | H56: FRCP_y6 | I56: =INDEX(INDIRECT(dms_RPT),dms_FRCP_start_row+5) -> 2026-27
B57: 1993-94 | C57: 1994 | D57: PRCP_y7 | E57: =INDEX(INDIRECT(dms_RPT),dms_PRCP_start_row+6) -> 2017-18 | F57: CRCP_y7 | G57: =INDEX(INDIRECT(dms_RPT),dms_CRCP_start_row+6) -> 2022-23 | H57: FRCP_y7 | I57: =INDEX(INDIRECT(dms_RPT),dms_FRCP_start_row+6) -> 2027-28
B58: 1994-95 | C58: 1995 | D58: PRCP_y8 | E58: =INDEX(INDIRECT(dms_RPT),dms_PRCP_start_row+7) -> 2018-19 | F58: CRCP_y8 | G58: =INDEX(INDIRECT(dms_RPT),dms_CRCP_start_row+7) -> 2023-24 | H58: FRCP_y8 | I58: =INDEX(INDIRECT(dms_RPT),dms_FRCP_start_row+7) -> 2028-29
B59: 1995-96 | C59: 1996 | D59: PRCP_y9 | E59: =INDEX(INDIRECT(dms_RPT),dms_PRCP_start_row+8) -> 2019-20 | F59: CRCP_y9 | G59: =INDEX(INDIRECT(dms_RPT),dms_CRCP_start_row+8) -> 2024-25 | H59: FRCP_y9 | I59: =INDEX(INDIRECT(dms_RPT),dms_FRCP_start_row+8) -> 2029-30
B60: 1996-97 | C60: 1997 | D60: PRCP_y10 | E60: =INDEX(INDIRECT(dms_RPT),dms_PRCP_start_row+9) -> 2020-21 | F60: CRCP_y10 | G60: =INDEX(INDIRECT(dms_RPT),dms_CRCP_start_row+9) -> 2025-26 | H60: FRCP_y10 | I60: =INDEX(INDIRECT(dms_RPT),dms_FRCP_start_row+9) -> 2030-31
B61: 1997-98 | C61: 1998 | D61: PRCP_y11 | E61: =INDEX(INDIRECT(dms_RPT),dms_PRCP_start_row+10) -> 2021-22 | F61: CRCP_y11 | G61: =INDEX(INDIRECT(dms_RPT),dms_CRCP_start_row+10) -> 2026-27 | H61: FRCP_y11 | I61: =INDEX(INDIRECT(dms_RPT),dms_FRCP_start_row+10) -> 2031-32
B62: 1998-99 | C62: 1999 | D62: PRCP_y12 | E62: =INDEX(INDIRECT(dms_RPT),dms_PRCP_start_row+11) -> 2022-23 | F62: CRCP_y12 | G62: =INDEX(INDIRECT(dms_RPT),dms_CRCP_start_row+11) -> 2027-28 | H62: FRCP_y12 | I62: =INDEX(INDIRECT(dms_RPT),dms_FRCP_start_row+11) -> 2032-33
B63: 1999-00 | C63: 2000 | D63: PRCP_y13 | E63: =INDEX(INDIRECT(dms_RPT),dms_PRCP_start_row+12) -> 2023-24 | F63: CRCP_y13 | G63: =INDEX(INDIRECT(dms_RPT),dms_CRCP_start_row+12) -> 2028-29 | H63: FRCP_y13 | I63: =INDEX(INDIRECT(dms_RPT),dms_FRCP_start_row+12) -> 2033-34
B64: 2000-01 | C64: 2001 | D64: PRCP_y14 | E64: =INDEX(INDIRECT(dms_RPT),dms_PRCP_start_row+13) -> 2024-25 | F64: CRCP_y14 | G64: =INDEX(INDIRECT(dms_RPT),dms_CRCP_start_row+13) -> 2029-30 | H64: FRCP_y14 | I64: =INDEX(INDIRECT(dms_RPT),dms_FRCP_start_row+13) -> 2034-35
B65: 2001-02 | C65: 2002 | D65: PRCP_y15 | E65: =INDEX(INDIRECT(dms_RPT),dms_PRCP_start_row+14) -> 2025-26 | F65: CRCP_y15 | G65: =INDEX(INDIRECT(dms_RPT),dms_CRCP_start_row+14) -> 2030-31 | H65: FRCP_y15 | I65: =INDEX(INDIRECT(dms_RPT),dms_FRCP_start_row+14) -> 2035-36
B66: 2002-03 | C66: 2003 | D66: PRCP_y16 | E66: =INDEX(INDIRECT(dms_RPT),dms_PRCP_start_row+15) -> 2026-27 | F66: CRCP_y16 | G66: =INDEX(INDIRECT(dms_RPT),dms_CRCP_start_row+15) -> 2031-32 | H66: FRCP_y16 | I66: =INDEX(INDIRECT(dms_RPT),dms_FRCP_start_row+15) -> 2036-37
B67: 2003-04 | C67: 2004
B68: 2004-05 | C68: 2005
B69: 2005-06 | C69: 2006 | E69: CRY - FRY
B70: 2006-07 | C70: 2007 | D70: dms_y1 | E70: =IFERROR(INDEX(INDIRECT(dms_RPT),dms_CRY_start_row),0) -> 2014-15
B71: 2007-08 | C71: 2008 | D71: dms_y2 | E71: =IFERROR(INDEX(INDIRECT(dms_RPT),dms_CRY_start_row+1),0) -> 2015-16
B72: 2008-09 | C72: 2009 | D72: dms_y3 | E72: =IFERROR(INDEX(INDIRECT(dms_RPT),dms_CRY_start_row+2),0) -> 2016-17
B73: 2009-10 | C73: 2010 | D73: dms_y4 | E73: =IFERROR(INDEX(INDIRECT(dms_RPT),dms_CRY_start_row+3),0) -> 2017-18
B74: 2010-11 | C74: 2011 | D74: dms_y5 | E74: =IFERROR(INDEX(INDIRECT(dms_RPT),dms_CRY_start_row+4),0) -> 2018-19
B75: 2011-12 | C75: 2012 | D75: dms_y6 | E75: =IFERROR(INDEX(INDIRECT(dms_RPT),dms_CRY_start_row+5),0) -> 2019-20
B76: 2012-13 | C76: 2013 | D76: dms_y7 | E76: =IFERROR(INDEX(INDIRECT(dms_RPT),dms_CRY_start_row+6),0) -> 2020-21
B77: 2013-14 | C77: 2014 | D77: dms_y8 | E77: =IFERROR(INDEX(INDIRECT(dms_RPT),dms_CRY_start_row+7),0) -> 2021-22
B78: 2014-15 | C78: 2015 | D78: dms_y9 | E78: =IFERROR(INDEX(INDIRECT(dms_RPT),dms_CRY_start_row+8),0) -> 2022-23
B79: 2015-16 | C79: 2016 | D79: dms_y10 | E79: =IFERROR(INDEX(INDIRECT(dms_RPT),dms_CRY_start_row+9),0) -> 2023-24
B80: 2016-17 | C80: 2017 | D80: dms_y11 | E80: =IFERROR(INDEX(INDIRECT(dms_RPT),dms_CRY_start_row+10),0) -> 2024-25
B81: 2017-18 | C81: 2018 | D81: dms_y12 | E81: =IFERROR(INDEX(INDIRECT(dms_RPT),dms_CRY_start_row+11),0) -> 2025-26
B82: 2018-19 | C82: 2019 | D82: dms_y13 | E82: =IFERROR(INDEX(INDIRECT(dms_RPT),dms_CRY_start_row+12),0) -> 2026-27
B83: 2019-20 | C83: 2020 | D83: dms_y14 | E83: =IFERROR(INDEX(INDIRECT(dms_RPT),dms_CRY_start_row+13),0) -> 2027-28
B84: 2020-21 | C84: 2021 | D84: dms_y15 | E84: =IFERROR(INDEX(INDIRECT(dms_RPT),dms_CRY_start_row+14),0) -> 2028-29
B85: 2021-22 | C85: 2022 | D85: dms_y16 | E85: =IFERROR(INDEX(INDIRECT(dms_RPT),dms_CRY_start_row+15),0) -> 2029-30
B86: 2022-23 | C86: 2023
B87: 2023-24 | C87: 2024
B88: 2024-25 | C88: 2025
B89: 2025-26 | C89: 2026
B90: 2026-27 | C90: 2027
B91: 2027-28 | C91: 2028
B92: 2028-29 | C92: 2029
B93: 2029-30 | C93: 2030
B94: 2030-31 | C94: 2031
B95: 2031-32 | C95: 2032
B96: 2032-33 | C96: 2033
B97: 2033-34 | C97: 2034
B98: 2034-35 | C98: 2035
B99: 2035-36 | C99: 2036
B100: 2036-37 | C100: 2037

Sheet AER ETL (hidden)
A1: FINAL RIN - 20200224 | B1: AER ETL INFORMATION
B3: USES NAMED RANGES FLAG | C3: yes | D3: dms_Defined_Names_Used
B5: IF THIS IS AN ABC RIN - make sure the the named range CRY is applied and the named range dms_dollar_nom_UOM is applied
B6: IF THIS IS A RESET RIN - make sure the named ranges CRY and dms_dollar_nom_UOM are NOT present in the workbook
B7: FOR ABC RINS THAT SPAN MULTIPLE YEARS - make sure MultiYear Flag is set and final year entered as required
B9: Full trading name | C9: =INDEX(dms_TradingNameFull_List,MATCH(dms_TradingName,dms_TradingName_List)) -> Australian Gas Networks Limited (reporting data for SA) | E9: dms_TradingNameFull
B10: Trading name | C10: =dms_TradingName -> AGN (SA)
A11: Selected here | B11: Model / RIN | C11: ARR | D11: dms_Model
A12: Read from Business & other details | B12: Source | C12: Reporting | D12: dms_Source
B13: Data quality | C13: =dms_Selected_Quality -> Consolidated | D13: dms_DQ_1
B14: Data status | C14: =dms_Selected_Status -> Public | D14: dms_DQ_2
B15: Amendment reason | C15: =dms_Amendment_Text -> . | F15: dms_AmendmentReason
B16: Submission date | C16: =dms_Typed_Submission_Date -> 2020-07-01 | D16: dms_SubmissionDate
A18: Redundant | B18: EBSS - First application of scheme in forthcoming period? | C18: No
A19: Pre-populated from lookup table | B19: Data ingestion data quality | C19: =dms_Selected_Quality -> Consolidated | D19: dms_DataQuality | E19: =IF(dms_DQ_2="Confidential","Consolidated","Public")
B20: Sector | C20: =INDEX(dms_Sector_List,MATCH(dms_TradingName,dms_TradingName_List)) -> Gas | D20: dms_Sector | E20: =INDEX(dms_Sector_List,MATCH(dms_TradingName,dms_TradingName_List))
B21: Segment | C21: =INDEX(dms_Segment_List,MATCH(dms_TradingName,dms_TradingName_List)) -> Distribution | D21: dms_Segment | E21: =INDEX(dms_Segment_List,MATCH(dms_TradingName,dms_TradingName_List))
B22: Regulatory Year Ending | C22: =dms_RYE_result -> 2019 | D22: dms_RYE | E22: =IF(dms_MultiYear_Flag=1,LEFT(dms_Specified_FinalYear,2)&RIGHT(dms_Specified_FinalYear,2),INDEX(dms_RYE_Formula_Result,MATCH(dms_Model,dms_Model_List)))
B23: Reporting Period Type | C23: =INDEX(dms_RPT_List,MATCH(dms_TradingName,dms_TradingName_List)) -> Financial | D23: dms_RPT | E23: =INDEX(dms_RPT_List,MATCH(dms_TradingName,dms_TradingName_List))
B24: EB/CA Unit of Measure for Monetary Values | C24: $0s | D24: dms_dollar_nom_UOM | E24: If the cover sheet is attached to an ABC RIN apply the NAMED RANGE to the cell
B25: Security Classification | C25: Public | D25: dms_Classification | E25: Always Public
B26: Jurisdiction | C26: =INDEX(dms_JurisdictionList,MATCH(dms_TradingName,dms_TradingName_List)) -> SA | D26: dms_Jurisdiction | E26: =INDEX(dms_JurisdictionList,MATCH(dms_TradingName,dms_TradingName_List))
A27: Relevant for PTRM, RFMs and Reset RINS | B27: $ REAL REFERENCES
B28: Does the named range CRY exist in this file? | C28: =IFERROR("Yes "&CRY,"NO") -> Yes 2014-15
B29: CRY-1 (last full calendar year before CRY) | C29: =IFERROR(IF(dms_RPT="calendar",CRY-1,LEFT(CRY,4)),"CRY not present") -> 2014 | D29: dms_Cal_Year_B4_CRY | E29: '=IF(dms_RPT="financial",VALUE(LEFT(dms_SingleYear_FinalYear_Result,4)),VALUE(LEFT(dms_SingleYear_FinalYear_Result,4)-1))
B30: Dollar $ real month | C30: =INDEX(dms_RPTMonth_List,MATCH(dms_TradingName,dms_TradingName_List)) -> June | D30: dms_RPTMonth | E30: =INDEX(dms_RPTMonth_List,MATCH(dms_TradingName,dms_TradingName_List))
B31: Dollar $ real (the last month before the FRCP_y1) | C31: =IF(dms_SingleYearModel="yes",CONCATENATE(dms_RPTMonth)&" "&VALUE((LEFT(CRY,2))&RIGHT(CRY,2)),CONCATENATE(dms_RPTMonth)&" "&dms_DollarReal_year) -> June 2015 | D31: dms_DollarReal | E31: =IF(SUM(dms_SingleYear_Model)>0,CONCATENATE(dms_RPTMonth)&" "&VALUE((LEFT(CRY,2))&RIGHT(CRY,2)),CONCATENATE(dms_RPTMonth)&" "&VALUE((LEFT(dms_RYE,2)&RIGHT(dms_RYE,2))))
B32: Dollar $ real previous year (PRCP_y5) | C32: =IF(dms_SingleYearModel="yes",CONCATENATE(dms_RPTMonth)&" "&VALUE((LEFT(CRY,2))&RIGHT(CRY,2)),CONCATENATE(dms_RPTMonth)&" "&dms_Previous_DollarReal_year) -> June 2015 | D32: dms_DollarReal_Prev | E32: =IF(SUM(dms_SingleYear_Model)>0,CONCATENATE(dms_RPTMonth)&" "&VALUE(((LEFT(CRY,2))&RIGHT(CRY,2))-1),CONCATENATE(dms_RPTMonth)&" "&VALUE(((LEFT(dms_CRCP_FirstYear_Result,2)&RIGHT(dms_CRCP_FirstYear_Result,2))))-1)
B33: PTRM/ RFMs
B34: Form of control | C34: =INDEX(dms_FormControl_List,MATCH(dms_TradingName,dms_TradingName_List)) -> Weighted average price cap | D34: dms_FormControl | E34: =INDEX(dms_FormControl_List,MATCH(dms_TradingName,dms_TradingName_List))
A35: All potential values for Regulatory Years or RYEs as calculated | B35: This block works out the various RYE's for ALL RIN types and MODELS
B36: dms_start_year | C36: =FRCP_y1 -> 2021-22 | D36: FRCP_y1 from cover sheet
B37: dms_CRY_start_year | C37: =IFERROR(CRY,CRCP_y4) -> 2014-15
B38: dms_CRY_start_row | C38: =IFERROR(MATCH(dms_CRY_start_year,INDIRECT(dms_RPT),0),0) -> 28
B39: dms_FRCP_start_row | C39: =MATCH(dms_start_year,INDIRECT(dms_RPT),0) -> 35 | D39: Uses FRCP_y1 as a start reference
B40: dms_CRCP_start_row | C40: =dms_FRCP_start_row-dms_CRCPlength_Num -> 30 | D40: Uses the value in dms_CRCPlength_Num
B41: dms_PRCP_start_row | C41: =dms_FRCP_start_row-dms_CRCPlength_Num-dms_PRCPlength_Num -> 25 | D41: Uses the value in dms_CRCPlength_Num and dms_PRCPlength_Num
B42: dms_RYE_start_row | C42: =dms_FRCP_start_row+(dms_FRCPlength_Num-1) -> 39 | D42: Uses the value in dms_FRCPlength_Num-1
B43: FRCP_start_year | C43: =INDEX(INDIRECT(dms_RPT),dms_FRCP_start_row) -> 2021-22 | D43: Converts the FRCP start row to display the year
B44: CRCP_start_year | C44: =INDEX(INDIRECT(dms_RPT),dms_CRCP_start_row) -> 2016-17 | D44: Converts the CRCP start row to display the year
B45: PRCP_start_year | C45: =INDEX(INDIRECT(dms_RPT),dms_PRCP_start_row) -> 2011-12 | D45: Converts the PRCP start row to display the year
B46: FRCP_final_year | C46: =INDEX(INDIRECT(dms_RPT),dms_FRCP_start_row+dms_FRCPlength_Num-1) -> 2025-26 | D46: Finds the FRCP final year
B47: CRCP_final_year | C47: =INDEX(INDIRECT(dms_RPT),dms_CRCP_start_row+dms_CRCPlength_Num-1) -> 2020-21 | D47: Finds the CRCP final year
B48: PRCP_final_year | C48: =INDEX(INDIRECT(dms_RPT),dms_PRCP_start_row+dms_FRCPlength_Num-1) -> 2015-16 | D48: Finds the PRCP final year
B49: dms_Reset_final_year | C49: =INDEX(INDIRECT(dms_RPT),dms_RYE_start_row) -> 2025-26 | D49: For Resets and PTRM/RFMs (same as FRCP_final_year)
B50: dms_SpecifiedYear_final_year | C50: =FRY -> 2018-19 | D50: FRY from cover sheet
B51: dms_DollarReal_year | C51: =LEFT(CRCP_final_year,2)&RIGHT(CRCP_final_year,2) -> 2021 | D51: Uses the value in CRCP_final_year
B52: dms_Previous_DollarReal_year | C52: =LEFT(PRCP_final_year,2)&RIGHT(PRCP_final_year,2) -> 2016 | D52: Uses the value in PRCP_final_year
B53: dms_CRY_RYE | C53: =IFERROR(LEFT(CRY,2)&RIGHT(CRY,2),0) -> 2015 | D53: For ABC single year RINS
B54: dms_Reset_RYE | C54: =IF(dms_Model_Span>1,IF(dms_Model="RFM",(LEFT(dms_DollarReal_year,2)&RIGHT(dms_DollarReal_year,2)),(LEFT(dms_Reset_final_year,2)&RIGHT(dms_Reset_final_year,2))),0) -> 0 | D54: If model span > 1 then uses dms_Reset_RYE otherwise it's a multi year ABC and uses dms_Specified_RYE
B55: dms_Specified_RYE | C55: =IF(dms_MultiYear_ResponseFlag="Yes",(LEFT(dms_Specified_FinalYear,2)&RIGHT(dms_Specified_FinalYear,2)),0) -> 2019 | D55: If multi year ABC - uses dms_Specified_FinalYear
B56: dms_Model_Span | C56: =INDEX(dms_Model_Span_List,MATCH(dms_Model,dms_Model_List)) -> 1 | D56: A result of 5 is used to signify that it is more than 1 year span
B57: dms_RYE_result | C57: =IF(dms_MultiYear_ResponseFlag="yes",dms_Specified_RYE,(IF(dms_Model_Span>1,dms_Reset_RYE,dms_CRY_RYE))) -> 2019 | D57: Nested IF - feeds into dms_RYE
B58: dms_Reset_Span | C58: =IF(dms_Reset_RYE>0,CONCATENATE(FRCP_y1," to ",FRCP_final_year),0) -> 0 | D58: Reset span of years as text
B59: dms_SpecifiedYear_Span | C59: =IF(dms_Specified_RYE>0,CONCATENATE(CRY," to ",dms_Specified_FinalYear),0) -> 2014-15 to 2018-19 | D59: Multi year ABC span of years as text
B60: dms_Header_Span | C60: =IF(dms_MultiYear_Flag=1,dms_SpecifiedYear_Span,IF(dms_Model_Span>1,dms_Reset_Span,CRY)) -> 2014-15 to 2018-19 | D60: NESTED IF - for Sheet Headers
B61: ABC RINS THAT SPAN MULTIPLE YEARS
B62: This is a multi year ABC RIN? | C62: Yes
C63: =IF(dms_MultiYear_ResponseFlag="No",0,1) -> 1 | D63: dms_MultiYear_Flag | E63: This is set from the answer provided above
C64: =IF(dms_MultiYear_Flag=1,FRY,"not a Multiple year submission") -> 2018-19 | D64: dms_Specified_FinalYear | E64: The result here is returned to dms_CRCP_FinalYear_Result if response to Q in C73 is "yes" and dms_MultiYear_Flag is set to 1
B65: Start year for 5.2 in Multi year ABC RINS | C65: =IFERROR(IF(dms_MultiYear_Flag=1,FRY,CRY),"not an ABC") -> 2018-19 | D65: dms_0502_Inst_Year | E65: =IF(dms_MultiYear_Flag=1,FRY,CRY) | G65: For single year RINS this is CRY - multi year RINS need to start a the end of the span of years (ie. FRY)
B66: WHAT IS THE RYE?
B67: Reg Period Lengths
B68: PRCP length in years | C68: =INDEX(dms_PRCPlength_List,MATCH(dms_TradingName,dms_TradingName_List)) -> 5 | D68: dms_PRCPlength_Num | E68: =INDEX(dms_PRCPlength_List,MATCH(dms_TradingName,dms_TradingName_List))
B69: CRCP length in years | C69: =INDEX(dms_CRCPlength_List,MATCH(dms_TradingName,dms_TradingName_List)) -> 5 | D69: dms_CRCPlength_Num | E69: =INDEX(dms_CRCPlength_List,MATCH(dms_TradingName,dms_TradingName_List))
B70: FRCP length in years | C70: =INDEX(dms_FRCPlength_List,MATCH(dms_TradingName,dms_TradingName_List)) -> 5 | D70: dms_FRCPlength_Num | E70: =INDEX(dms_FRCPlength_List,MATCH(dms_TradingName,dms_TradingName_List))
B71: Single year RIN?
B72: Single Year ABC RIN ? | C72: =IF(dms_Model="EB",1,0) -> 0 | D72: dms_EB
C73: =IF(dms_Model="CA",1,0) -> 0 | D73: dms_CA | E73: =dms_SingleYear_Model
C74: =IF(dms_Model="ARR",1,0) -> 1 | D74: dms_ARR
B75: Is this a single Year ABC RIN? | C75: =IF(SUM(dms_SingleYear_Model)=1,"yes","no") -> yes | D75: dms_SingleYearModel | E75: =IF(SUM(dms_SingleYear_Model)=1,"yes","no")
B76: Single Year Final Year Result | C76: =IF(AND(dms_SingleYearModel="yes",dms_MultiYear_Flag=0),CRY,0) -> 0 | D76: dms_SingleYear_FinalYear_Result | E76: =IFERROR(IF(SUM(dms_SingleYear_Model)<>0,(INDIRECT(dms_SingleYear_FinalYear_Ref)),"not a single year RIN"),"CRY not present")
B77: Multi year RIN?
B79: Multi Year Reset/Model? | C79: =IF(dms_Model_Span>1,"yes","no") -> no
B80: Final year result for Reset/Model | C80: =IF(dms_Model_Span>1,dms_Reset_final_year,0) -> 0 | D80: dms_MultiYear_FinalYear_Result
B82: Multi Year ABC RIN? | C82: =IF(dms_MultiYear_Flag=1,"yes","no") -> yes | D82: dms_MultiYear_ABC_RIN
B83: Final year result for ABC multi year | C83: =IF(dms_MultiYear_Flag=1,C50,0) -> 2018-19
B85: EB RINS
B86: Calendar Year for table 3.6 data | C86: =IFERROR(IF(dms_Segment="Transmission",dms_Cal_Year_B4_CRY,CRY),"CRY not present") -> 2014-15 | D86: dms_0306_Year | E86: =IF(dms_Segment="Transmission",dms_Cal_Year_B4_CRY,CRY)
B87: CA RINS
B88: Find how many rows in tables 6.3 sustained interruptions? | E88: dms_060301_MaxRows only returns a valid value when cover sheet is attached to a CA file
C89: =IF(dms_Model<>"CA","not a CA","Is a CA") -> not a CA | E89: =IF(dms_Model<>"CA","not a CA","Is a CA")
B90: dms_060301_Avg_Duration_Sustained_Int_Values present? | C90: =IFERROR(IF(INDEX(dms_060301_Avg_Duration_Sustained_Int_Values,1,1)<>"","yes","no"),"no") -> no | D90: dms_060301_checkvalue | E90: =IFERROR(IF(INDEX(dms_060301_Avg_Duration_Sustained_Int_Values,1,1)<>"","yes","no"),"no")
C91: =IF(AND(dms_Model="CA",(dms_060301_checkvalue="no")),"error - NR not present","no errors") -> no errors | E91: =IF(AND(dms_Model="CA",(dms_060301_checkvalue="no")),"error - NR not present","no errors")
B92: Table 6.3.1 - last row reference | C92: =IFERROR(IF(dms_Model="CA",LOOKUP(2,1/(dms_060301_Avg_Duration_Sustained_Int_Values<>""),(ROW(dms_060301_Avg_Duration_Sustained_Int_Values))),"not a CA"),"6.3 not present") -> not a CA | D92: dms_060301_LastRow | E92: =IFERROR(IF(dms_Model="CA",LOOKUP(2,1/(dms_060301_Avg_Duration_Sustained_Int_Values<>""),(ROW(dms_060301_Avg_Duration_Sustained_Int_Values))),"not a CA"),"6.3 not present")
B93: Table 6.3.1 - max number rows | C93: =IFERROR(IF(dms_Model="CA",(dms_060301_LastRow-15),"not a CA"),"error") -> not a CA | D93: dms_060301_MaxRows | E93: =IFERROR(IF(dms_Model="CA",(dms_060301_LastRow-15),"not a CA"),"error")
B94: Table 6.6.3 - Public lighting repair - no. business days | C94: =INDEX(dms_663_List,MATCH(dms_TradingName,dms_TradingName_List)) -> 5 | D94: dms_663 | E94: =INDEX(dms_663_List,MATCH(dms_TradingName,dms_TradingName_List))
B95: ARR or RESET RINS
B96: How many rows in tables 6.1 or 6.7? (leap year?) | C96: insert dms_LeapYear NR if required | E96: 'dms_LeapYear is used to determine dms_060701_Max_Rows BUT it is only found on worksheet 6.1 or 6.7 and the date value in the cell is used to determine whether it is a leap year
B97: Is dms_LeapYear named range present? | C97: =IFERROR(IF(dms_LeapYear,"yes"),"no") -> no
B98: Table 6.7.1 - includes a leap year? | C98: =IFERROR(IF(MONTH(DATE(YEAR(dms_LeapYear),2,29))=2,"is a leap year","not a leap year"), "dms_LeapYear not present") -> dms_LeapYear not present | D98: dms_LeapYear_Result | E98: =IFERROR(IF(MONTH(DATE(YEAR(dms_LeapYear),2,29))=2,"is a leap year","not a leap year"),"dms_LeapYear not present")
B99: MaxRows if Reset and leap year | C99: =IF(dms_LeapYear_Result="is a leap year",1827,1826) -> 1826 | D99: dms_060701_Reset_MaxRows | E99: =IF(dms_LeapYear_Result="is a leap year",1827,1826) | H99: number of days present in Reset RIN table
B100: MaxRows if ARR and leap year | C100: =IF(dms_LeapYear_Result="is a leap year",366,365) -> 365 | D100: dms_060701_ARR_MaxRows | E100: =IF(dms_LeapYear_Result="is a leap year",366,365) | H100: number of days present in ARR RIN table
B101: Table 6.7.1 - Max Rows (leap year/ non leap year) | C101: =IF(dms_Model="ARR",dms_060701_ARR_MaxRows,IF(dms_Model="Reset",dms_060701_Reset_MaxRows,"not a relevant RIN type")) -> 365 | D101: dms_060701_MaxRows | E101: =IF(dms_Model="ARR",dms_060701_ARR_MaxRows,IF(dms_Model="Reset",dms_060701_Reset_MaxRows,"not a relevant RIN type"))
B102: How many columns in 6.7? (4 or 5 feeder categories) | C102: =IF(dms_FifthFeeder_flag_NSP="NO","This NSP has only 4 feeder categories","This NSP has 5 feeder categories") -> This NSP has only 4 feeder categories
B103: Table 6.7.1 - Last column (# of feeder categories > 4) | C103: =IF(dms_FifthFeeder_flag_NSP="NO",10,12) -> 10 | D103: dms_060701_MaxCols | E103: =IF(dms_FifthFeeder_flag_NSP="NO",8,10)
B104: Table 6.7.1 - Number of offset rows | C104: =IF(dms_Model="ARR",15,9) -> 15 | D104: dms_060701_OffsetRows | E104: =IF(dms_Model="ARR",15,9)
B105: Start date for telephone answering in 6.1 or 6.7? | E105: Using 060101 as naming standard not 060701 for start dates
B106: Table 6.1.1 and 6.7.1 - Start Date as Text | C106: =IF(dms_SingleYearModel="yes",(CONCATENATE(IF(LEN(CRY)=4,"1-Jan-","1-Jul-"),LEFT(CRY,4))),(CONCATENATE(IF(LEN(PRCP_y4)=4,"1-Jan-","1-Jul-"),LEFT(PRCP_y4,4)))) -> 1-Jul-2014 | D106: dms_060101_StartDateTxt | E106: =IF(SUM(dms_SingleYear_Model)>1,(CONCATENATE(IF(LEN(CRY)=4,"1-Jan-","1-Jul-"),LEFT(CRY,4))),(CONCATENATE(IF(LEN(CRCP_y4)=4,"1-Jan-","1-Jul-"),LEFT(CRCP_y4,4))))
B107: Table 6.1.1 and 6.7.1 - Start Date as Date Value | C107: =DATEVALUE(dms_060701_StartDateTxt) -> 41821 | D107: dms_060101_StartDateVal | E107: =DATEVALUE(dms_060701_StartDateTxt)
B108: ARRs
B109: How many rows in table 6.8? | C109: insert dms_060801_StartCell NR if required | E109: dms_060801_StartCell is only found on worksheet 6.8 and is used to determine the starting date for the date range
B110: Is dms_060801_StartCell named range present? | C110: yes | E110: =IFERROR(IF((ROW(dms_060801_StartCell)-1)=1,"yes","yes"),"no")
B111: Table 6.8 - Number of offset rows | C111: 12 | D111: dms_0608_OffsetRows | E111: =IFERROR(IF(dms_Model="ARR",(ROW(dms_060801_StartCell)-1),"not an ARR"),"6.8 error")
B112: Table 6.8 - Last row | C112: 0 | D112: dms_0608_LastRow | E112: =IFERROR(IF(dms_060801_StartCell<>"",IF(dms_Model="ARR",(LOOKUP(2,1/(dms_060801_01_Values<>""),(ROW(dms_060801_01_Values)))),"not an ARR"),0),"0")
B113: Table 6.8 - MaxRows | C113: =IFERROR(IF(dms_Model="ARR",(MAX(0,dms_0608_LastRow-dms_0608_OffsetRows)),"not an ARR"),"0") -> 0 | D113: dms_060801_MaxRows | E113: =IFERROR(IF(dms_Model="ARR",(MAX(0,dms_0608_LastRow-dms_0608_OffsetRows)),"not an ARR"),"0")
B114: TNSP RESET RINS
B115: Table 7.9.4 only appears in TNSPs Reset RIN
B116: Table 7.9.4 - first year | C116: =LEFT(PRCP_y3,4) -> 2013 | D116: dms_070904_Start_Year | E116: =LEFT(PRCP_y3,4)
B118: MISC
B119: Distribution Determination Reference | C119: =INDEX(dms_DeterminationRef_List,MATCH(dms_TradingName,dms_TradingName_List)) -> distribution determination | D119: dms_DeterminationRef
B120: Public lighting NSP? | C120: =INDEX(dms_Public_Lighting_List,MATCH(dms_TradingName,dms_TradingName_List)) -> NO | D120: dms_Public_Lighting | E120: =INDEX(dms_Public_Lighting_List,MATCH(dms_TradingName,dms_TradingName_List))
B121: CBD Feeder for this business | C121: =INDEX(dms_CBD_flag,MATCH(dms_TradingName,dms_TradingName_List)) -> NO | D121: dms_CBD_flag_NSP
B122: Urban Feeder for this business | C122: =INDEX(dms_Urban_flag,MATCH(dms_TradingName,dms_TradingName_List)) -> NO | D122: dms_Urban_flag_NSP
B123: Short rural Feeder for this business | C123: =INDEX(dms_ShortRural_flag,MATCH(dms_TradingName,dms_TradingName_List)) -> NO | D123: dms_ShortRural_flag_NSP
B124: Long rural Feeder for this business | C124: =INDEX(dms_LongRural_flag,MATCH(dms_TradingName,dms_TradingName_List)) -> NO | D124: dms_LongRural_flag_NSP
B125: Fifth Feeder Category (eg. TasNetworks (D)) | C125: =INDEX(dms_FeederType_5_flag,MATCH(dms_TradingName,dms_TradingName_List)) -> NO | D125: dms_FifthFeeder_flag_NSP | E125: =INDEX(dms_FeederType_5_flag,MATCH(dms_TradingName,dms_TradingName_List))
B127: DISCARD FILES
B128: discard this record? | C128: NO | D128: dms_DISCARD | E128: If record is to be discarded from DB set this flag to YES
B130: SUBSET FILES
B131: Is this Submission File a Subset File | C131: NO | D131: dms_Partial
B134: REGULATORY YEARS FOR MULTI RYE SUBMISSIONS
B135: Multiple RYE flag | C135: YES | D135: dms_Multi_RYE_flag
C136: Manually specify RYE | D136: Named ranges to apply
C137: 2015 | D137: dms_RYE_01
C138: 2016 | D138: dms_RYE_02
C139: 2017 | D139: dms_RYE_03
C140: 2018 | D140: dms_RYE_04
C141: 2019 | D141: dms_RYE_05
C142: 2020 | D142: dms_RYE_06
C143: 2021 | D143: dms_RYE_07
C144: 2022 | D144: dms_RYE_08
C145: 2023 | D145: dms_RYE_09

Sheet Instructions
B2: =CONCATENATE(dms_Sector," ",dms_Segment," ", "Pipeline Service Provider") -> Gas Distribution Pipeline Service Provider
B3: =IF(dms_Model="Reset","Regulatory Proposal RIN Template","Annual Reporting RIN") -> Annual Reporting RIN
B4: =CONCATENATE("This template is to be used by ",dms_TradingNameFull," to fulfil its reporting obligations to the AER.") -> This template is to be used by Australian Gas Networks Limited (reporting data for SA) to fulfil its reporting obligations to the AER.
B5: INSTRUCTIONS
B6: GENERAL | C6: Complete the Business & other details worksheet before entering data or values in any other worksheets. The Business & other details worksheet is linked to other worksheets within the workbook and automatically generates certain column headings and conditional formatting.
B8: CONFIDENTIAL INFORMATION | C8: Please use the macro at the top of each worksheet to identify confidential information in the confidential workbook.
C9: -Do this by selecting the cell or cells that contain confidential information and then run the Mark selection as CONFIDENTIAL macro. This will format the cells a specific colour that is identified by the AER's database which in turn marks that information as confidential. -To reverse this, select the cell or cells and run the Return selection to NON-CONFIDENTIAL macro.
B11: RESPONSES | C11: Please return two (2) files to the AER: 1. A confidential version which must contain a complete set of all responses with confidential information marked using the Mark selection CONFIDENTIAL macro and which has been completed using the locked template file provided by the AER. 2. A public version with confidential information either removed completely or aggregated in some form together with writtten consent to disclose the public version of the response. Use the drop down box on the Business and other details worksheet to identify the file as either confidential ('consolidated') or public.
B13: AMENDMENTS | C13: If an NSP wishes to correct data previously submitted to the AER it should resubmit that data using the original completed submission as the starting point. Please make any necessary changes to the data. Data that is not being amended should be left unchanged. NSPs must identify the reason for the amendments in the Amendment Reason box on the Business and other details worksheet. NSPs may provide further details regarding any amendments in the Amendments worksheet. .
C14: NSP may use Amended Data macro to highlight cells that contain amended data. NB: if data is also CONFIDENTIAL, re-apply the Confidentiality macro after applying the Amended macro
C15: Please resubmit two (2) files - a confidential version and a public version of the amended submission to the AER
B17: UNITS OF MEASURE | C17: All amounts are to be unrounded and reported on a one for one basis: that is 1000 is to be entered as '1000'. Applicable units of measure may be identified in the table column headings or row descriptors.
B19: INPUT / NON-INPUT CELLS
D20: Yellow = Input cell (mandatory)
D21: Darker yellow = input cell (mandatory)
D22: Orange = input cell (if data available)
D23: Grey = Not applicable/No inputs required
D24: PLEASE DO NOT ENTER TEXT into cells that are to contain numeric data.
B27: NAVIGATION | C27: Many tables in the worksheets have been "grouped" to allow for easy navigation. To ungroup or group data use the outline symbols in the left margin (for Row groupings) or above the columns (for column groupings).

Sheet CONTENTS
B1: =INDEX(dms_Worksheet_List,MATCH(dms_Model,dms_Model_List)) -> HISTORICAL ANNUAL REPORTING
B2: =INDEX(dms_TradingNameFull_List,MATCH(dms_TradingName,dms_TradingName_List)) -> Australian Gas Networks Limited (reporting data for SA)
B3: =dms_Header_Span -> 2014-15 to 2018-19
C7: CONTENTS
C9: SUBMISSION | D9: Business & other details
C11: EXPENDITURE | D11: E2. Mains Repex
D12: E3. Mains Augex
D13: E4. Meter replacement
D14: E5. New Connections
D15: E6. Non-network
D16: E10. Overheads
D17: E12. ICT
D18: E13. Other capex
C20: NETWORK | D20: N2. Network characteristcs
C22: ADMIN | D22: Additional disclosures

Sheet Business & other details
V1: =INDEX(dms_Worksheet_List,MATCH(dms_Model,dms_Model_List)) -> HISTORICAL ANNUAL REPORTING
V2: =INDEX(dms_TradingNameFull_List,MATCH(dms_TradingName,dms_TradingName_List)) -> Australian Gas Networks Limited (reporting data for SA)
V3: =dms_Header_Span -> 2014-15 to 2018-19
V4: BUSINESS & OTHER DETAILS
V6: INSTRUCTIONS
V7: Complete the following business details regulatory template before entering data or values in any other regulatory template. This regulatory template is linked to other cells within the spreadsheet and automatically generates column headings and conditional formatting to distinguish business specific input and non-input cells.
Q9: SUBMISSION PARTICULARS INPUT SHEET
V12: ENTITY DETAILS
V14: Business Name
V16: Short name | AL16: AGN (SA)
V17: ACN/ABN | AL17: =INDEX(dms_ABN_List,MATCH(dms_TradingName,dms_TradingName_List)) -> 19078551685
V21: Business Address | BQ21: Postal Address
V23: Address 1 | AL23: Level 6 400 King William Street | BI23: Address 1 | BQ23: PO Box 6468 Halifax Street
V24: Address 2 | AL24: =IF(ISBLANK(INDEX(dms_Addr2_List,MATCH(dms_TradingName,dms_TradingName_List))),"",(INDEX(dms_Addr2_List,MATCH(dms_TradingName,dms_TradingName_List)))) -> 400 King William Street | BI24: Address 2 | BQ24: =IF(ISBLANK(INDEX(dms_PAddr2_List,MATCH(dms_TradingName,dms_TradingName_List))),"",(INDEX(dms_PAddr2_List,MATCH(dms_TradingName,dms_TradingName_List)))) -> Halifax Street
V25: Suburb | AL25: ADELAIDE | BI25: Suburb | BQ25: ADELAIDE
V26: State | AL26: =INDEX(dms_State_List,MATCH(dms_TradingName,dms_TradingName_List)) -> SA | AV26: Post code | AX26: 5000 | BI26: State | BQ26: =INDEX(dms_PState_List,MATCH(dms_TradingName,dms_TradingName_List)) -> SA | CA26: Post code | CC26: 5000
BA28: `
V30: Contact Names
V32: Name | AL32: Peter Bucki | BI32: Name | BQ32: -- enter name --
V33: Phone | AL33: 08 8418 1112 | BI33: Phone | BQ33: -- enter phone number --
V34: Email | AL34: peter.bucki@agig.com.au | BI34: Email | BQ34: -- enter email address --
Q39: REGULATORY PERIODS
Z42: Forthcoming period | AL42: 2021-22 | AU42: =FRCP_y2 -> 2022-23 | BD42: =FRCP_y3 -> 2023-24 | BM42: =FRCP_y4 -> 2024-25 | BV42: =FRCP_y5 -> 2025-26
AL43: =FRCP_y6 -> 2026-27 | AU43: =FRCP_y7 -> 2027-28 | BD43: =FRCP_y8 -> 2028-29 | BM43: =FRCP_y9 -> 2029-30 | BV43: =FRCP_y10 -> 2030-31
AL44: =FRCP_y11 -> 2031-32 | AU44: =FRCP_y12 -> 2032-33 | BD44: =FRCP_y13 -> 2033-34 | BM44: =FRCP_y14 -> 2034-35 | BV44: =FRCP_y15 -> 2035-36
X46: RESETS | Z46: Current period | AL46: =CRCP_y1 -> 2016-17 | AU46: =CRCP_y2 -> 2017-18 | BD46: =CRCP_y3 -> 2018-19 | BM46: =CRCP_y4 -> 2019-20 | BV46: =CRCP_y5 -> 2020-21
AL47: =CRCP_y6 -> 2021-22 | AU47: =CRCP_y7 -> 2022-23 | BD47: =CRCP_y8 -> 2023-24 | BM47: =CRCP_y9 -> 2024-25 | BV47: =CRCP_y10 -> 2025-26
AL48: =CRCP_y11 -> 2026-27 | AU48: =CRCP_y12 -> 2027-28 | BD48: =CRCP_y13 -> 2028-29 | BM48: =CRCP_y14 -> 2029-30 | BV48: =CRCP_y15 -> 2030-31
Z50: Previous period | AL50: =PRCP_y1 -> 2011-12 | AU50: =PRCP_y2 -> 2012-13 | BD50: =PRCP_y3 -> 2013-14 | BM50: =PRCP_y4 -> 2014-15 | BV50: =PRCP_y5 -> 2015-16
AL51: =PRCP_y6 -> 2016-17 | AU51: =PRCP_y7 -> 2017-18 | BD51: =PRCP_y8 -> 2018-19 | BM51: =PRCP_y9 -> 2019-20 | BV51: =PRCP_y10 -> 2020-21
AL52: =PRCP_y11 -> 2021-22 | AU52: =PRCP_y12 -> 2022-23 | BD52: =PRCP_y13 -> 2023-24 | BM52: =PRCP_y14 -> 2024-25 | BV52: =PRCP_y15 -> 2025-26
Z54: Commencing year | AL54: 2014-15
X55: ANNUAL RINS
Z56: Final year | AL56: 2018-19
Q60: SUBMISSION DETAILS
Z62: RIN type | AL62: =INDIRECT(dms_Model) -> Annual Reporting
Z64: Source | AL64: Reporting
X66: THIS FILE | Z66: Data Quality | AL66: Consolidated
Z68: Confidentiality Status | AL68: Public
Z70: Amended RIN Amendment Reason | AL70: .
Z74: Submission Date | AL74: 2020-07-01 | BE74: Please enter date this file submitted to AER

Sheet E2. Mains Repex
B1: =INDEX(dms_Worksheet_List,MATCH(dms_Model,dms_Model_List)) -> HISTORICAL ANNUAL REPORTING
B2: =INDEX(dms_TradingNameFull_List,MATCH(dms_TradingName,dms_TradingName_List)) -> Australian Gas Distribution Co.
B3: =dms_Header_Span -> 2014-15 to 2018-19
B4: E2. MAINS REPLACEMENT
B7: Please list all projects here:
B8: Beaumont-CI Block
B9: Brahma Lodge-CI Block
B10: Christies Beach-CI Block
B11: Felixstow-CI Block
B12: Fulham-CI Block
B13: Fulham Gardens-CI Block
B14: Largs North BLOCK-CI Block
B15: Mansfield Park-CI Block
B16: Mt Gambier A-CI Block
B17: Mt Gambier B-CI Block
B18: Mt Gambier C-CI Block
B19: Newton CI-CI Block
B20: O'Sullivan's Beach-CI Block
B21: Seacombe Gardens/Oaklands-CI Block
B22: Unley Road-CI Block
B23: CBD-CI Block
B24: Miscellaneous projects-CI Block
B25: Ascot Park-HDPE Class 250
B26: Ascot Park A-HDPE Class 250
B27: Ascot Park A-HDPE Class 575
B28: Ashford-HDPE Class 250
B29: Broadview-HDPE Class 250
B30: Broadview A-HDPE Class 250
B31: Clarence Park-HDPE Class 250
B32: Collinswood HDPE-HDPE Class 250
B33: Collinswood HDPE-HDPE Class 575
B34: Croydon Park-HDPE Class 250
B35: Croydon Park-HDPE Class 575
B36: Enfield-HDPE Class 250
B37: Evandale-HDPE Class 250
B38: Everard Park-HDPE Class 250
B39: Grange-HDPE Class 250
B40: Highbury-HDPE Class 250
B41: Hillcrest-HDPE Class 250
B42: Holden Hill - Gilles Plains-HDPE Class 250
B43: Hove-HDPE Class 250
B44: Ingle Farm-HDPE Class 250
B45: Nailsworth -HDPE Class 250
B46: Newton PE-HDPE Class 250
B47: North Haven-HDPE Class 250
B48: Paradise - Athelstone-HDPE Class 250
B49: Paradise - Athelstone-HDPE Class 575
B50: Prospect Area A -HDPE Class 250
B51: Prospect Area A -HDPE Class 575
B52: Prospect Area B-HDPE Class 250
B53: Prospect Area C-HDPE Class 250
B54: Royal Park-HDPE Class 250
B55: Seaton-HDPE Class 250
B56: Sefton Park HDPE-HDPE Class 250
B57: South Plympton-HDPE Class 250
B58: South Plympton A-HDPE Class 250
B59: Surrey downs-HDPE Class 250
B60: Trinity Gardens-HDPE Class 250
B61: Trinity Gardens-HDPE Class 575
B62: HDPE_Reallocation-HDPE Class 250
B63: HDPE_Reallocation-HDPE Class 575
B64: Underdale-HDPE Class 250
B65: West Croydon-HDPE Class 250
B66: West Lakes -HDPE Class 250
B67: West Lakes Shore-HDPE Class 250
B68: Woodville Gardens-HDPE Class 250
B69: Woodville south-HDPE Class 250
B70: Aberfoyle Park-HDPE Class 575
B71: Allenby Gardens-HDPE Class 575
B72: Andrews Farm-HDPE Class 575
B73: Auldana-HDPE Class 575
B74: Blackwood-HDPE Class 575
B75: Brompton - Hindmarsh-HDPE Class 575
B76: Burnside-HDPE Class 575
B77: Clarence Gardens-HDPE Class 575
B78: Eden Hills-HDPE Class 575
B79: Edwardstown-HDPE Class 575
B80: Elizabeth downs-HDPE Class 575
B81: Elizabeth North-HDPE Class 575
B82: Elizabeth Park-HDPE Class 575
B83: Elizabeth Vale-HDPE Class 575
B84: Evanston Park-HDPE Class 575
B85: Fullarton-HDPE Class 575
B86: Gawler-HDPE Class 575
B87: Gawler East-HDPE Class 575
B88: Glengowrie HDPE-HDPE Class 575
B89: Glenunga-HDPE Class 575
B90: Glynde-HDPE Class 575
B91: Golden Grove-HDPE Class 575
B92: Gulfview Heights-HDPE Class 575
B93: Hackney-HDPE Class 575
B94: Kensington-HDPE Class 575
B95: Kings Park-HDPE Class 575
B96: Kurralta Park-HDPE Class 575
B97: Kurralta Park A-HDPE Class 575
B98: Malvern-HDPE Class 575
B99: Melrose Park-HDPE Class 575
B100: Morphett Vale-HDPE Class 575
B101: Morphettville-HDPE Class 575
B102: Myrtle Bank-HDPE Class 575
B103: Norwood HDPE-HDPE Class 575
B104: Norwood A-HDPE Class 575
B105: Nuriootpa-HDPE Class 575
B106: Parafield Gardens-HDPE Class 575
B107: Parkside-HDPE Class 575
B108: Pennington-HDPE Class 575
B109: Peterborough-HDPE Class 575
B110: Salisbury Heights-HDPE Class 575
B111: Salisbury Heights A-HDPE Class 575
B112: Smithfield HDPE-HDPE Class 575
B113: St Peters HDPE-HDPE Class 575
B114: Torrens Park-HDPE Class 575
B115: Torrens Park A-HDPE Class 575
B116: Unley / Hyde Park -HDPE Class 575
B117: Unley A-HDPE Class 575
B118: Walkerville-HDPE Class 575
B119: Wayville-HDPE Class 575
B120: Westbourne Park-HDPE Class 575
B121: Willaston-HDPE Class 575
B122: Woodcroft-HDPE Class 575
B123: Wynn Vale-HDPE Class 575
B124: Trunk PI 1415 - Sals HW & WLC-Trunk PI
B125: MRP 1314 - West Terrace-Trunk PI
B126: Trunk CL16 - Anzac Hway-Trunk PI
B127: Trunk CL17 Philip HWYElizabeth-Trunk PI
B128: Trunk CL17 Victoria Sq-Trunk PI
B129: Trunk CL15 - Morphett Road-Trunk SIB
B130: Trunk CL17 Feed Works-Trunk SIB
B131: Trunk CL16 Waterloo Cnr Rd (2)-Trunk SIB
B132: Trunk CL17 -Salisbury Highway-Trunk SIB
B133: Trunk CL17 Exeter Tr &Chief St-Trunk SIB
B134: Trunk CL18 - Brooker Tce-Trunk SIB
B135: Trunk CL18 - Hancock Road-Trunk SIB
B136: Trunk CL18 - OG Road-Trunk SIB
B137: Trunk CL19 - Churchill Road-Trunk SIB
B138: Assorted proactive Trunk-Trunk PI
B139: Assorted proactive Trunk-Trunk SIB
B140: Assorted proactive piecemeal PI-Piecemeal
B141: Assorted reactive piecemeal-Piecemeal
B147: E2.1 - CAPEX
B148: E2.1.1 - PROACTIVE - BY PROJECT
D149: EXPENDITURE
D150: $0's
D151: =dms_y1 -> 2014-15 | E151: =dms_y2 -> 2015-16 | F151: =dms_y3 -> 2016-17 | G151: =dms_y4 -> 2017-18 | H151: =dms_y5 -> 2018-19
B152: A. DIRECT INTERNAL LABOUR EXPENDITURE
B153: =IF(B8=0,"",B8) -> Beaumont-CI Block | D153: 0 | E153: 0 | F153: 0 | G153: 0 | H153: 0
B154: Brahma Lodge-CI Block | D154: 0 | E154: 0 | F154: 0 | G154: 0 | H154: 0
B155: Christies Beach-CI Block | D155: 0 | E155: 0 | F155: 0 | G155: 0 | H155: 0
B156: Felixstow-CI Block | D156: 0 | E156: 0 | F156: 0 | G156: 0 | H156: 0
B157: Fulham-CI Block | D157: 0 | E157: 0 | F157: 0 | G157: 0 | H157: 0
B158: Fulham Gardens-CI Block | D158: 0 | E158: 0 | F158: 0 | G158: 0 | H158: 0
B159: Largs North BLOCK-CI Block | D159: 0 | E159: 0 | F159: 0 | G159: 0 | H159: 0
B160: Mansfield Park-CI Block | D160: 0 | E160: 0 | F160: 0 | G160: 0 | H160: 0
B161: Mt Gambier A-CI Block | D161: 0 | E161: 0 | F161: 0 | G161: 0 | H161: 0
B162: Mt Gambier B-CI Block | D162: 0 | E162: 0 | F162: 0 | G162: 0 | H162: 0
B163: Mt Gambier C-CI Block | D163: 0 | E163: 0 | F163: 0 | G163: 0 | H163: 0
B164: Newton CI-CI Block | D164: 0 | E164: 0 | F164: 0 | G164: 0 | H164: 0
B165: O'Sullivan's Beach-CI Block | D165: 0 | E165: 0 | F165: 0 | G165: 0 | H165: 0
B166: Seacombe Gardens/Oaklands-CI Block | D166: 0 | E166: 0 | F166: 0 | G166: 0 | H166: 0
B167: Unley Road-CI Block | D167: 0 | E167: 0 | F167: 0 | G167: 0 | H167: 0
B168: CBD-CI Block | D168: 0 | E168: 0 | F168: 0 | G168: 0 | H168: 0
B169: Miscellaneous projects-CI Block | D169: 0 | E169: 0 | F169: 0 | G169: 0 | H169: 0
B170: Ascot Park-HDPE Class 250 | D170: 0 | E170: 0 | F170: 0 | G170: 0 | H170: 0
B171: Ascot Park A-HDPE Class 250 | D171: 0 | E171: 0 | F171: 0 | G171: 0 | H171: 0
B172: Ascot Park A-HDPE Class 575 | D172: 0 | E172: 0 | F172: 0 | G172: 0 | H172: 0
B173: Ashford-HDPE Class 250 | D173: 0 | E173: 0 | F173: 0 | G173: 0 | H173: 0
B174: Broadview-HDPE Class 250 | D174: 0 | E174: 0 | F174: 0 | G174: 0 | H174: 0
B175: Broadview A-HDPE Class 250 | D175: 0 | E175: 0 | F175: 0 | G175: 0 | H175: 0
B176: Clarence Park-HDPE Class 250 | D176: 0 | E176: 0 | F176: 0 | G176: 0 | H176: 0
B177: Collinswood HDPE-HDPE Class 250 | D177: 0 | E177: 0 | F177: 0 | G177: 0 | H177: 0
B178: Collinswood HDPE-HDPE Class 575 | D178: 0 | E178: 0 | F178: 0 | G178: 0 | H178: 0
B179: Croydon Park-HDPE Class 250 | D179: 0 | E179: 0 | F179: 0 | G179: 0 | H179: 0
B180: Croydon Park-HDPE Class 575 | D180: 0 | E180: 0 | F180: 0 | G180: 0 | H180: 0
B181: Enfield-HDPE Class 250 | D181: 0 | E181: 0 | F181: 0 | G181: 0 | H181: 0
B182: Evandale-HDPE Class 250 | D182: 0 | E182: 0 | F182: 0 | G182: 0 | H182: 0
B183: Everard Park-HDPE Class 250 | D183: 0 | E183: 0 | F183: 0 | G183: 0 | H183: 0
B184: Grange-HDPE Class 250 | D184: 0 | E184: 0 | F184: 0 | G184: 0 | H184: 0
B185: =IF(B40=0,"",B40) -> Highbury-HDPE Class 250 | D185: 0 | E185: 0 | F185: 0 | G185: 0 | H185: 0
B186: Hillcrest-HDPE Class 250 | D186: 0 | E186: 0 | F186: 0 | G186: 0 | H186: 0
B187: Holden Hill - Gilles Plains-HDPE Class 250 | D187: 0 | E187: 0 | F187: 0 | G187: 0 | H187: 0
B188: Hove-HDPE Class 250 | D188: 0 | E188: 0 | F188: 0 | G188: 0 | H188: 0
B189: Ingle Farm-HDPE Class 250 | D189: 0 | E189: 0 | F189: 0 | G189: 0 | H189: 0
B190: Nailsworth -HDPE Class 250 | D190: 0 | E190: 0 | F190: 0 | G190: 0 | H190: 0
B191: Newton PE-HDPE Class 250 | D191: 0 | E191: 0 | F191: 0 | G191: 0 | H191: 0
B192: North Haven-HDPE Class 250 | D192: 0 | E192: 0 | F192: 0 | G192: 0 | H192: 0
B193: Paradise - Athelstone-HDPE Class 250 | D193: 0 | E193: 0 | F193: 0 | G193: 0 | H193: 0
B194: Paradise - Athelstone-HDPE Class 575 | D194: 0 | E194: 0 | F194: 0 | G194: 0 | H194: 0
B195: Prospect Area A -HDPE Class 250 | D195: 0 | E195: 0 | F195: 0 | G195: 0 | H195: 0
B196: Prospect Area A -HDPE Class 575 | D196: 0 | E196: 0 | F196: 0 | G196: 0 | H196: 0
B197: Prospect Area B-HDPE Class 250 | D197: 0 | E197: 0 | F197: 0 | G197: 0 | H197: 0
B198: Prospect Area C-HDPE Class 250 | D198: 0 | E198: 0 | F198: 0 | G198: 0 | H198: 0
B199: Royal Park-HDPE Class 250 | D199: 0 | E199: 0 | F199: 0 | G199: 0 | H199: 0
B200: Seaton-HDPE Class 250 | D200: 0 | E200: 0 | F200: 0 | G200: 0 | H200: 0
B201: Sefton Park HDPE-HDPE Class 250 | D201: 0 | E201: 0 | F201: 0 | G201: 0 | H201: 0
B202: South Plympton-HDPE Class 250 | D202: 0 | E202: 0 | F202: 0 | G202: 0 | H202: 0
B203: South Plympton A-HDPE Class 250 | D203: 0 | E203: 0 | F203: 0 | G203: 0 | H203: 0
C204: Total | D204: =SUM(D153:D203) -> 0 | E204: =SUM(E153:E203) -> 0 | F204: =SUM(F153:F203) -> 0 | G204: =SUM(G153:G203) -> 0 | H204: =SUM(H153:H203) -> 0
B206: B. DIRECT CONTRACTOR EXPENDITURE
D207: EXPENDITURE
D208: $0's
... 825 more rows

Sheet E3. Mains Augex
B1: =INDEX(dms_Worksheet_List,MATCH(dms_Model,dms_Model_List)) -> HISTORICAL ANNUAL REPORTING
B2: =INDEX(dms_TradingNameFull_List,MATCH(dms_TradingName,dms_TradingName_List)) -> Australian Gas Networks Limited (reporting data for SA)
B3: =dms_Header_Span -> 2014-15 to 2018-19
B4: E3. MAINS AUGMENTATION
B7: Please list all projects here:
B8: 3015 MAJOR PROJECTS - MURRAY BRIDGE
B10: 3065 MAJOR PROJECTS - ADELAIDE CBD HP MAINS EXT EAST
B11: 3038 MAJOR PROJECTS - SEAFORD STAGE 2
B13: AUGMENTATION PROJECTS <$500K
B60: E3.1 - CAPEX BY PROJECT
B61: A. DIRECT INTERNAL LABOUR EXPENDITURE
C62: EXPENDITURE
C63: $0's
C64: =dms_y1 -> 2014-15 | D64: =dms_y2 -> 2015-16 | E64: =dms_y3 -> 2016-17 | F64: =dms_y4 -> 2017-18 | G64: =dms_y5 -> 2018-19
B65: =IF(ISBLANK(dms_E3_Projects_01),"",dms_E3_Projects_01) -> 3015 MAJOR PROJECTS - MURRAY BRIDGE | C65: 0 | D65: 0 | E65: 0 | F65: 0 | G65: 0
B66: =IF(ISBLANK(dms_E3_Projects_02),"",dms_E3_Projects_02) ->  | C66: 0 | D66: 0 | E66: 0 | F66: 0 | G66: 0
B67: =IF(ISBLANK(dms_E3_Projects_03),"",dms_E3_Projects_03) -> 3065 MAJOR PROJECTS - ADELAIDE CBD HP MAINS EXT EAST | C67: 0 | D67: 0 | E67: 0 | F67: 0 | G67: 0
B68: =IF(ISBLANK(dms_E3_Projects_04),"",dms_E3_Projects_04) -> 3038 MAJOR PROJECTS - SEAFORD STAGE 2 | C68: 0 | D68: 0 | E68: 0 | F68: 0 | G68: 0
B69: =IF(ISBLANK(dms_E3_Projects_05),"",dms_E3_Projects_05) ->  | C69: 0 | D69: 0 | E69: 0 | F69: 0 | G69: 0
B70: =IF(ISBLANK(dms_E3_Projects_06),"",dms_E3_Projects_06) -> AUGMENTATION PROJECTS <$500K | C70: 0 | D70: 0 | E70: 0 | F70: 0 | G70: 0
B71: =IF(ISBLANK(dms_E3_Projects_07),"",dms_E3_Projects_07) ->  | C71: 0 | D71: 0 | E71: 0 | F71: 0 | G71: 0
B72: =IF(ISBLANK(dms_E3_Projects_08),"",dms_E3_Projects_08) ->  | C72: 0 | D72: 0 | E72: 0 | F72: 0 | G72: 0
B73: =IF(ISBLANK(dms_E3_Projects_09),"",dms_E3_Projects_09) ->  | C73: 0 | D73: 0 | E73: 0 | F73: 0 | G73: 0
B74: =IF(ISBLANK(dms_E3_Projects_10),"",dms_E3_Projects_10) ->  | C74: 0 | D74: 0 | E74: 0 | F74: 0 | G74: 0
B75: =IF(ISBLANK(dms_E3_Projects_11),"",dms_E3_Projects_11) ->  | C75: 0 | D75: 0 | E75: 0 | F75: 0 | G75: 0
B76: =IF(ISBLANK(dms_E3_Projects_12),"",dms_E3_Projects_12) ->  | C76: 0 | D76: 0 | E76: 0 | F76: 0 | G76: 0
B77: =IF(ISBLANK(dms_E3_Projects_13),"",dms_E3_Projects_13) ->  | C77: 0 | D77: 0 | E77: 0 | F77: 0 | G77: 0
B78: =IF(ISBLANK(dms_E3_Projects_14),"",dms_E3_Projects_14) ->  | C78: 0 | D78: 0 | E78: 0 | F78: 0 | G78: 0
B79: =IF(ISBLANK(dms_E3_Projects_15),"",dms_E3_Projects_15) ->  | C79: 0 | D79: 0 | E79: 0 | F79: 0 | G79: 0
B80: =IF(ISBLANK(dms_E3_Projects_16),"",dms_E3_Projects_16) ->  | C80: 0 | D80: 0 | E80: 0 | F80: 0 | G80: 0
B81: =IF(ISBLANK(dms_E3_Projects_17),"",dms_E3_Projects_17) ->  | C81: 0 | D81: 0 | E81: 0 | F81: 0 | G81: 0
B82: =IF(ISBLANK(dms_E3_Projects_18),"",dms_E3_Projects_18) ->  | C82: 0 | D82: 0 | E82: 0 | F82: 0 | G82: 0
B83: =IF(ISBLANK(dms_E3_Projects_18),"",dms_E3_Projects_18) ->  | C83: 0 | D83: 0 | E83: 0 | F83: 0 | G83: 0
B84: =IF(ISBLANK(dms_E3_Projects_19),"",dms_E3_Projects_19) ->  | C84: 0 | D84: 0 | E84: 0 | F84: 0 | G84: 0
B85: =IF(ISBLANK(dms_E3_Projects_20),"",dms_E3_Projects_20) ->  | C85: 0 | D85: 0 | E85: 0 | F85: 0 | G85: 0
B86: =IF(ISBLANK(dms_E3_Projects_21),"",dms_E3_Projects_21) ->  | C86: 0 | D86: 0 | E86: 0 | F86: 0 | G86: 0
B87: =IF(ISBLANK(dms_E3_Projects_22),"",dms_E3_Projects_22) ->  | C87: 0 | D87: 0 | E87: 0 | F87: 0 | G87: 0
B88: =IF(ISBLANK(dms_E3_Projects_23),"",dms_E3_Projects_23) ->  | C88: 0 | D88: 0 | E88: 0 | F88: 0 | G88: 0
B89: =IF(ISBLANK(dms_E3_Projects_24),"",dms_E3_Projects_24) ->  | C89: 0 | D89: 0 | E89: 0 | F89: 0 | G89: 0
B90: =IF(ISBLANK(dms_E3_Projects_25),"",dms_E3_Projects_26) ->  | C90: 0 | D90: 0 | E90: 0 | F90: 0 | G90: 0
B91: =IF(ISBLANK(dms_E3_Projects_27),"",dms_E3_Projects_27) ->  | C91: 0 | D91: 0 | E91: 0 | F91: 0 | G91: 0
B92: =IF(ISBLANK(dms_E3_Projects_28),"",dms_E3_Projects_28) ->  | C92: 0 | D92: 0 | E92: 0 | F92: 0 | G92: 0
B93: =IF(ISBLANK(dms_E3_Projects_29),"",dms_E3_Projects_29) ->  | C93: 0 | D93: 0 | E93: 0 | F93: 0 | G93: 0
B94: =IF(ISBLANK(dms_E3_Projects_30),"",dms_E3_Projects_30) ->  | C94: 0 | D94: 0 | E94: 0 | F94: 0 | G94: 0
B95: =IF(ISBLANK(dms_E3_Projects_31),"",dms_E3_Projects_31) ->  | C95: 0 | D95: 0 | E95: 0 | F95: 0 | G95: 0
B96: =IF(ISBLANK(dms_E3_Projects_32),"",dms_E3_Projects_32) ->  | C96: 0 | D96: 0 | E96: 0 | F96: 0 | G96: 0
B97: =IF(ISBLANK(dms_E3_Projects_33),"",dms_E3_Projects_33) ->  | C97: 0 | D97: 0 | E97: 0 | F97: 0 | G97: 0
B98: =IF(ISBLANK(dms_E3_Projects_34),"",dms_E3_Projects_34) ->  | C98: 0 | D98: 0 | E98: 0 | F98: 0 | G98: 0
B99: =IF(ISBLANK(dms_E3_Projects_35),"",dms_E3_Projects_35) ->  | C99: 0 | D99: 0 | E99: 0 | F99: 0 | G99: 0
B100: =IF(ISBLANK(dms_E3_Projects_36),"",dms_E3_Projects_36) ->  | C100: 0 | D100: 0 | E100: 0 | F100: 0 | G100: 0
B101: =IF(ISBLANK(dms_E3_Projects_37),"",dms_E3_Projects_37) ->  | C101: 0 | D101: 0 | E101: 0 | F101: 0 | G101: 0
B102: =IF(ISBLANK(dms_E3_Projects_38),"",dms_E3_Projects_38) ->  | C102: 0 | D102: 0 | E102: 0 | F102: 0 | G102: 0
B103: =IF(ISBLANK(dms_E3_Projects_39),"",dms_E3_Projects_39) ->  | C103: 0 | D103: 0 | E103: 0 | F103: 0 | G103: 0
B104: =IF(ISBLANK(dms_E3_Projects_40),"",dms_E3_Projects_40) ->  | C104: 0 | D104: 0 | E104: 0 | F104: 0 | G104: 0
B105: =IF(ISBLANK(dms_E3_Projects_41),"",dms_E3_Projects_41) ->  | C105: 0 | D105: 0 | E105: 0 | F105: 0 | G105: 0
B106: =IF(ISBLANK(dms_E3_Projects_42),"",dms_E3_Projects_42) ->  | C106: 0 | D106: 0 | E106: 0 | F106: 0 | G106: 0
B107: =IF(ISBLANK(dms_E3_Projects_43),"",dms_E3_Projects_43) ->  | C107: 0 | D107: 0 | E107: 0 | F107: 0 | G107: 0
B108: =IF(ISBLANK(dms_E3_Projects_44),"",dms_E3_Projects_44) ->  | C108: 0 | D108: 0 | E108: 0 | F108: 0 | G108: 0
B109: =IF(ISBLANK(dms_E3_Projects_45),"",dms_E3_Projects_45) ->  | C109: 0 | D109: 0 | E109: 0 | F109: 0 | G109: 0
B110: =IF(ISBLANK(dms_E3_Projects_46),"",dms_E3_Projects_46) ->  | C110: 0 | D110: 0 | E110: 0 | F110: 0 | G110: 0
B111: =IF(ISBLANK(dms_E3_Projects_47),"",dms_E3_Projects_47) ->  | C111: 0 | D111: 0 | E111: 0 | F111: 0 | G111: 0
B112: =IF(ISBLANK(dms_E3_Projects_48),"",dms_E3_Projects_48) ->  | C112: 0 | D112: 0 | E112: 0 | F112: 0 | G112: 0
B113: =IF(ISBLANK(dms_E3_Projects_49),"",dms_E3_Projects_49) ->  | C113: 0 | D113: 0 | E113: 0 | F113: 0 | G113: 0
B114: =IF(ISBLANK(dms_E3_Projects_50),"",dms_E3_Projects_50) ->  | C114: 0 | D114: 0 | E114: 0 | F114: 0 | G114: 0
B115: Aggregate of other projects with total expenditure of less than $500,000 | C115: 0 | D115: 0 | E115: 0 | F115: 0 | G115: 0
B116: Total | C116: =SUM(C65:C115) -> 0 | D116: =SUM(D65:D115) -> 0 | E116: =SUM(E65:E115) -> 0 | F116: =SUM(F65:F115) -> 0 | G116: =SUM(G65:G115) -> 0
B118: B. DIRECT CONTRACTOR EXPENDITURE
C119: EXPENDITURE
C120: $0's
C121: =dms_y1 -> 2014-15 | D121: =dms_y2 -> 2015-16 | E121: =dms_y3 -> 2016-17 | F121: =dms_y4 -> 2017-18 | G121: =dms_y5 -> 2018-19
B122: =IF(ISBLANK(dms_E3_Projects_01),"",dms_E3_Projects_01) -> 3015 MAJOR PROJECTS - MURRAY BRIDGE
B123: =IF(ISBLANK(dms_E3_Projects_02),"",dms_E3_Projects_02) -> 
B124: =IF(ISBLANK(dms_E3_Projects_03),"",dms_E3_Projects_03) -> 3065 MAJOR PROJECTS - ADELAIDE CBD HP MAINS EXT EAST
B125: =IF(ISBLANK(dms_E3_Projects_04),"",dms_E3_Projects_04) -> 3038 MAJOR PROJECTS - SEAFORD STAGE 2
B126: =IF(ISBLANK(dms_E3_Projects_05),"",dms_E3_Projects_05) -> 
B127: =IF(ISBLANK(dms_E3_Projects_06),"",dms_E3_Projects_06) -> AUGMENTATION PROJECTS <$500K
B128: =IF(ISBLANK(dms_E3_Projects_07),"",dms_E3_Projects_07) ->  | C128: 0 | D128: 0 | E128: 0 | F128: 0 | G128: 0
B129: =IF(ISBLANK(dms_E3_Projects_08),"",dms_E3_Projects_08) ->  | C129: 0 | D129: 0 | E129: 0 | F129: 0 | G129: 0
B130: =IF(ISBLANK(dms_E3_Projects_09),"",dms_E3_Projects_09) ->  | C130: 0 | D130: 0 | E130: 0 | F130: 0 | G130: 0
B131: =IF(ISBLANK(dms_E3_Projects_10),"",dms_E3_Projects_10) ->  | C131: 0 | D131: 0 | E131: 0 | F131: 0 | G131: 0
B132: =IF(ISBLANK(dms_E3_Projects_11),"",dms_E3_Projects_11) ->  | C132: 0 | D132: 0 | E132: 0 | F132: 0 | G132: 0
B133: =IF(ISBLANK(dms_E3_Projects_12),"",dms_E3_Projects_12) ->  | C133: 0 | D133: 0 | E133: 0 | F133: 0 | G133: 0
B134: =IF(ISBLANK(dms_E3_Projects_13),"",dms_E3_Projects_13) ->  | C134: 0 | D134: 0 | E134: 0 | F134: 0 | G134: 0
B135: =IF(ISBLANK(dms_E3_Projects_14),"",dms_E3_Projects_14) ->  | C135: 0 | D135: 0 | E135: 0 | F135: 0 | G135: 0
B136: =IF(ISBLANK(dms_E3_Projects_15),"",dms_E3_Projects_15) ->  | C136: 0 | D136: 0 | E136: 0 | F136: 0 | G136: 0
B137: =IF(ISBLANK(dms_E3_Projects_16),"",dms_E3_Projects_16) ->  | C137: 0 | D137: 0 | E137: 0 | F137: 0 | G137: 0
B138: =IF(ISBLANK(dms_E3_Projects_17),"",dms_E3_Projects_17) ->  | C138: 0 | D138: 0 | E138: 0 | F138: 0 | G138: 0
B139: =IF(ISBLANK(dms_E3_Projects_18),"",dms_E3_Projects_18) ->  | C139: 0 | D139: 0 | E139: 0 | F139: 0 | G139: 0
B140: =IF(ISBLANK(dms_E3_Projects_18),"",dms_E3_Projects_18) ->  | C140: 0 | D140: 0 | E140: 0 | F140: 0 | G140: 0
B141: =IF(ISBLANK(dms_E3_Projects_19),"",dms_E3_Projects_19) ->  | C141: 0 | D141: 0 | E141: 0 | F141: 0 | G141: 0
B142: =IF(ISBLANK(dms_E3_Projects_20),"",dms_E3_Projects_20) ->  | C142: 0 | D142: 0 | E142: 0 | F142: 0 | G142: 0
B143: =IF(ISBLANK(dms_E3_Projects_21),"",dms_E3_Projects_21) ->  | C143: 0 | D143: 0 | E143: 0 | F143: 0 | G143: 0
B144: =IF(ISBLANK(dms_E3_Projects_22),"",dms_E3_Projects_22) ->  | C144: 0 | D144: 0 | E144: 0 | F144: 0 | G144: 0
B145: =IF(ISBLANK(dms_E3_Projects_23),"",dms_E3_Projects_23) ->  | C145: 0 | D145: 0 | E145: 0 | F145: 0 | G145: 0
B146: =IF(ISBLANK(dms_E3_Projects_24),"",dms_E3_Projects_24) ->  | C146: 0 | D146: 0 | E146: 0 | F146: 0 | G146: 0
B147: =IF(ISBLANK(dms_E3_Projects_25),"",dms_E3_Projects_26) ->  | C147: 0 | D147: 0 | E147: 0 | F147: 0 | G147: 0
B148: =IF(ISBLANK(dms_E3_Projects_27),"",dms_E3_Projects_27) ->  | C148: 0 | D148: 0 | E148: 0 | F148: 0 | G148: 0
B149: =IF(ISBLANK(dms_E3_Projects_28),"",dms_E3_Projects_28) ->  | C149: 0 | D149: 0 | E149: 0 | F149: 0 | G149: 0
B150: =IF(ISBLANK(dms_E3_Projects_29),"",dms_E3_Projects_29) ->  | C150: 0 | D150: 0 | E150: 0 | F150: 0 | G150: 0
B151: =IF(ISBLANK(dms_E3_Projects_30),"",dms_E3_Projects_30) ->  | C151: 0 | D151: 0 | E151: 0 | F151: 0 | G151: 0
B152: =IF(ISBLANK(dms_E3_Projects_31),"",dms_E3_Projects_31) ->  | C152: 0 | D152: 0 | E152: 0 | F152: 0 | G152: 0
B153: =IF(ISBLANK(dms_E3_Projects_32),"",dms_E3_Projects_32) ->  | C153: 0 | D153: 0 | E153: 0 | F153: 0 | G153: 0
B154: =IF(ISBLANK(dms_E3_Projects_33),"",dms_E3_Projects_33) ->  | C154: 0 | D154: 0 | E154: 0 | F154: 0 | G154: 0
B155: =IF(ISBLANK(dms_E3_Projects_34),"",dms_E3_Projects_34) ->  | C155: 0 | D155: 0 | E155: 0 | F155: 0 | G155: 0
B156: =IF(ISBLANK(dms_E3_Projects_35),"",dms_E3_Projects_35) ->  | C156: 0 | D156: 0 | E156: 0 | F156: 0 | G156: 0
B157: =IF(ISBLANK(dms_E3_Projects_36),"",dms_E3_Projects_36) ->  | C157: 0 | D157: 0 | E157: 0 | F157: 0 | G157: 0
B158: =IF(ISBLANK(dms_E3_Projects_37),"",dms_E3_Projects_37) ->  | C158: 0 | D158: 0 | E158: 0 | F158: 0 | G158: 0
B159: =IF(ISBLANK(dms_E3_Projects_38),"",dms_E3_Projects_38) ->  | C159: 0 | D159: 0 | E159: 0 | F159: 0 | G159: 0
B160: =IF(ISBLANK(dms_E3_Projects_39),"",dms_E3_Projects_39) ->  | C160: 0 | D160: 0 | E160: 0 | F160: 0 | G160: 0
B161: =IF(ISBLANK(dms_E3_Projects_40),"",dms_E3_Projects_40) ->  | C161: 0 | D161: 0 | E161: 0 | F161: 0 | G161: 0
B162: =IF(ISBLANK(dms_E3_Projects_41),"",dms_E3_Projects_41) ->  | C162: 0 | D162: 0 | E162: 0 | F162: 0 | G162: 0
B163: =IF(ISBLANK(dms_E3_Projects_42),"",dms_E3_Projects_42) ->  | C163: 0 | D163: 0 | E163: 0 | F163: 0 | G163: 0
B164: =IF(ISBLANK(dms_E3_Projects_43),"",dms_E3_Projects_43) ->  | C164: 0 | D164: 0 | E164: 0 | F164: 0 | G164: 0
B165: =IF(ISBLANK(dms_E3_Projects_44),"",dms_E3_Projects_44) ->  | C165: 0 | D165: 0 | E165: 0 | F165: 0 | G165: 0
B166: =IF(ISBLANK(dms_E3_Projects_45),"",dms_E3_Projects_45) ->  | C166: 0 | D166: 0 | E166: 0 | F166: 0 | G166: 0
B167: =IF(ISBLANK(dms_E3_Projects_46),"",dms_E3_Projects_46) ->  | C167: 0 | D167: 0 | E167: 0 | F167: 0 | G167: 0
B168: =IF(ISBLANK(dms_E3_Projects_47),"",dms_E3_Projects_47) ->  | C168: 0 | D168: 0 | E168: 0 | F168: 0 | G168: 0
B169: =IF(ISBLANK(dms_E3_Projects_48),"",dms_E3_Projects_48) ->  | C169: 0 | D169: 0 | E169: 0 | F169: 0 | G169: 0
B170: =IF(ISBLANK(dms_E3_Projects_49),"",dms_E3_Projects_49) ->  | C170: 0 | D170: 0 | E170: 0 | F170: 0 | G170: 0
B171: =IF(ISBLANK(dms_E3_Projects_50),"",dms_E3_Projects_50) ->  | C171: 0 | D171: 0 | E171: 0 | F171: 0 | G171: 0
B172: Aggregate of other projects with total expenditure of less than $500,000 | C172: 0 | D172: 0 | E172: 0 | F172: 0 | G172: 0
B173: Total | C173: =SUM(C122:C172) -> 0 | D173: =SUM(D122:D172) -> 0 | E173: =SUM(E122:E172) -> 0 | F173: =SUM(F122:F172) -> 0 | G173: =SUM(G122:G172) -> 0
B175: C. OTHER INTERNAL DIRECT EXPENDITURE
C176: EXPENDITURE
C177: $0's
C178: =dms_y1 -> 2014-15 | D178: =dms_y2 -> 2015-16 | E178: =dms_y3 -> 2016-17 | F178: =dms_y4 -> 2017-18 | G178: =dms_y5 -> 2018-19
B179: =IF(ISBLANK(dms_E3_Projects_01),"",dms_E3_Projects_01) -> 3015 MAJOR PROJECTS - MURRAY BRIDGE | C179: 0 | D179: 0 | E179: 0 | F179: 0 | G179: 0
B180: =IF(ISBLANK(dms_E3_Projects_02),"",dms_E3_Projects_02) ->  | C180: 0 | D180: 0 | E180: 0 | F180: 0 | G180: 0
B181: =IF(ISBLANK(dms_E3_Projects_03),"",dms_E3_Projects_03) -> 3065 MAJOR PROJECTS - ADELAIDE CBD HP MAINS EXT EAST | C181: 0 | D181: 0 | E181: 0 | F181: 0 | G181: 0
B182: =IF(ISBLANK(dms_E3_Projects_04),"",dms_E3_Projects_04) -> 3038 MAJOR PROJECTS - SEAFORD STAGE 2 | C182: 0 | D182: 0 | E182: 0 | F182: 0 | G182: 0
B183: =IF(ISBLANK(dms_E3_Projects_05),"",dms_E3_Projects_05) ->  | C183: 0 | D183: 0 | E183: 0 | F183: 0 | G183: 0
B184: =IF(ISBLANK(dms_E3_Projects_06),"",dms_E3_Projects_06) -> AUGMENTATION PROJECTS <$500K | C184: 0 | D184: 0 | E184: 0 | F184: 0 | G184: 0
B185: =IF(ISBLANK(dms_E3_Projects_07),"",dms_E3_Projects_07) ->  | C185: 0 | D185: 0 | E185: 0 | F185: 0 | G185: 0
B186: =IF(ISBLANK(dms_E3_Projects_08),"",dms_E3_Projects_08) ->  | C186: 0 | D186: 0 | E186: 0 | F186: 0 | G186: 0
B187: =IF(ISBLANK(dms_E3_Projects_09),"",dms_E3_Projects_09) ->  | C187: 0 | D187: 0 | E187: 0 | F187: 0 | G187: 0
B188: =IF(ISBLANK(dms_E3_Projects_10),"",dms_E3_Projects_10) ->  | C188: 0 | D188: 0 | E188: 0 | F188: 0 | G188: 0
B189: =IF(ISBLANK(dms_E3_Projects_11),"",dms_E3_Projects_11) ->  | C189: 0 | D189: 0 | E189: 0 | F189: 0 | G189: 0
B190: =IF(ISBLANK(dms_E3_Projects_12),"",dms_E3_Projects_12) ->  | C190: 0 | D190: 0 | E190: 0 | F190: 0 | G190: 0
B191: =IF(ISBLANK(dms_E3_Projects_13),"",dms_E3_Projects_13) ->  | C191: 0 | D191: 0 | E191: 0 | F191: 0 | G191: 0
B192: =IF(ISBLANK(dms_E3_Projects_14),"",dms_E3_Projects_14) ->  | C192: 0 | D192: 0 | E192: 0 | F192: 0 | G192: 0
B193: =IF(ISBLANK(dms_E3_Projects_15),"",dms_E3_Projects_15) ->  | C193: 0 | D193: 0 | E193: 0 | F193: 0 | G193: 0
B194: =IF(ISBLANK(dms_E3_Projects_16),"",dms_E3_Projects_16) ->  | C194: 0 | D194: 0 | E194: 0 | F194: 0 | G194: 0
B195: =IF(ISBLANK(dms_E3_Projects_17),"",dms_E3_Projects_17) ->  | C195: 0 | D195: 0 | E195: 0 | F195: 0 | G195: 0
B196: =IF(ISBLANK(dms_E3_Projects_18),"",dms_E3_Projects_18) ->  | C196: 0 | D196: 0 | E196: 0 | F196: 0 | G196: 0
B197: =IF(ISBLANK(dms_E3_Projects_18),"",dms_E3_Projects_18) ->  | C197: 0 | D197: 0 | E197: 0 | F197: 0 | G197: 0
B198: =IF(ISBLANK(dms_E3_Projects_19),"",dms_E3_Projects_19) ->  | C198: 0 | D198: 0 | E198: 0 | F198: 0 | G198: 0
B199: =IF(ISBLANK(dms_E3_Projects_20),"",dms_E3_Projects_20) ->  | C199: 0 | D199: 0 | E199: 0 | F199: 0 | G199: 0
B200: =IF(ISBLANK(dms_E3_Projects_21),"",dms_E3_Projects_21) ->  | C200: 0 | D200: 0 | E200: 0 | F200: 0 | G200: 0
B201: =IF(ISBLANK(dms_E3_Projects_22),"",dms_E3_Projects_22) ->  | C201: 0 | D201: 0 | E201: 0 | F201: 0 | G201: 0
B202: =IF(ISBLANK(dms_E3_Projects_23),"",dms_E3_Projects_23) ->  | C202: 0 | D202: 0 | E202: 0 | F202: 0 | G202: 0
B203: =IF(ISBLANK(dms_E3_Projects_24),"",dms_E3_Projects_24) ->  | C203: 0 | D203: 0 | E203: 0 | F203: 0 | G203: 0
B204: =IF(ISBLANK(dms_E3_Projects_25),"",dms_E3_Projects_26) ->  | C204: 0 | D204: 0 | E204: 0 | F204: 0 | G204: 0
B205: =IF(ISBLANK(dms_E3_Projects_27),"",dms_E3_Projects_27) ->  | C205: 0 | D205: 0 | E205: 0 | F205: 0 | G205: 0
B206: =IF(ISBLANK(dms_E3_Projects_28),"",dms_E3_Projects_28) ->  | C206: 0 | D206: 0 | E206: 0 | F206: 0 | G206: 0
B207: =IF(ISBLANK(dms_E3_Projects_29),"",dms_E3_Projects_29) ->  | C207: 0 | D207: 0 | E207: 0 | F207: 0 | G207: 0
B208: =IF(ISBLANK(dms_E3_Projects_30),"",dms_E3_Projects_30) ->  | C208: 0 | D208: 0 | E208: 0 | F208: 0 | G208: 0
B209: =IF(ISBLANK(dms_E3_Projects_31),"",dms_E3_Projects_31) ->  | C209: 0 | D209: 0 | E209: 0 | F209: 0 | G209: 0
B210: =IF(ISBLANK(dms_E3_Projects_32),"",dms_E3_Projects_32) ->  | C210: 0 | D210: 0 | E210: 0 | F210: 0 | G210: 0
B211: =IF(ISBLANK(dms_E3_Projects_33),"",dms_E3_Projects_33) ->  | C211: 0 | D211: 0 | E211: 0 | F211: 0 | G211: 0
B212: =IF(ISBLANK(dms_E3_Projects_34),"",dms_E3_Projects_34) ->  | C212: 0 | D212: 0 | E212: 0 | F212: 0 | G212: 0
B213: =IF(ISBLANK(dms_E3_Projects_35),"",dms_E3_Projects_35) ->  | C213: 0 | D213: 0 | E213: 0 | F213: 0 | G213: 0
B214: =IF(ISBLANK(dms_E3_Projects_36),"",dms_E3_Projects_36) ->  | C214: 0 | D214: 0 | E214: 0 | F214: 0 | G214: 0
B215: =IF(ISBLANK(dms_E3_Projects_37),"",dms_E3_Projects_37) ->  | C215: 0 | D215: 0 | E215: 0 | F215: 0 | G215: 0
B216: =IF(ISBLANK(dms_E3_Projects_38),"",dms_E3_Projects_38) ->  | C216: 0 | D216: 0 | E216: 0 | F216: 0 | G216: 0
B217: =IF(ISBLANK(dms_E3_Projects_39),"",dms_E3_Projects_39) ->  | C217: 0 | D217: 0 | E217: 0 | F217: 0 | G217: 0
B218: =IF(ISBLANK(dms_E3_Projects_40),"",dms_E3_Projects_40) ->  | C218: 0 | D218: 0 | E218: 0 | F218: 0 | G218: 0
B219: =IF(ISBLANK(dms_E3_Projects_41),"",dms_E3_Projects_41) ->  | C219: 0 | D219: 0 | E219: 0 | F219: 0 | G219: 0
B220: =IF(ISBLANK(dms_E3_Projects_42),"",dms_E3_Projects_42) ->  | C220: 0 | D220: 0 | E220: 0 | F220: 0 | G220: 0
B221: =IF(ISBLANK(dms_E3_Projects_43),"",dms_E3_Projects_43) ->  | C221: 0 | D221: 0 | E221: 0 | F221: 0 | G221: 0
B222: =IF(ISBLANK(dms_E3_Projects_44),"",dms_E3_Projects_44) ->  | C222: 0 | D222: 0 | E222: 0 | F222: 0 | G222: 0
B223: =IF(ISBLANK(dms_E3_Projects_45),"",dms_E3_Projects_45) ->  | C223: 0 | D223: 0 | E223: 0 | F223: 0 | G223: 0
B224: =IF(ISBLANK(dms_E3_Projects_46),"",dms_E3_Projects_46) ->  | C224: 0 | D224: 0 | E224: 0 | F224: 0 | G224: 0
B225: =IF(ISBLANK(dms_E3_Projects_47),"",dms_E3_Projects_47) ->  | C225: 0 | D225: 0 | E225: 0 | F225: 0 | G225: 0
B226: =IF(ISBLANK(dms_E3_Projects_48),"",dms_E3_Projects_48) ->  | C226: 0 | D226: 0 | E226: 0 | F226: 0 | G226: 0
B227: =IF(ISBLANK(dms_E3_Projects_49),"",dms_E3_Projects_49) ->  | C227: 0 | D227: 0 | E227: 0 | F227: 0 | G227: 0
B228: =IF(ISBLANK(dms_E3_Projects_50),"",dms_E3_Projects_50) ->  | C228: 0 | D228: 0 | E228: 0 | F228: 0 | G228: 0
B229: Aggregate of other projects with total expenditure of less than $500,000 | C229: 0 | D229: 0 | E229: 0 | F229: 0 | G229: 0
B230: Total | C230: =SUM(C179:C229) -> 0 | D230: =SUM(D179:D229) -> 0 | E230: =SUM(E179:E229) -> 0 | F230: =SUM(F179:F229) -> 0 | G230: =SUM(G179:G229) -> 0
B232: D. TOTAL OVERHEAD EXPENDITURE
C233: EXPENDITURE
C234: $0's
C235: =dms_y1 -> 2014-15 | D235: =dms_y2 -> 2015-16 | E235: =dms_y3 -> 2016-17 | F235: =dms_y4 -> 2017-18 | G235: =dms_y5 -> 2018-19
B236: =IF(ISBLANK(dms_E3_Projects_01),"",dms_E3_Projects_01) -> 3015 MAJOR PROJECTS - MURRAY BRIDGE | C236: 0 | D236: 0 | E236: 0 | F236: 180180.1164 | G236: 106576.5523
B237: =IF(ISBLANK(dms_E3_Projects_02),"",dms_E3_Projects_02) ->  | C237: 0 | D237: 0 | E237: 0 | F237: 0 | G237: 0
B238: =IF(ISBLANK(dms_E3_Projects_03),"",dms_E3_Projects_03) -> 3065 MAJOR PROJECTS - ADELAIDE CBD HP MAINS EXT EAST | C238: 0 | D238: 0 | E238: 0 | F238: 4857.441412 | G238: 194377.2851
B239: =IF(ISBLANK(dms_E3_Projects_04),"",dms_E3_Projects_04) -> 3038 MAJOR PROJECTS - SEAFORD STAGE 2 | C239: 0 | D239: 527659.9267 | E239: 80216.47795 | F239: 75968.18633 | G239: 5414.900598
B240: =IF(ISBLANK(dms_E3_Projects_05),"",dms_E3_Projects_05) ->  | C240: 0 | D240: 0 | E240: 0 | F240: 0 | G240: 0
B241: =IF(ISBLANK(dms_E3_Projects_06),"",dms_E3_Projects_06) -> AUGMENTATION PROJECTS <$500K | C241: -46511.42941 | D241: 12981.94966 | E241: 564.7037746 | F241: 44233.45748 | G241: 37971.44852
B242: =IF(ISBLANK(dms_E3_Projects_07),"",dms_E3_Projects_07) ->  | C242: 0 | D242: 0 | E242: 0 | F242: 0 | G242: 0
B243: =IF(ISBLANK(dms_E3_Projects_08),"",dms_E3_Projects_08) ->  | C243: 0 | D243: 0 | E243: 0 | F243: 0 | G243: 0
B244: =IF(ISBLANK(dms_E3_Projects_09),"",dms_E3_Projects_09) ->  | C244: 0 | D244: 0 | E244: 0 | F244: 0 | G244: 0
B245: =IF(ISBLANK(dms_E3_Projects_10),"",dms_E3_Projects_10) ->  | C245: 0 | D245: 0 | E245: 0 | F245: 0 | G245: 0
B246: =IF(ISBLANK(dms_E3_Projects_11),"",dms_E3_Projects_11) ->  | C246: 0 | D246: 0 | E246: 0 | F246: 0 | G246: 0
B247: =IF(ISBLANK(dms_E3_Projects_12),"",dms_E3_Projects_12) ->  | C247: 0 | D247: 0 | E247: 0 | F247: 0 | G247: 0
B248: =IF(ISBLANK(dms_E3_Projects_13),"",dms_E3_Projects_13) ->  | C248: 0 | D248: 0 | E248: 0 | F248: 0 | G248: 0
B249: =IF(ISBLANK(dms_E3_Projects_14),"",dms_E3_Projects_14) ->  | C249: 0 | D249: 0 | E249: 0 | F249: 0 | G249: 0
B250: =IF(ISBLANK(dms_E3_Projects_15),"",dms_E3_Projects_15) ->  | C250: 0 | D250: 0 | E250: 0 | F250: 0 | G250: 0
B251: =IF(ISBLANK(dms_E3_Projects_16),"",dms_E3_Projects_16) ->  | C251: 0 | D251: 0 | E251: 0 | F251: 0 | G251: 0
B252: =IF(ISBLANK(dms_E3_Projects_17),"",dms_E3_Projects_17) ->  | C252: 0 | D252: 0 | E252: 0 | F252: 0 | G252: 0
B253: =IF(ISBLANK(dms_E3_Projects_18),"",dms_E3_Projects_18) ->  | C253: 0 | D253: 0 | E253: 0 | F253: 0 | G253: 0
... 483 more rows

Sheet E4. Meter replacement
B1: =INDEX(dms_Worksheet_List,MATCH(dms_Model,dms_Model_List)) -> HISTORICAL ANNUAL REPORTING
B2: =INDEX(dms_TradingNameFull_List,MATCH(dms_TradingName,dms_TradingName_List)) -> Australian Gas Networks Limited (reporting data for SA)
B3: =dms_Header_Span -> 2014-15 to 2018-19
B4: E4. METER REPLACEMENT
B6: E4.1 - CAPEX
B7: E4.1.1 - NEW METERS ACQUIRED
C8: EXPENDITURE
C9: $0's
C10: =dms_y1 -> 2014-15 | D10: =dms_y2 -> 2015-16 | E10: =dms_y3 -> 2016-17 | F10: =dms_y4 -> 2017-18 | G10: =dms_y5 -> 2018-19
B11: A. DIRECT INTERNAL LABOUR EXPENDITURE
B12: Residential | C12: 0 | D12: 0 | E12: 0 | F12: 0 | G12: 0
B13: Industrial and Commercial | C13: 0 | D13: 0 | E13: 0 | F13: 0 | G13: 0
B14: Other | C14: 0 | D14: 0 | E14: 0 | F14: 0 | G14: 0
B15: Total | C15: =SUM(C12:C14) -> 0 | D15: =SUM(D12:D14) -> 0 | E15: =SUM(E12:E14) -> 0 | F15: =SUM(F12:F14) -> 0 | G15: =SUM(G12:G14) -> 0
B16: B. DIRECT CONTRACTOR EXPENDITURE
B17: Residential
B18: Industrial and Commercial
B19: Other
B20: Total | C20: =SUM(C17:C19) -> 0 | D20: =SUM(D17:D19) -> 0 | E20: =SUM(E17:E19) -> 0 | F20: =SUM(F17:F19) -> 0 | G20: =SUM(G17:G19) -> 0
B21: C. OTHER INTERNAL DIRECT EXPENDITURE
B22: Residential | C22: 0 | D22: 0 | E22: 0 | F22: 0 | G22: 0
B23: Industrial and Commercial | C23: 0 | D23: 0 | E23: 0 | F23: 0 | G23: 0
B24: Other | C24: 0 | D24: 0 | E24: 0 | F24: 0 | G24: 0
B25: Total | C25: =SUM(C22:C24) -> 0 | D25: =SUM(D22:D24) -> 0 | E25: =SUM(E22:E24) -> 0 | F25: =SUM(F22:F24) -> 0 | G25: =SUM(G22:G24) -> 0
B26: D. TOTAL OVERHEAD EXPENDITURE
B27: Residential
B28: Industrial and Commercial
B29: Other
B30: Total | C30: =SUM(C27:C29) -> 0 | D30: =SUM(D27:D29) -> 0 | E30: =SUM(E27:E29) -> 0 | F30: =SUM(F27:F29) -> 0 | G30: =SUM(G27:G29) -> 0
B31: E. RELATED PARTY MARGIN EXPENDITURE
B32: Residential | C32: 0 | D32: 0 | E32: 0 | F32: 0 | G32: 0
B33: Industrial and Commercial | C33: 0 | D33: 0 | E33: 0 | F33: 0 | G33: 0
B34: Other | C34: 0 | D34: 0 | E34: 0 | F34: 0 | G34: 0
B35: Total | C35: =SUM(C32:C34) -> 0 | D35: =SUM(D32:D34) -> 0 | E35: =SUM(E32:E34) -> 0 | F35: =SUM(F32:F34) -> 0 | G35: =SUM(G32:G34) -> 0
B36: F. CAPITAL CONTRIBUTIONS included in the above
B37: Residential | C37: 0 | D37: 0 | E37: 0 | F37: 0 | G37: 0
B38: Industrial and Commercial | C38: 0 | D38: 0 | E38: 0 | F38: 0 | G38: 0
B39: Other | C39: 0 | D39: 0 | E39: 0 | F39: 0 | G39: 0
B40: Total | C40: =SUM(C37:C39) -> 0 | D40: =SUM(D37:D39) -> 0 | E40: =SUM(E37:E39) -> 0 | F40: =SUM(F37:F39) -> 0 | G40: =SUM(G37:G39) -> 0
B41: TOTAL | C41: =SUM(C15,C20,C25,C30,C35,C40) -> 0 | D41: =SUM(D15,D20,D25,D30,D35,D40) -> 0 | E41: =SUM(E15,E20,E25,E30,E35,E40) -> 0 | F41: =SUM(F15,F20,F25,F30,F35,F40) -> 0 | G41: =SUM(G15,G20,G25,G30,G35,G40) -> 0
B43: E4.1.2 - METER REFURBISHMENT
C44: EXPENDITURE
C45: $0's
C46: =dms_y1 -> 2014-15 | D46: =dms_y2 -> 2015-16 | E46: =dms_y3 -> 2016-17 | F46: =dms_y4 -> 2017-18 | G46: =dms_y5 -> 2018-19
B47: A. DIRECT INTERNAL LABOUR EXPENDITURE
B48: Residential | C48: 0 | D48: 0 | E48: 0 | F48: 0 | G48: 0
B49: Industrial and Commercial | C49: 0 | D49: 0 | E49: 0 | F49: 0 | G49: 0
B50: Other | C50: 0 | D50: 0 | E50: 0 | F50: 0 | G50: 0
B51: Total | C51: =SUM(C48:C50) -> 0 | D51: =SUM(D48:D50) -> 0 | E51: =SUM(E48:E50) -> 0 | F51: =SUM(F48:F50) -> 0 | G51: =SUM(G48:G50) -> 0
B52: B. DIRECT CONTRACTOR EXPENDITURE
B53: Residential
B54: Industrial and Commercial
B55: Other
B56: Total | C56: =SUM(C53:C55) -> 0 | D56: =SUM(D53:D55) -> 0 | E56: =SUM(E53:E55) -> 0 | F56: =SUM(F53:F55) -> 0 | G56: =SUM(G53:G55) -> 0
B57: C. OTHER INTERNAL DIRECT EXPENDITURE
B58: Residential | C58: 0 | D58: 0 | E58: 0 | F58: 0 | G58: 0
B59: Industrial and Commercial | C59: 0 | D59: 0 | E59: 0 | F59: 0 | G59: 0
B60: Other | C60: 0 | D60: 0 | E60: 0 | F60: 0 | G60: 0
B61: Total | C61: =SUM(C58:C60) -> 0 | D61: =SUM(D58:D60) -> 0 | E61: =SUM(E58:E60) -> 0 | F61: =SUM(F58:F60) -> 0 | G61: =SUM(G58:G60) -> 0
B62: D. TOTAL OVERHEAD EXPENDITURE
B63: Residential
B64: Industrial and Commercial
B65: Other
B66: Total | C66: =SUM(C63:C65) -> 0 | D66: =SUM(D63:D65) -> 0 | E66: =SUM(E63:E65) -> 0 | F66: =SUM(F63:F65) -> 0 | G66: =SUM(G63:G65) -> 0
B67: E. RELATED PARTY MARGIN EXPENDITURE
B68: Residential | C68: 0 | D68: 0 | E68: 0 | F68: 0 | G68: 0
B69: Industrial and Commercial | C69: 0 | D69: 0 | E69: 0 | F69: 0 | G69: 0
B70: Other | C70: 0 | D70: 0 | E70: 0 | F70: 0 | G70: 0
B71: Total | C71: =SUM(C68:C70) -> 0 | D71: =SUM(D68:D70) -> 0 | E71: =SUM(E68:E70) -> 0 | F71: =SUM(F68:F70) -> 0 | G71: =SUM(G68:G70) -> 0
B72: F. CAPITAL CONTRIBUTIONS included in the above
B73: Residential | C73: 0 | D73: 0 | E73: 0 | F73: 0 | G73: 0
B74: Industrial and Commercial | C74: 0 | D74: 0 | E74: 0 | F74: 0 | G74: 0
B75: Other | C75: 0 | D75: 0 | E75: 0 | F75: 0 | G75: 0
B76: Total | C76: =SUM(C73:C75) -> 0 | D76: =SUM(D73:D75) -> 0 | E76: =SUM(E73:E75) -> 0 | F76: =SUM(F73:F75) -> 0 | G76: =SUM(G73:G75) -> 0
B77: TOTAL | C77: =SUM(C51,C56,C61,C66,C71,C76) -> 0 | D77: =SUM(D51,D56,D61,D66,D71,D76) -> 0 | E77: =SUM(E51,E56,E61,E66,E71,E76) -> 0 | F77: =SUM(F51,F56,F61,F66,F71,F76) -> 0 | G77: =SUM(G51,G56,G61,G66,G71,G76) -> 0
B79: E4.1.3 - METER INSTALLATION
C80: EXPENDITURE
C81: $0's
C82: =dms_y1 -> 2014-15 | D82: =dms_y2 -> 2015-16 | E82: =dms_y3 -> 2016-17 | F82: =dms_y4 -> 2017-18 | G82: =dms_y5 -> 2018-19
B83: A. DIRECT INTERNAL LABOUR EXPENDITURE
B84: Residential | C84: 0 | D84: 0 | E84: 0 | F84: 0 | G84: 0
B85: Industrial and Commercial | C85: 0 | D85: 0 | E85: 0 | F85: 0 | G85: 0
B86: Other | C86: 0 | D86: 0 | E86: 0 | F86: 0 | G86: 0
B87: Total | C87: =SUM(C84:C86) -> 0 | D87: =SUM(D84:D86) -> 0 | E87: =SUM(E84:E86) -> 0 | F87: =SUM(F84:F86) -> 0 | G87: =SUM(G84:G86) -> 0
B88: B. DIRECT CONTRACTOR EXPENDITURE
B89: Residential | C89: 0 | D89: 0 | E89: 0 | F89: 0 | G89: 0
B90: Industrial and Commercial | C90: 0 | D90: 0 | E90: 0 | F90: 0 | G90: 0
B91: Other | C91: 0 | D91: 0 | E91: 0 | F91: 0 | G91: 0
B92: Total | C92: =SUM(C89:C91) -> 0 | D92: =SUM(D89:D91) -> 0 | E92: =SUM(E89:E91) -> 0 | F92: =SUM(F89:F91) -> 0 | G92: =SUM(G89:G91) -> 0
B93: C. OTHER INTERNAL DIRECT EXPENDITURE
B94: Residential | C94: 0 | D94: 0 | E94: 0 | F94: 0 | G94: 0
B95: Industrial and Commercial | C95: 0 | D95: 0 | E95: 0 | F95: 0 | G95: 0
B96: Other | C96: 0 | D96: 0 | E96: 0 | F96: 0 | G96: 0
B97: Total | C97: =SUM(C94:C96) -> 0 | D97: =SUM(D94:D96) -> 0 | E97: =SUM(E94:E96) -> 0 | F97: =SUM(F94:F96) -> 0 | G97: =SUM(G94:G96) -> 0
B98: D. TOTAL OVERHEAD EXPENDITURE
B99: Residential | C99: 0 | D99: 0 | E99: 0 | F99: 0 | G99: 0
B100: Industrial and Commercial | C100: 0 | D100: 0 | E100: 0 | F100: 0 | G100: 0
B101: Other | C101: 0 | D101: 0 | E101: 0 | F101: 0 | G101: 0
B102: Total | C102: =SUM(C99:C101) -> 0 | D102: =SUM(D99:D101) -> 0 | E102: =SUM(E99:E101) -> 0 | F102: =SUM(F99:F101) -> 0 | G102: =SUM(G99:G101) -> 0
B103: E. RELATED PARTY MARGIN EXPENDITURE
B104: Residential | C104: 0 | D104: 0 | E104: 0 | F104: 0 | G104: 0
B105: Industrial and Commercial | C105: 0 | D105: 0 | E105: 0 | F105: 0 | G105: 0
B106: Other | C106: 0 | D106: 0 | E106: 0 | F106: 0 | G106: 0
B107: Total | C107: =SUM(C104:C106) -> 0 | D107: =SUM(D104:D106) -> 0 | E107: =SUM(E104:E106) -> 0 | F107: =SUM(F104:F106) -> 0 | G107: =SUM(G104:G106) -> 0
B108: F. CAPITAL CONTRIBUTIONS included in the above
B109: Residential | C109: 0 | D109: 0 | E109: 0 | F109: 0 | G109: 0
B110: Industrial and Commercial | C110: 0 | D110: 0 | E110: 0 | F110: 0 | G110: 0
B111: Other | C111: 0 | D111: 0 | E111: 0 | F111: 0 | G111: 0
B112: Total | C112: =SUM(C109:C111) -> 0 | D112: =SUM(D109:D111) -> 0 | E112: =SUM(E109:E111) -> 0 | F112: =SUM(F109:F111) -> 0 | G112: =SUM(G109:G111) -> 0
B113: TOTAL | C113: =SUM(C87,C92,C97,C102,C107,C112) -> 0 | D113: =SUM(D87,D92,D97,D102,D107,D112) -> 0 | E113: =SUM(E87,E92,E97,E102,E107,E112) -> 0 | F113: =SUM(F87,F92,F97,F102,F107,F112) -> 0 | G113: =SUM(G87,G92,G97,G102,G107,G112) -> 0
B115: E4.1.4 - OTHER METER REPLACEMENT CAPEX
C116: EXPENDITURE
C117: $0's
C118: =dms_y1 -> 2014-15 | D118: =dms_y2 -> 2015-16 | E118: =dms_y3 -> 2016-17 | F118: =dms_y4 -> 2017-18 | G118: =dms_y5 -> 2018-19
B119: A. DIRECT INTERNAL LABOUR EXPENDITURE
B120: Residential | C120: 0 | D120: 0 | E120: 0 | F120: 0 | G120: 0
B121: Industrial and Commercial | C121: 0 | D121: 0 | E121: 0 | F121: 0 | G121: 0
B122: Other | C122: 0 | D122: 0 | E122: 0 | F122: 0 | G122: 0
B123: Total | C123: =SUM(C120:C122) -> 0 | D123: =SUM(D120:D122) -> 0 | E123: =SUM(E120:E122) -> 0 | F123: =SUM(F120:F122) -> 0 | G123: =SUM(G120:G122) -> 0
B124: B. DIRECT CONTRACTOR EXPENDITURE
B125: Residential | C125: 0 | D125: 0 | E125: 0 | F125: 0 | G125: 0
B126: Industrial and Commercial | C126: 0 | D126: 0 | E126: 0 | F126: 0 | G126: 0
B127: Other | C127: 0 | D127: 0 | E127: 0 | F127: 0 | G127: 0
B128: Total | C128: =SUM(C125:C127) -> 0 | D128: =SUM(D125:D127) -> 0 | E128: =SUM(E125:E127) -> 0 | F128: =SUM(F125:F127) -> 0 | G128: =SUM(G125:G127) -> 0
B129: C. OTHER INTERNAL DIRECT EXPENDITURE
B130: Residential | C130: 0 | D130: 0 | E130: 0 | F130: 0 | G130: 0
B131: Industrial and Commercial | C131: 0 | D131: 0 | E131: 0 | F131: 0 | G131: 0
B132: Other | C132: 0 | D132: 0 | E132: 0 | F132: 0 | G132: 0
B133: Total | C133: =SUM(C130:C132) -> 0 | D133: =SUM(D130:D132) -> 0 | E133: =SUM(E130:E132) -> 0 | F133: =SUM(F130:F132) -> 0 | G133: =SUM(G130:G132) -> 0
B134: D. TOTAL OVERHEAD EXPENDITURE
B135: Residential | C135: 0 | D135: 0 | E135: 0 | F135: 0 | G135: 0
B136: Industrial and Commercial | C136: 0 | D136: 0 | E136: 0 | F136: 0 | G136: 0
B137: Other | C137: 0 | D137: 0 | E137: 0 | F137: 0 | G137: 0
B138: Total | C138: =SUM(C135:C137) -> 0 | D138: =SUM(D135:D137) -> 0 | E138: =SUM(E135:E137) -> 0 | F138: =SUM(F135:F137) -> 0 | G138: =SUM(G135:G137) -> 0
B139: E. RELATED PARTY MARGIN EXPENDITURE
B140: Residential | C140: 0 | D140: 0 | E140: 0 | F140: 0 | G140: 0
B141: Industrial and Commercial | C141: 0 | D141: 0 | E141: 0 | F141: 0 | G141: 0
B142: Other | C142: 0 | D142: 0 | E142: 0 | F142: 0 | G142: 0
B143: Total | C143: =SUM(C140:C142) -> 0 | D143: =SUM(D140:D142) -> 0 | E143: =SUM(E140:E142) -> 0 | F143: =SUM(F140:F142) -> 0 | G143: =SUM(G140:G142) -> 0
B144: F. CAPITAL CONTRIBUTIONS included in the above
B145: Residential | C145: 0 | D145: 0 | E145: 0 | F145: 0 | G145: 0
B146: Industrial and Commercial | C146: 0 | D146: 0 | E146: 0 | F146: 0 | G146: 0
B147: Other | C147: 0 | D147: 0 | E147: 0 | F147: 0 | G147: 0
B148: Total | C148: =SUM(C145:C147) -> 0 | D148: =SUM(D145:D147) -> 0 | E148: =SUM(E145:E147) -> 0 | F148: =SUM(F145:F147) -> 0 | G148: =SUM(G145:G147) -> 0
B149: TOTAL | C149: =SUM(C123,C128,C133,C138,C143,C148) -> 0 | D149: =SUM(D123,D128,D133,D138,D143,D148) -> 0 | E149: =SUM(E123,E128,E133,E138,E143,E148) -> 0 | F149: =SUM(F123,F128,F133,F138,F143,F148) -> 0 | G149: =SUM(G123,G128,G133,G138,G143,G148) -> 0
B152: E4.2 - VOLUMES
B153: E4.2.1 - NUMBER OF NEW METERS ACQUIRED
C154: VOLUMES
C155: 0s
C156: =dms_y1 -> 2014-15 | D156: =dms_y2 -> 2015-16 | E156: =dms_y3 -> 2016-17 | F156: =dms_y4 -> 2017-18 | G156: =dms_y5 -> 2018-19
B157: Residential
B158: Industrial and commercial
B159: Other
B160: Total | C160: =SUM(C157:C159) -> 0 | D160: =SUM(D157:D159) -> 0 | E160: =SUM(E157:E159) -> 0 | F160: =SUM(F157:F159) -> 0 | G160: =SUM(G157:G159) -> 0
B163: E4.2.2 - NUMBER OF METERS REFURBISHED
C164: VOLUMES
C165: 0s
C166: =dms_y1 -> 2014-15 | D166: =dms_y2 -> 2015-16 | E166: =dms_y3 -> 2016-17 | F166: =dms_y4 -> 2017-18 | G166: =dms_y5 -> 2018-19
B167: A. REFURBISHABLE METERS REMOVED
B168: Residential
B169: Industrial and commercial
B170: Other
B171: Total | C171: =SUM(C168:C170) -> 0 | D171: =SUM(D168:D170) -> 0 | E171: =SUM(E168:E170) -> 0 | F171: =SUM(F168:F170) -> 0 | G171: =SUM(G168:G170) -> 0
B172: B. METERS DECOMMISSIONED
B173: Residential
B174: Industrial and commercial
B175: Other meters
B176: Total | C176: =SUM(C173:C175) -> 0 | D176: =SUM(D173:D175) -> 0 | E176: =SUM(E173:E175) -> 0 | F176: =SUM(F173:F175) -> 0 | G176: =SUM(G173:G175) -> 0
B177: TOTAL | C177: =SUM(C171,C176) -> 0 | D177: =SUM(D171,D176) -> 0 | E177: =SUM(E171,E176) -> 0 | F177: =SUM(F171,F176) -> 0 | G177: =SUM(G171,G176) -> 0
B180: E4.2.3 - NUMBER OF METERS INSTALLED
C181: VOLUMES
C182: 0s
C183: =dms_y1 -> 2014-15 | D183: =dms_y2 -> 2015-16 | E183: =dms_y3 -> 2016-17 | F183: =dms_y4 -> 2017-18 | G183: =dms_y5 -> 2018-19
B184: Residential
B185: Industrial and commercial
B186: Other
B187: Total | C187: =SUM(C184:C186) -> 0 | D187: =SUM(D184:D186) -> 0 | E187: =SUM(E184:E186) -> 0 | F187: =SUM(F184:F186) -> 0 | G187: =SUM(G184:G186) -> 0
B190: E4.2.4 - NUMBER OF METERS REMOVED / DECOMMISSIONED
C191: VOLUMES
C192: 0s
C193: =dms_y1 -> 2014-15 | D193: =dms_y2 -> 2015-16 | E193: =dms_y3 -> 2016-17 | F193: =dms_y4 -> 2017-18 | G193: =dms_y5 -> 2018-19
B194: Residential | C194: 7604.25 | D194: 6794.344514 | E194: 18539 | F194: 9028 | G194: 14189
B195: Industrial and commercial | C195: 856.2659847 | D195: 233.056266 | E195: 459.2071611 | F195: 460.1437848 | G195: 408
B196: Other | C196: 0 | D196: 0 | E196: 0 | F196: 0 | G196: 0
B197: Total | C197: =SUM(C194:C196) -> 8460.515985 | D197: =SUM(D194:D196) -> 7027.40078 | E197: =SUM(E194:E196) -> 18998.20716 | F197: =SUM(F194:F196) -> 9488.143785 | G197: =SUM(G194:G196) -> 14597
B200: E4.2.5 - OTHER METER REPLACEMENT VOLUMES
C201: VOLUMES
C202: 0s
C203: =dms_y1 -> 2014-15 | D203: =dms_y2 -> 2015-16 | E203: =dms_y3 -> 2016-17 | F203: =dms_y4 -> 2017-18 | G203: =dms_y5 -> 2018-19
B204: Residential | C204: 0 | D204: 0 | E204: 0 | F204: 0 | G204: 0
B205: Industrial and commercial | C205: 0 | D205: 0 | E205: 0 | F205: 0 | G205: 0
B206: Other | C206: 0 | D206: 0 | E206: 0 | F206: 0 | G206: 0
B207: Total | C207: =SUM(C204:C206) -> 0 | D207: =SUM(D204:D206) -> 0 | E207: =SUM(E204:E206) -> 0 | F207: =SUM(F204:F206) -> 0 | G207: =SUM(G204:G206) -> 0

Sheet E5. New Connections
B1: =INDEX(dms_Worksheet_List,MATCH(dms_Model,dms_Model_List)) -> HISTORICAL ANNUAL REPORTING
B2: =INDEX(dms_TradingNameFull_List,MATCH(dms_TradingName,dms_TradingName_List)) -> Australian Gas Networks Limited (reporting data for SA)
B3: =dms_Header_Span -> 2014-15 to 2018-19
B4: E5. NEW CONNECTIONS
B6: E5.1 - EXPENDITURE
B7: E5.1.1 - CAPEX - BY CONNECTION TYPE
B8: A. DIRECT INTERNAL LABOUR EXPENDITURE
D9: EXPENDITURE
D10: $0's
D11: =dms_y1 -> 2014-15 | E11: =dms_y2 -> 2015-16 | F11: =dms_y3 -> 2016-17 | G11: =dms_y4 -> 2017-18 | H11: =dms_y5 -> 2018-19
B12: (i) ELECTRICITY TO GAS
B13: Distribution Mains | D13: 0 | E13: 0 | F13: 0 | G13: 0 | H13: 0
B14: Inlet service pipes | D14: 0 | E14: 0 | F14: 0 | G14: 0 | H14: 0
B15: Meters | D15: 0 | E15: 0 | F15: 0 | G15: 0 | H15: 0
C16: Total | D16: =SUM(D13:D15) -> 0 | E16: =SUM(E13:E15) -> 0 | F16: =SUM(F13:F15) -> 0 | G16: =SUM(G13:G15) -> 0 | H16: =SUM(H13:H15) -> 0
B17: (ii) NEW HOMES
B18: Distribution Mains | D18: 0 | E18: 0 | F18: 0 | G18: 0 | H18: 0
B19: Inlet service pipes | D19: 0 | E19: 0 | F19: 0 | G19: 0 | H19: 0
B20: Meters | D20: 0 | E20: 0 | F20: 0 | G20: 0 | H20: 0
C21: Total | D21: =SUM(D18:D20) -> 0 | E21: =SUM(E18:E20) -> 0 | F21: =SUM(F18:F20) -> 0 | G21: =SUM(G18:G20) -> 0 | H21: =SUM(H18:H20) -> 0
B22: (iii) NEW MEDIUM DENSITY / HIGH RISE
B23: Distribution Mains | D23: 0 | E23: 0 | F23: 0 | G23: 0 | H23: 0
B24: Inlet service pipes | D24: 0 | E24: 0 | F24: 0 | G24: 0 | H24: 0
B25: Meters | D25: 0 | E25: 0 | F25: 0 | G25: 0 | H25: 0
C26: Total | D26: =SUM(D23:D25) -> 0 | E26: =SUM(E23:E25) -> 0 | F26: =SUM(F23:F25) -> 0 | G26: =SUM(G23:G25) -> 0 | H26: =SUM(H23:H25) -> 0
B27: (iv) INDUSTRIAL & COMMERCIAL TARIFF
B28: Distribution Mains | D28: 0 | E28: 0 | F28: 0 | G28: 0 | H28: 0
B29: Inlet service pipes | D29: 0 | E29: 0 | F29: 0 | G29: 0 | H29: 0
B30: Meters | D30: 0 | E30: 0 | F30: 0 | G30: 0 | H30: 0
C31: Total | D31: =SUM(D28:D30) -> 0 | E31: =SUM(E28:E30) -> 0 | F31: =SUM(F28:F30) -> 0 | G31: =SUM(G28:G30) -> 0 | H31: =SUM(H28:H30) -> 0
B32: (v) INDUSTRIAL & COMMERCIAL CONTRACT
B33: Distribution Mains | D33: 0 | E33: 0 | F33: 0 | G33: 0 | H33: 0
B34: Inlet service pipes | D34: 0 | E34: 0 | F34: 0 | G34: 0 | H34: 0
B35: Meters | D35: 0 | E35: 0 | F35: 0 | G35: 0 | H35: 0
C36: Total | D36: =SUM(D33:D35) -> 0 | E36: =SUM(E33:E35) -> 0 | F36: =SUM(F33:F35) -> 0 | G36: =SUM(G33:G35) -> 0 | H36: =SUM(H33:H35) -> 0
C37: TOTAL | D37: =SUM(D36,D31,D26,D21,D16) -> 0 | E37: =SUM(E36,E31,E26,E21,E16) -> 0 | F37: =SUM(F36,F31,F26,F21,F16) -> 0 | G37: =SUM(G36,G31,G26,G21,G16) -> 0 | H37: =SUM(H36,H31,H26,H21,H16) -> 0
B39: B. DIRECT CONTRACTOR EXPENDITURE
D40: EXPENDITURE
D41: $0's
D42: =dms_y1 -> 2014-15 | E42: =dms_y2 -> 2015-16 | F42: =dms_y3 -> 2016-17 | G42: =dms_y4 -> 2017-18 | H42: =dms_y5 -> 2018-19
B43: (i) ELECTRICITY TO GAS
B44: Distribution Mains
B45: Inlet service pipes
B46: Meters
C47: Total | D47: =SUM(D44:D46) -> 0 | E47: =SUM(E44:E46) -> 0 | F47: =SUM(F44:F46) -> 0 | G47: =SUM(G44:G46) -> 0 | H47: =SUM(H44:H46) -> 0
B48: (ii) NEW HOMES
B49: Distribution Mains
B50: Inlet service pipes
B51: Meters
C52: Total | D52: =SUM(D49:D51) -> 0 | E52: =SUM(E49:E51) -> 0 | F52: =SUM(F49:F51) -> 0 | G52: =SUM(G49:G51) -> 0 | H52: =SUM(H49:H51) -> 0
B53: (iii) NEW MEDIUM DENSITY / HIGH RISE
B54: Distribution Mains
B55: Inlet service pipes
B56: Meters
C57: Total | D57: =SUM(D54:D56) -> 0 | E57: =SUM(E54:E56) -> 0 | F57: =SUM(F54:F56) -> 0 | G57: =SUM(G54:G56) -> 0 | H57: =SUM(H54:H56) -> 0
B58: (iv) INDUSTRIAL & COMMERCIAL TARIFF
B59: Distribution Mains
B60: Inlet service pipes
B61: Meters
C62: Total | D62: =SUM(D59:D61) -> 0 | E62: =SUM(E59:E61) -> 0 | F62: =SUM(F59:F61) -> 0 | G62: =SUM(G59:G61) -> 0 | H62: =SUM(H59:H61) -> 0
B63: (v) INDUSTRIAL & COMMERCIAL CONTRACT
B64: Distribution Mains
B65: Inlet service pipes
B66: Meters
C67: Total | D67: =SUM(D64:D66) -> 0 | E67: =SUM(E64:E66) -> 0 | F67: =SUM(F64:F66) -> 0 | G67: =SUM(G64:G66) -> 0 | H67: =SUM(H64:H66) -> 0
C68: TOTAL | D68: =SUM(D67,D62,D57,D52,D47) -> 0 | E68: =SUM(E67,E62,E57,E52,E47) -> 0 | F68: =SUM(F67,F62,F57,F52,F47) -> 0 | G68: =SUM(G67,G62,G57,G52,G47) -> 0 | H68: =SUM(H67,H62,H57,H52,H47) -> 0
B70: C. OTHER INTERNAL DIRECT EXPENDITURE
D71: EXPENDITURE
D72: $0's
D73: =dms_y1 -> 2014-15 | E73: =dms_y2 -> 2015-16 | F73: =dms_y3 -> 2016-17 | G73: =dms_y4 -> 2017-18 | H73: =dms_y5 -> 2018-19
B74: (i) ELECTRICITY TO GAS
B75: Distribution Mains | D75: 0 | E75: 0 | F75: 0 | G75: 0 | H75: 0
B76: Inlet service pipes | D76: 0 | E76: 0 | F76: 0 | G76: 0 | H76: 0
B77: Meters | D77: 0 | E77: 0 | F77: 0 | G77: 0 | H77: 0
C78: Total | D78: =SUM(D75:D77) -> 0 | E78: =SUM(E75:E77) -> 0 | F78: =SUM(F75:F77) -> 0 | G78: =SUM(G75:G77) -> 0 | H78: =SUM(H75:H77) -> 0
B79: (ii) NEW HOMES
B80: Distribution Mains | D80: 0 | E80: 0 | F80: 0 | G80: 0 | H80: 0
B81: Inlet service pipes | D81: 0 | E81: 0 | F81: 0 | G81: 0 | H81: 0
B82: Meters | D82: 0 | E82: 0 | F82: 0 | G82: 0 | H82: 0
C83: Total | D83: =SUM(D80:D82) -> 0 | E83: =SUM(E80:E82) -> 0 | F83: =SUM(F80:F82) -> 0 | G83: =SUM(G80:G82) -> 0 | H83: =SUM(H80:H82) -> 0
B84: (iii) NEW MEDIUM DENSITY / HIGH RISE
B85: Distribution Mains | D85: 0 | E85: 0 | F85: 0 | G85: 0 | H85: 0
B86: Inlet service pipes | D86: 0 | E86: 0 | F86: 0 | G86: 0 | H86: 0
B87: Meters | D87: 0 | E87: 0 | F87: 0 | G87: 0 | H87: 0
C88: Total | D88: =SUM(D85:D87) -> 0 | E88: =SUM(E85:E87) -> 0 | F88: =SUM(F85:F87) -> 0 | G88: =SUM(G85:G87) -> 0 | H88: =SUM(H85:H87) -> 0
B89: (iv) INDUSTRIAL & COMMERCIAL TARIFF
B90: Distribution Mains | D90: 0 | E90: 0 | F90: 0 | G90: 0 | H90: 0
B91: Inlet service pipes | D91: 0 | E91: 0 | F91: 0 | G91: 0 | H91: 0
B92: Meters | D92: 0 | E92: 0 | F92: 0 | G92: 0 | H92: 0
C93: Total | D93: =SUM(D90:D92) -> 0 | E93: =SUM(E90:E92) -> 0 | F93: =SUM(F90:F92) -> 0 | G93: =SUM(G90:G92) -> 0 | H93: =SUM(H90:H92) -> 0
B94: (v) INDUSTRIAL & COMMERCIAL CONTRACT
B95: Distribution Mains | D95: 0 | E95: 0 | F95: 0 | G95: 0 | H95: 0
B96: Inlet service pipes | D96: 0 | E96: 0 | F96: 0 | G96: 0 | H96: 0
B97: Meters | D97: 0 | E97: 0 | F97: 0 | G97: 0 | H97: 0
C98: Total | D98: =SUM(D95:D97) -> 0 | E98: =SUM(E95:E97) -> 0 | F98: =SUM(F95:F97) -> 0 | G98: =SUM(G95:G97) -> 0 | H98: =SUM(H95:H97) -> 0
C99: TOTAL | D99: =SUM(D98,D93,D88,D83,D78) -> 0 | E99: =SUM(E98,E93,E88,E83,E78) -> 0 | F99: =SUM(F98,F93,F88,F83,F78) -> 0 | G99: =SUM(G98,G93,G88,G83,G78) -> 0 | H99: =SUM(H98,H93,H88,H83,H78) -> 0
B101: D. TOTAL OVERHEAD EXPENDITURE
D102: EXPENDITURE
D103: $0's
D104: =dms_y1 -> 2014-15 | E104: =dms_y2 -> 2015-16 | F104: =dms_y3 -> 2016-17 | G104: =dms_y4 -> 2017-18 | H104: =dms_y5 -> 2018-19
B105: (i) ELECTRICITY TO GAS
B106: Distribution Mains | D106: 148532.3867 | E106: 184052.4362 | F106: 131343.7939 | G106: 430097.3753 | H106: 335459.0651
B107: Inlet service pipes | D107: 221701.6255 | E107: 287255.7664 | F107: 235467.282 | G107: 296270.6375 | H107: 196047.2375
B108: Meters | D108: 41040.25198 | E108: 33378.98367 | F108: 31892.92428 | G108: 27032.72805 | H108: 19888.49105
C109: Total | D109: =SUM(D106:D108) -> 411274.2642 | E109: =SUM(E106:E108) -> 504687.1863 | F109: =SUM(F106:F108) -> 398704.0002 | G109: =SUM(G106:G108) -> 753400.7409 | H109: =SUM(H106:H108) -> 551394.7937
B110: (ii) NEW HOMES
B111: Distribution Mains | D111: 536050.8912 | E111: 765553.4387 | F111: 760362.5974 | G111: 112033.126 | H111: 212931.6635
B112: Inlet service pipes | D112: 774745.4958 | E112: 1010616.089 | F112: 682239.77 | G112: 772519.8038 | H112: 735471.9294
B113: Meters | D113: 234714.195 | E113: 178999.9012 | F113: 182964.6709 | G113: 160147.376 | H113: 155022.851
C114: Total | D114: =SUM(D111:D113) -> 1545510.582 | E114: =SUM(E111:E113) -> 1955169.429 | F114: =SUM(F111:F113) -> 1625567.038 | G114: =SUM(G111:G113) -> 1044700.306 | H114: =SUM(H111:H113) -> 1103426.444
B115: (iii) NEW MEDIUM DENSITY / HIGH RISE
B116: Distribution Mains | D116: 0 | E116: 0 | F116: 0 | G116: 0 | H116: 0
B117: Inlet service pipes | D117: 152905.1178 | E117: 144488.2841 | F117: 135971.3027 | G117: 172540.6709 | H117: 162936.511
B118: Meters | D118: 21092.7465 | E118: 34924.5471 | F118: 12710.1614 | G118: 9523.000042 | H118: 11152.12498
C119: Total | D119: =SUM(D116:D118) -> 173997.8643 | E119: =SUM(E116:E118) -> 179412.8312 | F119: =SUM(F116:F118) -> 148681.4641 | G119: =SUM(G116:G118) -> 182063.6709 | H119: =SUM(H116:H118) -> 174088.636
B120: (iv) INDUSTRIAL & COMMERCIAL TARIFF
B121: Distribution Mains | D121: 74898.36553 | E121: 104087.8458 | F121: 56343.60289 | G121: 71931.98033 | H121: 138512.8492
B122: Inlet service pipes | D122: 140130.8225 | E122: 191685.6856 | F122: 140699.3089 | G122: 170474.6697 | H122: 185865.2566
B123: Meters | D123: 90191.24609 | E123: 84501.88103 | F123: 75833.58992 | G123: 114400.1383 | H123: 138263.7412
C124: Total | D124: =SUM(D121:D123) -> 305220.4342 | E124: =SUM(E121:E123) -> 380275.4124 | F124: =SUM(F121:F123) -> 272876.5017 | G124: =SUM(G121:G123) -> 356806.7884 | H124: =SUM(H121:H123) -> 462641.847
B125: (v) INDUSTRIAL & COMMERCIAL CONTRACT
B126: Distribution Mains | D126: 1844.407525 | E126: 10303.76229 | F126: 10098.16842 | G126: 19974.02776 | H126: 25616.39493
B127: Inlet service pipes | D127: 94.61547914 | E127: 262.2425505 | F127: 3128.270599 | G127: 5223.23047 | H127: 4911.445372
B128: Meters | D128: 17559.19468 | E128: 44794.07324 | F128: 37225.69063 | G128: 27589.99324 | H128: 21375.61575
C129: Total | D129: =SUM(D126:D128) -> 19498.21768 | E129: =SUM(E126:E128) -> 55360.07808 | F129: =SUM(F126:F128) -> 50452.12965 | G129: =SUM(G126:G128) -> 52787.25147 | H129: =SUM(H126:H128) -> 51903.45605
C130: TOTAL | D130: =SUM(D129,D124,D119,D114,D109) -> 2455501.362 | E130: =SUM(E129,E124,E119,E114,E109) -> 3074904.937 | F130: =SUM(F129,F124,F119,F114,F109) -> 2496281.134 | G130: =SUM(G129,G124,G119,G114,G109) -> 2389758.757 | H130: =SUM(H129,H124,H119,H114,H109) -> 2343455.177
B132: E. RELATED PARTY MARGIN EXPENDITURE
D133: EXPENDITURE
D134: $0's
D135: =dms_y1 -> 2014-15 | E135: =dms_y2 -> 2015-16 | F135: =dms_y3 -> 2016-17 | G135: =dms_y4 -> 2017-18 | H135: =dms_y5 -> 2018-19
B136: (i) ELECTRICITY TO GAS
B137: Distribution Mains | D137: 0 | E137: 0 | F137: 0 | G137: 0 | H137: 0
B138: Inlet service pipes | D138: 0 | E138: 0 | F138: 0 | G138: 0 | H138: 0
B139: Meters | D139: 0 | E139: 0 | F139: 0 | G139: 0 | H139: 0
C140: Total | D140: =SUM(D137:D139) -> 0 | E140: =SUM(E137:E139) -> 0 | F140: =SUM(F137:F139) -> 0 | G140: =SUM(G137:G139) -> 0 | H140: =SUM(H137:H139) -> 0
B141: (ii) NEW HOMES
B142: Distribution Mains | D142: 0 | E142: 0 | F142: 0 | G142: 0 | H142: 0
B143: Inlet service pipes | D143: 0 | E143: 0 | F143: 0 | G143: 0 | H143: 0
B144: Meters | D144: 0 | E144: 0 | F144: 0 | G144: 0 | H144: 0
C145: Total | D145: =SUM(D142:D144) -> 0 | E145: =SUM(E142:E144) -> 0 | F145: =SUM(F142:F144) -> 0 | G145: =SUM(G142:G144) -> 0 | H145: =SUM(H142:H144) -> 0
B146: (iii) NEW MEDIUM DENSITY / HIGH RISE
B147: Distribution Mains | D147: 0 | E147: 0 | F147: 0 | G147: 0 | H147: 0
B148: Inlet service pipes | D148: 0 | E148: 0 | F148: 0 | G148: 0 | H148: 0
B149: Meters | D149: 0 | E149: 0 | F149: 0 | G149: 0 | H149: 0
C150: Total | D150: =SUM(D147:D149) -> 0 | E150: =SUM(E147:E149) -> 0 | F150: =SUM(F147:F149) -> 0 | G150: =SUM(G147:G149) -> 0 | H150: =SUM(H147:H149) -> 0
B151: (iv) INDUSTRIAL & COMMERCIAL TARIFF
B152: Distribution Mains | D152: 0 | E152: 0 | F152: 0 | G152: 0 | H152: 0
B153: Inlet service pipes | D153: 0 | E153: 0 | F153: 0 | G153: 0 | H153: 0
B154: Meters | D154: 0 | E154: 0 | F154: 0 | G154: 0 | H154: 0
C155: Total | D155: =SUM(D152:D154) -> 0 | E155: =SUM(E152:E154) -> 0 | F155: =SUM(F152:F154) -> 0 | G155: =SUM(G152:G154) -> 0 | H155: =SUM(H152:H154) -> 0
B156: (v) INDUSTRIAL & COMMERCIAL CONTRACT
B157: Distribution Mains | D157: 0 | E157: 0 | F157: 0 | G157: 0 | H157: 0
B158: Inlet service pipes | D158: 0 | E158: 0 | F158: 0 | G158: 0 | H158: 0
B159: Meters | D159: 0 | E159: 0 | F159: 0 | G159: 0 | H159: 0
C160: Total | D160: =SUM(D157:D159) -> 0 | E160: =SUM(E157:E159) -> 0 | F160: =SUM(F157:F159) -> 0 | G160: =SUM(G157:G159) -> 0 | H160: =SUM(H157:H159) -> 0
C161: TOTAL | D161: =SUM(D160,D155,D150,D145,D140) -> 0 | E161: =SUM(E160,E155,E150,E145,E140) -> 0 | F161: =SUM(F160,F155,F150,F145,F140) -> 0 | G161: =SUM(G160,G155,G150,G145,G140) -> 0 | H161: =SUM(H160,H155,H150,H145,H140) -> 0
B163: F. CAPITAL CONTRIBUTIONS included in the above
D164: EXPENDITURE
D165: $0's
D166: =dms_y1 -> 2014-15 | E166: =dms_y2 -> 2015-16 | F166: =dms_y3 -> 2016-17 | G166: =dms_y4 -> 2017-18 | H166: =dms_y5 -> 2018-19
B167: (i) ELECTRICITY TO GAS
B168: Distribution Mains | D168: 0 | E168: 0 | F168: 0 | G168: 0 | H168: 0
B169: Inlet service pipes | D169: 0 | E169: 0 | F169: 0 | G169: 0 | H169: 0
B170: Meters | D170: 0 | E170: 0 | F170: 0 | G170: 0 | H170: 0
C171: Total | D171: =SUM(D168:D170) -> 0 | E171: =SUM(E168:E170) -> 0 | F171: =SUM(F168:F170) -> 0 | G171: =SUM(G168:G170) -> 0 | H171: =SUM(H168:H170) -> 0
B172: (ii) NEW HOMES
B173: Distribution Mains
B174: Inlet service pipes
B175: Meters
C176: Total | D176: =SUM(D173:D175) -> 0 | E176: =SUM(E173:E175) -> 0 | F176: =SUM(F173:F175) -> 0 | G176: =SUM(G173:G175) -> 0 | H176: =SUM(H173:H175) -> 0
B177: (iii) NEW MEDIUM DENSITY / HIGH RISE
B178: Distribution Mains | D178: 0 | E178: 0 | F178: 0 | G178: 0 | H178: 0
B179: Inlet service pipes | D179: 0 | E179: 0 | F179: 0 | G179: 0 | H179: 0
B180: Meters | D180: 0 | E180: 0 | F180: 0 | G180: 0 | H180: 0
C181: Total | D181: =SUM(D178:D180) -> 0 | E181: =SUM(E178:E180) -> 0 | F181: =SUM(F178:F180) -> 0 | G181: =SUM(G178:G180) -> 0 | H181: =SUM(H178:H180) -> 0
B182: (iv) INDUSTRIAL & COMMERCIAL TARIFF
B183: Distribution Mains | D183: 0 | E183: 0 | F183: 0 | G183: 0 | H183: 0
B184: Inlet service pipes | D184: 0 | E184: 0 | F184: 0 | G184: 0 | H184: 0
B185: Meters | D185: 0 | E185: 0 | F185: 0 | G185: 0 | H185: 0
C186: Total | D186: =SUM(D183:D185) -> 0 | E186: =SUM(E183:E185) -> 0 | F186: =SUM(F183:F185) -> 0 | G186: =SUM(G183:G185) -> 0 | H186: =SUM(H183:H185) -> 0
B187: (v) INDUSTRIAL & COMMERCIAL CONTRACT
B188: Distribution Mains
B189: Inlet service pipes
B190: Meters
C191: Total | D191: =SUM(D188:D190) -> 0 | E191: =SUM(E188:E190) -> 0 | F191: =SUM(F188:F190) -> 0 | G191: =SUM(G188:G190) -> 0 | H191: =SUM(H188:H190) -> 0
C192: TOTAL | D192: =SUM(D191,D186,D181,D176,D171) -> 0 | E192: =SUM(E191,E186,E181,E176,E171) -> 0 | F192: =SUM(F191,F186,F181,F176,F171) -> 0 | G192: =SUM(G191,G186,G181,G176,G171) -> 0 | H192: =SUM(H191,H186,H181,H176,H171) -> 0
B195: E5.2 - UNIT RATES
B196: E5.2.1 - UNIT RATES - PER CONNECTION - BY CONNECTION TYPE
D197: RATES PER CONNECTION
D198: $0's
C199: Units | D199: =dms_y1 -> 2014-15 | E199: =dms_y2 -> 2015-16 | F199: =dms_y3 -> 2016-17 | G199: =dms_y4 -> 2017-18 | H199: =dms_y5 -> 2018-19
B200: A. ELECTRICITY TO GAS
B201: Distribution mains | C201: per metre per connection
B202: Inlet service pipes | C202: per service per connection
B203: Meters | C203: number per connection
B204: B. NEW HOMES
B205: Distribution mains | C205: per metre per connection
B206: Inlet service pipes | C206: per service per connection
B207: Meters | C207: number per connection
B208: C. NEW MEDIUM DENSITY / HIGH RISE
... 67 more rows

Sheet E6. Non-network
B1: =INDEX(dms_Worksheet_List,MATCH(dms_Model,dms_Model_List)) -> HISTORICAL ANNUAL REPORTING
B2: =INDEX(dms_TradingNameFull_List,MATCH(dms_TradingName,dms_TradingName_List)) -> Australian Gas Networks Limited (reporting data for SA)
B3: =dms_Header_Span -> 2014-15 to 2018-19
B4: E6. NON-NETWORK EXPENDITURE
B6: E6.5 - TELEMETRY
B8: Please list all projects here:
B9: SEE BELOW
B26: E6.5.1 - CAPEX - BY PROJECT
B27: A. DIRECT INTERNAL LABOUR EXPENDITURE
C28: EXPENDITURE
C29: $0's
C30: =dms_y1 -> 2014-15 | D30: =dms_y2 -> 2015-16 | E30: =dms_y3 -> 2016-17 | F30: =dms_y4 -> 2017-18 | G30: =dms_y5 -> 2018-19
B31: =IF(ISBLANK(dms_E65_Projects_01),"",dms_E65_Projects_01) -> SEE BELOW | C31: 0 | D31: 0 | E31: 0 | F31: 0 | G31: 0
B32: =IF(ISBLANK(dms_E65_Projects_02),"",dms_E65_Projects_02) ->  | C32: 0 | D32: 0 | E32: 0 | F32: 0 | G32: 0
B33: =IF(ISBLANK(dms_E65_Projects_03),"",dms_E65_Projects_03) ->  | C33: 0 | D33: 0 | E33: 0 | F33: 0 | G33: 0
B34: =IF(ISBLANK(dms_E65_Projects_04),"",dms_E65_Projects_04) ->  | C34: 0 | D34: 0 | E34: 0 | F34: 0 | G34: 0
B35: =IF(ISBLANK(dms_E65_Projects_05),"",dms_E65_Projects_05) ->  | C35: 0 | D35: 0 | E35: 0 | F35: 0 | G35: 0
B36: =IF(ISBLANK(dms_E65_Projects_06),"",dms_E65_Projects_06) ->  | C36: 0 | D36: 0 | E36: 0 | F36: 0 | G36: 0
B37: =IF(ISBLANK(dms_E65_Projects_07),"",dms_E65_Projects_07) ->  | C37: 0 | D37: 0 | E37: 0 | F37: 0 | G37: 0
B38: =IF(ISBLANK(dms_E65_Projects_08),"",dms_E65_Projects_08) ->  | C38: 0 | D38: 0 | E38: 0 | F38: 0 | G38: 0
B39: =IF(ISBLANK(dms_E65_Projects_09),"",dms_E65_Projects_09) ->  | C39: 0 | D39: 0 | E39: 0 | F39: 0 | G39: 0
B40: =IF(ISBLANK(dms_E65_Projects_10),"",dms_E65_Projects_10) ->  | C40: 0 | D40: 0 | E40: 0 | F40: 0 | G40: 0
B41: =IF(ISBLANK(dms_E65_Projects_11),"",dms_E65_Projects_11) ->  | C41: 0 | D41: 0 | E41: 0 | F41: 0 | G41: 0
B42: =IF(ISBLANK(dms_E65_Projects_12),"",dms_E65_Projects_12) ->  | C42: 0 | D42: 0 | E42: 0 | F42: 0 | G42: 0
B43: =IF(ISBLANK(dms_E65_Projects_13),"",dms_E65_Projects_13) ->  | C43: 0 | D43: 0 | E43: 0 | F43: 0 | G43: 0
B44: =IF(ISBLANK(dms_E65_Projects_14),"",dms_E65_Projects_14) ->  | C44: 0 | D44: 0 | E44: 0 | F44: 0 | G44: 0
B45: =IF(ISBLANK(dms_E65_Projects_15),"",dms_E65_Projects_15) ->  | C45: 0 | D45: 0 | E45: 0 | F45: 0 | G45: 0
B46: Aggregate of other projects with total expenditure of less than $500,000 | C46: 0 | D46: 0 | E46: 0 | F46: 0 | G46: 0
B47: Total | C47: =SUM(C31:C46) -> 0 | D47: =SUM(D31:D46) -> 0 | E47: =SUM(E31:E46) -> 0 | F47: =SUM(F31:F46) -> 0 | G47: =SUM(G31:G46) -> 0
B49: B. DIRECT CONTRACTOR EXPENDITURE
B50: =IF(ISBLANK(dms_E65_Projects_01),"",dms_E65_Projects_01) -> SEE BELOW | C50: 0 | D50: 0 | E50: 0 | F50: 0 | G50: 0
B51: =IF(ISBLANK(dms_E65_Projects_02),"",dms_E65_Projects_02) ->  | C51: 0 | D51: 0 | E51: 0 | F51: 0 | G51: 0
B52: =IF(ISBLANK(dms_E65_Projects_03),"",dms_E65_Projects_03) ->  | C52: 0 | D52: 0 | E52: 0 | F52: 0 | G52: 0
B53: =IF(ISBLANK(dms_E65_Projects_04),"",dms_E65_Projects_04) ->  | C53: 0 | D53: 0 | E53: 0 | F53: 0 | G53: 0
B54: =IF(ISBLANK(dms_E65_Projects_05),"",dms_E65_Projects_05) ->  | C54: 0 | D54: 0 | E54: 0 | F54: 0 | G54: 0
B55: =IF(ISBLANK(dms_E65_Projects_06),"",dms_E65_Projects_06) ->  | C55: 0 | D55: 0 | E55: 0 | F55: 0 | G55: 0
B56: =IF(ISBLANK(dms_E65_Projects_07),"",dms_E65_Projects_07) ->  | C56: 0 | D56: 0 | E56: 0 | F56: 0 | G56: 0
B57: =IF(ISBLANK(dms_E65_Projects_08),"",dms_E65_Projects_08) ->  | C57: 0 | D57: 0 | E57: 0 | F57: 0 | G57: 0
B58: =IF(ISBLANK(dms_E65_Projects_09),"",dms_E65_Projects_09) ->  | C58: 0 | D58: 0 | E58: 0 | F58: 0 | G58: 0
B59: =IF(ISBLANK(dms_E65_Projects_10),"",dms_E65_Projects_10) ->  | C59: 0 | D59: 0 | E59: 0 | F59: 0 | G59: 0
B60: =IF(ISBLANK(dms_E65_Projects_11),"",dms_E65_Projects_11) ->  | C60: 0 | D60: 0 | E60: 0 | F60: 0 | G60: 0
B61: =IF(ISBLANK(dms_E65_Projects_12),"",dms_E65_Projects_12) ->  | C61: 0 | D61: 0 | E61: 0 | F61: 0 | G61: 0
B62: =IF(ISBLANK(dms_E65_Projects_13),"",dms_E65_Projects_13) ->  | C62: 0 | D62: 0 | E62: 0 | F62: 0 | G62: 0
B63: =IF(ISBLANK(dms_E65_Projects_14),"",dms_E65_Projects_14) ->  | C63: 0 | D63: 0 | E63: 0 | F63: 0 | G63: 0
B64: =IF(ISBLANK(dms_E65_Projects_15),"",dms_E65_Projects_15) ->  | C64: 0 | D64: 0 | E64: 0 | F64: 0 | G64: 0
B65: Aggregate of other projects with total expenditure of less than $500,000 | C65: 189543.43 | D65: 166729.74 | E65: 181837.76 | F65: 2767.23 | G65: 188599.59
B66: Total | C66: =SUM(C50:C65) -> 189543.43 | D66: =SUM(D50:D65) -> 166729.74 | E66: =SUM(E50:E65) -> 181837.76 | F66: =SUM(F50:F65) -> 2767.23 | G66: =SUM(G50:G65) -> 188599.59
B68: C. OTHER INTERNAL DIRECT EXPENDITURE
B69: =IF(ISBLANK(dms_E65_Projects_01),"",dms_E65_Projects_01) -> SEE BELOW | C69: 0 | D69: 0 | E69: 0 | F69: 0 | G69: 0
B70: =IF(ISBLANK(dms_E65_Projects_02),"",dms_E65_Projects_02) ->  | C70: 0 | D70: 0 | E70: 0 | F70: 0 | G70: 0
B71: =IF(ISBLANK(dms_E65_Projects_03),"",dms_E65_Projects_03) ->  | C71: 0 | D71: 0 | E71: 0 | F71: 0 | G71: 0
B72: =IF(ISBLANK(dms_E65_Projects_04),"",dms_E65_Projects_04) ->  | C72: 0 | D72: 0 | E72: 0 | F72: 0 | G72: 0
B73: =IF(ISBLANK(dms_E65_Projects_05),"",dms_E65_Projects_05) ->  | C73: 0 | D73: 0 | E73: 0 | F73: 0 | G73: 0
B74: =IF(ISBLANK(dms_E65_Projects_06),"",dms_E65_Projects_06) ->  | C74: 0 | D74: 0 | E74: 0 | F74: 0 | G74: 0
B75: =IF(ISBLANK(dms_E65_Projects_07),"",dms_E65_Projects_07) ->  | C75: 0 | D75: 0 | E75: 0 | F75: 0 | G75: 0
B76: =IF(ISBLANK(dms_E65_Projects_08),"",dms_E65_Projects_08) ->  | C76: 0 | D76: 0 | E76: 0 | F76: 0 | G76: 0
B77: =IF(ISBLANK(dms_E65_Projects_09),"",dms_E65_Projects_09) ->  | C77: 0 | D77: 0 | E77: 0 | F77: 0 | G77: 0
B78: =IF(ISBLANK(dms_E65_Projects_10),"",dms_E65_Projects_10) ->  | C78: 0 | D78: 0 | E78: 0 | F78: 0 | G78: 0
B79: =IF(ISBLANK(dms_E65_Projects_11),"",dms_E65_Projects_11) ->  | C79: 0 | D79: 0 | E79: 0 | F79: 0 | G79: 0
B80: =IF(ISBLANK(dms_E65_Projects_12),"",dms_E65_Projects_12) ->  | C80: 0 | D80: 0 | E80: 0 | F80: 0 | G80: 0
B81: =IF(ISBLANK(dms_E65_Projects_13),"",dms_E65_Projects_13) ->  | C81: 0 | D81: 0 | E81: 0 | F81: 0 | G81: 0
B82: =IF(ISBLANK(dms_E65_Projects_14),"",dms_E65_Projects_14) ->  | C82: 0 | D82: 0 | E82: 0 | F82: 0 | G82: 0
B83: =IF(ISBLANK(dms_E65_Projects_15),"",dms_E65_Projects_15) ->  | C83: 0 | D83: 0 | E83: 0 | F83: 0 | G83: 0
B84: Aggregate of other projects with total expenditure of less than $500,000 | C84: 0 | D84: 0 | E84: 0 | F84: 0 | G84: 0
B85: Total | C85: =SUM(C69:C84) -> 0 | D85: =SUM(D69:D84) -> 0 | E85: =SUM(E69:E84) -> 0 | F85: =SUM(F69:F84) -> 0 | G85: =SUM(G69:G84) -> 0
B87: D. TOTAL OVERHEAD EXPENDITURE
B88: =IF(ISBLANK(dms_E65_Projects_01),"",dms_E65_Projects_01) -> SEE BELOW | C88: 0 | D88: 0 | E88: 0 | F88: 0 | G88: 0
B89: =IF(ISBLANK(dms_E65_Projects_02),"",dms_E65_Projects_02) ->  | C89: 0 | D89: 0 | E89: 0 | F89: 0 | G89: 0
B90: =IF(ISBLANK(dms_E65_Projects_03),"",dms_E65_Projects_03) ->  | C90: 0 | D90: 0 | E90: 0 | F90: 0 | G90: 0
B91: =IF(ISBLANK(dms_E65_Projects_04),"",dms_E65_Projects_04) ->  | C91: 0 | D91: 0 | E91: 0 | F91: 0 | G91: 0
B92: =IF(ISBLANK(dms_E65_Projects_05),"",dms_E65_Projects_05) ->  | C92: 0 | D92: 0 | E92: 0 | F92: 0 | G92: 0
B93: =IF(ISBLANK(dms_E65_Projects_06),"",dms_E65_Projects_06) ->  | C93: 0 | D93: 0 | E93: 0 | F93: 0 | G93: 0
B94: =IF(ISBLANK(dms_E65_Projects_07),"",dms_E65_Projects_07) ->  | C94: 0 | D94: 0 | E94: 0 | F94: 0 | G94: 0
B95: =IF(ISBLANK(dms_E65_Projects_08),"",dms_E65_Projects_08) ->  | C95: 0 | D95: 0 | E95: 0 | F95: 0 | G95: 0
B96: =IF(ISBLANK(dms_E65_Projects_09),"",dms_E65_Projects_09) ->  | C96: 0 | D96: 0 | E96: 0 | F96: 0 | G96: 0
B97: =IF(ISBLANK(dms_E65_Projects_10),"",dms_E65_Projects_10) ->  | C97: 0 | D97: 0 | E97: 0 | F97: 0 | G97: 0
B98: =IF(ISBLANK(dms_E65_Projects_11),"",dms_E65_Projects_11) ->  | C98: 0 | D98: 0 | E98: 0 | F98: 0 | G98: 0
B99: =IF(ISBLANK(dms_E65_Projects_12),"",dms_E65_Projects_12) ->  | C99: 0 | D99: 0 | E99: 0 | F99: 0 | G99: 0
B100: =IF(ISBLANK(dms_E65_Projects_13),"",dms_E65_Projects_13) ->  | C100: 0 | D100: 0 | E100: 0 | F100: 0 | G100: 0
B101: =IF(ISBLANK(dms_E65_Projects_14),"",dms_E65_Projects_14) ->  | C101: 0 | D101: 0 | E101: 0 | F101: 0 | G101: 0
B102: =IF(ISBLANK(dms_E65_Projects_15),"",dms_E65_Projects_15) ->  | C102: 0 | D102: 0 | E102: 0 | F102: 0 | G102: 0
B103: Aggregate of other projects with total expenditure of less than $500,000 | C103: 21213.65813 | D103: 15144.54682 | E103: 17584.49782 | F103: 503.0823908 | G103: 16981.54757
B104: Total | C104: =SUM(C88:C103) -> 21213.65813 | D104: =SUM(D88:D103) -> 15144.54682 | E104: =SUM(E88:E103) -> 17584.49782 | F104: =SUM(F88:F103) -> 503.0823908 | G104: =SUM(G88:G103) -> 16981.54757
B106: E. RELATED PARTY MARGIN EXPENDITURE
B107: =IF(ISBLANK(dms_E65_Projects_01),"",dms_E65_Projects_01) -> SEE BELOW | C107: 0 | D107: 0 | E107: 0 | F107: 0 | G107: 0
B108: =IF(ISBLANK(dms_E65_Projects_02),"",dms_E65_Projects_02) ->  | C108: 0 | D108: 0 | E108: 0 | F108: 0 | G108: 0
B109: =IF(ISBLANK(dms_E65_Projects_03),"",dms_E65_Projects_03) ->  | C109: 0 | D109: 0 | E109: 0 | F109: 0 | G109: 0
B110: =IF(ISBLANK(dms_E65_Projects_04),"",dms_E65_Projects_04) ->  | C110: 0 | D110: 0 | E110: 0 | F110: 0 | G110: 0
B111: =IF(ISBLANK(dms_E65_Projects_05),"",dms_E65_Projects_05) ->  | C111: 0 | D111: 0 | E111: 0 | F111: 0 | G111: 0
B112: =IF(ISBLANK(dms_E65_Projects_06),"",dms_E65_Projects_06) ->  | C112: 0 | D112: 0 | E112: 0 | F112: 0 | G112: 0
B113: =IF(ISBLANK(dms_E65_Projects_07),"",dms_E65_Projects_07) ->  | C113: 0 | D113: 0 | E113: 0 | F113: 0 | G113: 0
B114: =IF(ISBLANK(dms_E65_Projects_08),"",dms_E65_Projects_08) ->  | C114: 0 | D114: 0 | E114: 0 | F114: 0 | G114: 0
B115: =IF(ISBLANK(dms_E65_Projects_09),"",dms_E65_Projects_09) ->  | C115: 0 | D115: 0 | E115: 0 | F115: 0 | G115: 0
B116: =IF(ISBLANK(dms_E65_Projects_10),"",dms_E65_Projects_10) ->  | C116: 0 | D116: 0 | E116: 0 | F116: 0 | G116: 0
B117: =IF(ISBLANK(dms_E65_Projects_11),"",dms_E65_Projects_11) ->  | C117: 0 | D117: 0 | E117: 0 | F117: 0 | G117: 0
B118: =IF(ISBLANK(dms_E65_Projects_12),"",dms_E65_Projects_12) ->  | C118: 0 | D118: 0 | E118: 0 | F118: 0 | G118: 0
B119: =IF(ISBLANK(dms_E65_Projects_13),"",dms_E65_Projects_13) ->  | C119: 0 | D119: 0 | E119: 0 | F119: 0 | G119: 0
B120: =IF(ISBLANK(dms_E65_Projects_14),"",dms_E65_Projects_14) ->  | C120: 0 | D120: 0 | E120: 0 | F120: 0 | G120: 0
B121: =IF(ISBLANK(dms_E65_Projects_15),"",dms_E65_Projects_15) ->  | C121: 0 | D121: 0 | E121: 0 | F121: 0 | G121: 0
B122: Aggregate of other projects with total expenditure of less than $500,000 | C122: 0 | D122: 0 | E122: 0 | F122: 0 | G122: 0
B123: Total | C123: =SUM(C107:C122) -> 0 | D123: =SUM(D107:D122) -> 0 | E123: =SUM(E107:E122) -> 0 | F123: =SUM(F107:F122) -> 0 | G123: =SUM(G107:G122) -> 0
B125: F. CAPITAL CONTRIBUTIONS included in the above
B126: =IF(ISBLANK(dms_E65_Projects_01),"",dms_E65_Projects_01) -> SEE BELOW | C126: 0 | D126: 0 | E126: 0 | F126: 0 | G126: 0
B127: =IF(ISBLANK(dms_E65_Projects_02),"",dms_E65_Projects_02) ->  | C127: 0 | D127: 0 | E127: 0 | F127: 0 | G127: 0
B128: =IF(ISBLANK(dms_E65_Projects_03),"",dms_E65_Projects_03) ->  | C128: 0 | D128: 0 | E128: 0 | F128: 0 | G128: 0
B129: =IF(ISBLANK(dms_E65_Projects_04),"",dms_E65_Projects_04) ->  | C129: 0 | D129: 0 | E129: 0 | F129: 0 | G129: 0
B130: =IF(ISBLANK(dms_E65_Projects_05),"",dms_E65_Projects_05) ->  | C130: 0 | D130: 0 | E130: 0 | F130: 0 | G130: 0
B131: =IF(ISBLANK(dms_E65_Projects_06),"",dms_E65_Projects_06) ->  | C131: 0 | D131: 0 | E131: 0 | F131: 0 | G131: 0
B132: =IF(ISBLANK(dms_E65_Projects_07),"",dms_E65_Projects_07) ->  | C132: 0 | D132: 0 | E132: 0 | F132: 0 | G132: 0
B133: =IF(ISBLANK(dms_E65_Projects_08),"",dms_E65_Projects_08) ->  | C133: 0 | D133: 0 | E133: 0 | F133: 0 | G133: 0
B134: =IF(ISBLANK(dms_E65_Projects_09),"",dms_E65_Projects_09) ->  | C134: 0 | D134: 0 | E134: 0 | F134: 0 | G134: 0
B135: =IF(ISBLANK(dms_E65_Projects_10),"",dms_E65_Projects_10) ->  | C135: 0 | D135: 0 | E135: 0 | F135: 0 | G135: 0
B136: =IF(ISBLANK(dms_E65_Projects_11),"",dms_E65_Projects_11) ->  | C136: 0 | D136: 0 | E136: 0 | F136: 0 | G136: 0
B137: =IF(ISBLANK(dms_E65_Projects_12),"",dms_E65_Projects_12) ->  | C137: 0 | D137: 0 | E137: 0 | F137: 0 | G137: 0
B138: =IF(ISBLANK(dms_E65_Projects_13),"",dms_E65_Projects_13) ->  | C138: 0 | D138: 0 | E138: 0 | F138: 0 | G138: 0
B139: =IF(ISBLANK(dms_E65_Projects_14),"",dms_E65_Projects_14) ->  | C139: 0 | D139: 0 | E139: 0 | F139: 0 | G139: 0
B140: =IF(ISBLANK(dms_E65_Projects_15),"",dms_E65_Projects_15) ->  | C140: 0 | D140: 0 | E140: 0 | F140: 0 | G140: 0
B141: Aggregate of other projects with total expenditure of less than $500,000 | C141: 0 | D141: 0 | E141: 0 | F141: 0 | G141: 0
B142: Total | C142: =SUM(C126:C141) -> 0 | D142: =SUM(D126:D141) -> 0 | E142: =SUM(E126:E141) -> 0 | F142: =SUM(F126:F141) -> 0 | G142: =SUM(G126:G141) -> 0

Sheet E10. Overheads
B1: =INDEX(dms_Worksheet_List,MATCH(dms_Model,dms_Model_List)) -> HISTORICAL ANNUAL REPORTING
B2: =INDEX(dms_TradingNameFull_List,MATCH(dms_TradingName,dms_TradingName_List)) -> Australian Gas Networks Limited (reporting data for SA)
B3: =dms_Header_Span -> 2014-15 to 2018-19
B4: E10. OVERHEADS EXPENDITURE
B6: E10.1 - NETWORK
C7: EXPENDITURE
C8: $0's
C9: =dms_y1 -> 2014-15 | D9: =dms_y2 -> 2015-16 | E9: =dms_y3 -> 2016-17 | F9: =dms_y4 -> 2017-18 | G9: =dms_y5 -> 2018-19
B10: E10.1.1 - OPEX
B11: Reference services | C11: 0 | D11: 0 | E11: 0 | F11: 0 | G11: 0
B12: Non-reference services | C12: 0 | D12: 0 | E12: 0 | F12: 0 | G12: 0
B13: Total | C13: =SUM(C11:C12) -> 0 | D13: =SUM(D11:D12) -> 0 | E13: =SUM(E11:E12) -> 0 | F13: =SUM(F11:F12) -> 0 | G13: =SUM(G11:G12) -> 0
B14: E10.1.2 - CAPEX
B15: Reference services | C15: 11185753.4 | D15: 10510470.86 | E15: 9010681.866 | F15: 9208575.828 | G15: 8878303.437
B16: Non-reference services | C16: 0 | D16: 0 | E16: 0 | F16: 0 | G16: 0
B17: Total | C17: =SUM(C15:C16) -> 11185753.4 | D17: =SUM(D15:D16) -> 10510470.86 | E17: =SUM(E15:E16) -> 9010681.866 | F17: =SUM(F15:F16) -> 9208575.828 | G17: =SUM(G15:G16) -> 8878303.437
B21: E10.2 - CORPORATE
C22: EXPENDITURE
C23: $0's
C24: =dms_y1 -> 2014-15 | D24: =dms_y2 -> 2015-16 | E24: =dms_y3 -> 2016-17 | F24: =dms_y4 -> 2017-18 | G24: =dms_y5 -> 2018-19
B25: E10.2.1 - OPEX
B26: Reference services | C26: NULL | D26: NULL | E26: NULL | F26: NULL | G26: NULL
B27: Non-reference services | C27: NULL | D27: NULL | E27: NULL | F27: NULL | G27: NULL
B28: Total | C28: =SUM(C26:C27) -> 0 | D28: =SUM(D26:D27) -> 0 | E28: =SUM(E26:E27) -> 0 | F28: =SUM(F26:F27) -> 0 | G28: =SUM(G26:G27) -> 0
B29: E10.2.2 - CAPEX
B30: Reference services | C30: 0 | D30: 0 | E30: 0 | F30: 0 | G30: 0
B31: Non-reference services | C31: 0 | D31: 0 | E31: 0 | F31: 0 | G31: 0
B32: Total | C32: =SUM(C30:C31) -> 0 | D32: =SUM(D30:D31) -> 0 | E32: =SUM(E30:E31) -> 0 | F32: =SUM(F30:F31) -> 0 | G32: =SUM(G30:G31) -> 0

Sheet E12. ICT
B1: =INDEX(dms_Worksheet_List,MATCH(dms_Model,dms_Model_List)) -> HISTORICAL ANNUAL REPORTING
B2: =INDEX(dms_TradingNameFull_List,MATCH(dms_TradingName,dms_TradingName_List)) -> Australian Gas Networks Limited (reporting data for SA)
B3: =dms_Header_Span -> 2014-15 to 2018-19
B4: E12. INFORMATION AND COMMUNICATION TECHNOLOGY
B6: Please list all projects here:
B7: 3037 MAJOR PROJECTS - EAM
B8: 3198 MAJOR PROJECTS - GIS CONSOLIDATION
B9: 3209 MAJOR PROJECTS - SA SCADA NIMDS UPGRADE
B10: 3210 MAJOR PROJECTS - EAM UPGRADE
B11: 3229 MAJOR PROJECTS - APPLICATIONS RENEWAL - CC&B UPGRADE
B12: 3007 MAJOR PROJECTS - BILLING OPTIMISATION
B13: 3199 MAJOR PROJECTS - MAXIMO LICENSES
B14: 3202 MAJOR PROJECTS - MOBILITY INTEGRATION
B23: E12.1 - CAPEX - BY PROJECT
B24: A. DIRECT INTERNAL LABOUR EXPENDITURE
C25: EXPENDITURE
C26: $0's
C27: =dms_y1 -> 2014-15 | D27: =dms_y2 -> 2015-16 | E27: =dms_y3 -> 2016-17 | F27: =dms_y4 -> 2017-18 | G27: =dms_y5 -> 2018-19
B28: =IF(ISBLANK(dms_E12_Projects_01),"",dms_E12_Projects_01) -> 3037 MAJOR PROJECTS - EAM | C28: 0 | D28: 0 | E28: 0 | F28: 0 | G28: 0
B29: =IF(ISBLANK(dms_E12_Projects_02),"",dms_E12_Projects_02) -> 3198 MAJOR PROJECTS - GIS CONSOLIDATION | C29: 0 | D29: 0 | E29: 0 | F29: 0 | G29: 0
B30: =IF(ISBLANK(dms_E12_Projects_03),"",dms_E12_Projects_03) -> 3209 MAJOR PROJECTS - SA SCADA NIMDS UPGRADE | C30: 0 | D30: 0 | E30: 0 | F30: 0 | G30: 0
B31: =IF(ISBLANK(dms_E12_Projects_04),"",dms_E12_Projects_04) -> 3210 MAJOR PROJECTS - EAM UPGRADE | C31: 0 | D31: 0 | E31: 0 | F31: 0 | G31: 0
B32: =IF(ISBLANK(dms_E12_Projects_05),"",dms_E12_Projects_05) -> 3229 MAJOR PROJECTS - APPLICATIONS RENEWAL - CC&B UPGRADE | C32: 0 | D32: 0 | E32: 0 | F32: 0 | G32: 0
B33: =IF(ISBLANK(dms_E12_Projects_06),"",dms_E12_Projects_06) -> 3007 MAJOR PROJECTS - BILLING OPTIMISATION | C33: 0 | D33: 0 | E33: 0 | F33: 0 | G33: 0
B34: =IF(ISBLANK(dms_E12_Projects_07),"",dms_E12_Projects_07) -> 3199 MAJOR PROJECTS - MAXIMO LICENSES | C34: 0 | D34: 0 | E34: 0 | F34: 0 | G34: 0
B35: =IF(ISBLANK(dms_E12_Projects_08),"",dms_E12_Projects_08) -> 3202 MAJOR PROJECTS - MOBILITY INTEGRATION | C35: 0 | D35: 0 | E35: 0 | F35: 0 | G35: 0
B36: =IF(ISBLANK(dms_E12_Projects_09),"",dms_E12_Projects_09) ->  | C36: 0 | D36: 0 | E36: 0 | F36: 0 | G36: 0
B37: =IF(ISBLANK(dms_E12_Projects_10),"",dms_E12_Projects_10) ->  | C37: 0 | D37: 0 | E37: 0 | F37: 0 | G37: 0
B38: =IF(ISBLANK(dms_E12_Projects_11),"",dms_E12_Projects_11) ->  | C38: 0 | D38: 0 | E38: 0 | F38: 0 | G38: 0
B39: =IF(ISBLANK(dms_E12_Projects_12),"",dms_E12_Projects_12) ->  | C39: 0 | D39: 0 | E39: 0 | F39: 0 | G39: 0
B40: =IF(ISBLANK(dms_E12_Projects_13),"",dms_E12_Projects_13) ->  | C40: 0 | D40: 0 | E40: 0 | F40: 0 | G40: 0
B41: =IF(ISBLANK(dms_E12_Projects_14),"",dms_E12_Projects_14) ->  | C41: 0 | D41: 0 | E41: 0 | F41: 0 | G41: 0
B42: =IF(ISBLANK(dms_E12_Projects_15),"",dms_E12_Projects_15) ->  | C42: 0 | D42: 0 | E42: 0 | F42: 0 | G42: 0
B43: Aggregate of other projects with total expenditure of less than $500,000 | C43: 0 | D43: 0 | E43: 0 | F43: 0 | G43: 0
B44: Total | C44: =SUM(C28:C43) -> 0 | D44: =SUM(D28:D43) -> 0 | E44: =SUM(E28:E43) -> 0 | F44: =SUM(F28:F43) -> 0 | G44: =SUM(G28:G43) -> 0
B46: B. DIRECT CONTRACTOR EXPENDITURE
B47: =IF(ISBLANK(dms_E12_Projects_01),"",dms_E12_Projects_01) -> 3037 MAJOR PROJECTS - EAM | C47: 7510000 | D47: 39000 | E47: 0 | F47: 0 | G47: 0
B48: =IF(ISBLANK(dms_E12_Projects_02),"",dms_E12_Projects_02) -> 3198 MAJOR PROJECTS - GIS CONSOLIDATION | C48: 0 | D48: 0 | E48: 162330.9524 | F48: 539239.8864 | G48: 823879.9585
B49: =IF(ISBLANK(dms_E12_Projects_03),"",dms_E12_Projects_03) -> 3209 MAJOR PROJECTS - SA SCADA NIMDS UPGRADE | C49: 0 | D49: 0 | E49: 0 | F49: 920231.36 | G49: 1931394.19
B50: =IF(ISBLANK(dms_E12_Projects_04),"",dms_E12_Projects_04) -> 3210 MAJOR PROJECTS - EAM UPGRADE | C50: 0 | D50: 0 | E50: 0 | F50: 591286.9299 | G50: 0
B51: =IF(ISBLANK(dms_E12_Projects_05),"",dms_E12_Projects_05) -> 3229 MAJOR PROJECTS - APPLICATIONS RENEWAL - CC&B UPGRADE | C51: 0 | D51: 0 | E51: 0 | F51: 34249.52199 | G51: 1198185.687
B52: =IF(ISBLANK(dms_E12_Projects_06),"",dms_E12_Projects_06) -> 3007 MAJOR PROJECTS - BILLING OPTIMISATION | C52: 2278860.31 | D52: 20587.21 | E52: -38792.71 | F52: 0 | G52: 0
B53: =IF(ISBLANK(dms_E12_Projects_07),"",dms_E12_Projects_07) -> 3199 MAJOR PROJECTS - MAXIMO LICENSES | C53: 0 | D53: 0 | E53: 0 | F53: 465465.17 | G53: 0
B54: =IF(ISBLANK(dms_E12_Projects_08),"",dms_E12_Projects_08) -> 3202 MAJOR PROJECTS - MOBILITY INTEGRATION | C54: 0 | D54: 0 | E54: 0 | F54: 140184.7592 | G54: 457087.1993
B55: =IF(ISBLANK(dms_E12_Projects_09),"",dms_E12_Projects_09) ->  | C55: 0 | D55: 0 | E55: 0 | F55: 0 | G55: 0
B56: =IF(ISBLANK(dms_E12_Projects_10),"",dms_E12_Projects_10) ->  | C56: 0 | D56: 0 | E56: 0 | F56: 0 | G56: 0
B57: =IF(ISBLANK(dms_E12_Projects_11),"",dms_E12_Projects_11) ->  | C57: 0 | D57: 0 | E57: 0 | F57: 0 | G57: 0
B58: =IF(ISBLANK(dms_E12_Projects_12),"",dms_E12_Projects_12) ->  | C58: 0 | D58: 0 | E58: 0 | F58: 0 | G58: 0
B59: =IF(ISBLANK(dms_E12_Projects_13),"",dms_E12_Projects_13) ->  | C59: 0 | D59: 0 | E59: 0 | F59: 0 | G59: 0
B60: =IF(ISBLANK(dms_E12_Projects_14),"",dms_E12_Projects_14) ->  | C60: 0 | D60: 0 | E60: 0 | F60: 0 | G60: 0
B61: =IF(ISBLANK(dms_E12_Projects_15),"",dms_E12_Projects_15) ->  | C61: 0 | D61: 0 | E61: 0 | F61: 0 | G61: 0
B62: Aggregate of other projects with total expenditure of less than $500,000 | C62: 298598.14 | D62: 261457.7692 | E62: 269031.5783 | F62: 551969.8531 | G62: 624103.6117
B63: Total | C63: =SUM(C47:C62) -> 10087458.45 | D63: =SUM(D47:D62) -> 321044.9792 | E63: =SUM(E47:E62) -> 392569.8206 | F63: =SUM(F47:F62) -> 3242627.481 | G63: =SUM(G47:G62) -> 5034650.646
B65: C. OTHER INTERNAL DIRECT EXPENDITURE
B66: =IF(ISBLANK(dms_E12_Projects_01),"",dms_E12_Projects_01) -> 3037 MAJOR PROJECTS - EAM | C66: 0 | D66: 0 | E66: 0 | F66: 0 | G66: 0
B67: =IF(ISBLANK(dms_E12_Projects_02),"",dms_E12_Projects_02) -> 3198 MAJOR PROJECTS - GIS CONSOLIDATION | C67: 0 | D67: 0 | E67: 0 | F67: 0 | G67: 0
B68: =IF(ISBLANK(dms_E12_Projects_03),"",dms_E12_Projects_03) -> 3209 MAJOR PROJECTS - SA SCADA NIMDS UPGRADE | C68: 0 | D68: 0 | E68: 0 | F68: 0 | G68: 0
B69: =IF(ISBLANK(dms_E12_Projects_04),"",dms_E12_Projects_04) -> 3210 MAJOR PROJECTS - EAM UPGRADE | C69: 0 | D69: 0 | E69: 0 | F69: 0 | G69: 0
B70: =IF(ISBLANK(dms_E12_Projects_05),"",dms_E12_Projects_05) -> 3229 MAJOR PROJECTS - APPLICATIONS RENEWAL - CC&B UPGRADE | C70: 0 | D70: 0 | E70: 0 | F70: 0 | G70: 0
B71: =IF(ISBLANK(dms_E12_Projects_06),"",dms_E12_Projects_06) -> 3007 MAJOR PROJECTS - BILLING OPTIMISATION | C71: 0 | D71: 0 | E71: 0 | F71: 0 | G71: 0
B72: =IF(ISBLANK(dms_E12_Projects_07),"",dms_E12_Projects_07) -> 3199 MAJOR PROJECTS - MAXIMO LICENSES | C72: 0 | D72: 0 | E72: 0 | F72: 0 | G72: 0
B73: =IF(ISBLANK(dms_E12_Projects_08),"",dms_E12_Projects_08) -> 3202 MAJOR PROJECTS - MOBILITY INTEGRATION | C73: 0 | D73: 0 | E73: 0 | F73: 0 | G73: 0
B74: =IF(ISBLANK(dms_E12_Projects_09),"",dms_E12_Projects_09) ->  | C74: 0 | D74: 0 | E74: 0 | F74: 0 | G74: 0
B75: =IF(ISBLANK(dms_E12_Projects_10),"",dms_E12_Projects_10) ->  | C75: 0 | D75: 0 | E75: 0 | F75: 0 | G75: 0
B76: =IF(ISBLANK(dms_E12_Projects_11),"",dms_E12_Projects_11) ->  | C76: 0 | D76: 0 | E76: 0 | F76: 0 | G76: 0
B77: =IF(ISBLANK(dms_E12_Projects_12),"",dms_E12_Projects_12) ->  | C77: 0 | D77: 0 | E77: 0 | F77: 0 | G77: 0
B78: =IF(ISBLANK(dms_E12_Projects_13),"",dms_E12_Projects_13) ->  | C78: 0 | D78: 0 | E78: 0 | F78: 0 | G78: 0
B79: =IF(ISBLANK(dms_E12_Projects_14),"",dms_E12_Projects_14) ->  | C79: 0 | D79: 0 | E79: 0 | F79: 0 | G79: 0
B80: =IF(ISBLANK(dms_E12_Projects_15),"",dms_E12_Projects_15) ->  | C80: 0 | D80: 0 | E80: 0 | F80: 0 | G80: 0
B81: Aggregate of other projects with total expenditure of less than $500,000 | C81: 0 | D81: 343834.58 | E81: 375882.33 | F81: 143684.37 | G81: 30184.58
B82: Total | C82: =SUM(C66:C81) -> 0 | D82: =SUM(D66:D81) -> 343834.58 | E82: =SUM(E66:E81) -> 375882.33 | F82: =SUM(F66:F81) -> 143684.37 | G82: =SUM(G66:G81) -> 30184.58
B84: D. TOTAL OVERHEAD EXPENDITURE
B85: =IF(ISBLANK(dms_E12_Projects_01),"",dms_E12_Projects_01) -> 3037 MAJOR PROJECTS - EAM | C85: 917722 | D85: 0 | E85: 0 | F85: 0 | G85: 0
B86: =IF(ISBLANK(dms_E12_Projects_02),"",dms_E12_Projects_02) -> 3198 MAJOR PROJECTS - GIS CONSOLIDATION | C86: 0 | D86: 0 | E86: 0 | F86: 0 | G86: 0
B87: =IF(ISBLANK(dms_E12_Projects_03),"",dms_E12_Projects_03) -> 3209 MAJOR PROJECTS - SA SCADA NIMDS UPGRADE | C87: 0 | D87: 0 | E87: 0 | F87: 0 | G87: 0
B88: =IF(ISBLANK(dms_E12_Projects_04),"",dms_E12_Projects_04) -> 3210 MAJOR PROJECTS - EAM UPGRADE | C88: 0 | D88: 0 | E88: 0 | F88: 0 | G88: 0
B89: =IF(ISBLANK(dms_E12_Projects_05),"",dms_E12_Projects_05) -> 3229 MAJOR PROJECTS - APPLICATIONS RENEWAL - CC&B UPGRADE | C89: 0 | D89: 0 | E89: 0 | F89: 0 | G89: 0
B90: =IF(ISBLANK(dms_E12_Projects_06),"",dms_E12_Projects_06) -> 3007 MAJOR PROJECTS - BILLING OPTIMISATION | C90: 850495.1714 | D90: -259863.6992 | E90: 0 | F90: 0 | G90: 0
B91: =IF(ISBLANK(dms_E12_Projects_07),"",dms_E12_Projects_07) -> 3199 MAJOR PROJECTS - MAXIMO LICENSES | C91: 0 | D91: 0 | E91: 0 | F91: 0 | G91: 0
B92: =IF(ISBLANK(dms_E12_Projects_08),"",dms_E12_Projects_08) -> 3202 MAJOR PROJECTS - MOBILITY INTEGRATION | C92: 0 | D92: 0 | E92: 0 | F92: 0 | G92: 0
B93: =IF(ISBLANK(dms_E12_Projects_09),"",dms_E12_Projects_09) -> 
B94: =IF(ISBLANK(dms_E12_Projects_10),"",dms_E12_Projects_10) ->  | C94: 0 | D94: 0 | E94: 0 | F94: 0 | G94: 0
B95: =IF(ISBLANK(dms_E12_Projects_11),"",dms_E12_Projects_11) ->  | C95: 0 | D95: 0 | E95: 0 | F95: 0 | G95: 0
B96: =IF(ISBLANK(dms_E12_Projects_12),"",dms_E12_Projects_12) ->  | C96: 0 | D96: 0 | E96: 0 | F96: 0 | G96: 0
B97: =IF(ISBLANK(dms_E12_Projects_13),"",dms_E12_Projects_13) ->  | C97: 0 | D97: 0 | E97: 0 | F97: 0 | G97: 0
B98: =IF(ISBLANK(dms_E12_Projects_14),"",dms_E12_Projects_14) ->  | C98: 0 | D98: 0 | E98: 0 | F98: 0 | G98: 0
B99: =IF(ISBLANK(dms_E12_Projects_15),"",dms_E12_Projects_15) ->  | C99: 0 | D99: 0 | E99: 0 | F99: 0 | G99: 0
B100: Aggregate of other projects with total expenditure of less than $500,000 | C100: 28424.93853 | D100: -1792.639502 | E100: 0 | F100: 0 | G100: 0
B101: Total | C101: =SUM(C85:C100) -> 1796642.11 | D101: =SUM(D85:D100) -> -261656.3387 | E101: =SUM(E85:E100) -> 0 | F101: =SUM(F85:F100) -> 0 | G101: =SUM(G85:G100) -> 0
B103: E. RELATED PARTY MARGIN EXPENDITURE
B104: =IF(ISBLANK(dms_E12_Projects_01),"",dms_E12_Projects_01) -> 3037 MAJOR PROJECTS - EAM | C104: 0 | D104: 0 | E104: 0 | F104: 0 | G104: 0
B105: =IF(ISBLANK(dms_E12_Projects_02),"",dms_E12_Projects_02) -> 3198 MAJOR PROJECTS - GIS CONSOLIDATION | C105: 0 | D105: 0 | E105: 0 | F105: 0 | G105: 0
B106: =IF(ISBLANK(dms_E12_Projects_03),"",dms_E12_Projects_03) -> 3209 MAJOR PROJECTS - SA SCADA NIMDS UPGRADE | C106: 0 | D106: 0 | E106: 0 | F106: 0 | G106: 0
B107: =IF(ISBLANK(dms_E12_Projects_04),"",dms_E12_Projects_04) -> 3210 MAJOR PROJECTS - EAM UPGRADE | C107: 0 | D107: 0 | E107: 0 | F107: 0 | G107: 0
B108: =IF(ISBLANK(dms_E12_Projects_05),"",dms_E12_Projects_05) -> 3229 MAJOR PROJECTS - APPLICATIONS RENEWAL - CC&B UPGRADE | C108: 0 | D108: 0 | E108: 0 | F108: 0 | G108: 0
B109: =IF(ISBLANK(dms_E12_Projects_06),"",dms_E12_Projects_06) -> 3007 MAJOR PROJECTS - BILLING OPTIMISATION | C109: 0 | D109: 0 | E109: 0 | F109: 0 | G109: 0
B110: =IF(ISBLANK(dms_E12_Projects_07),"",dms_E12_Projects_07) -> 3199 MAJOR PROJECTS - MAXIMO LICENSES | C110: 0 | D110: 0 | E110: 0 | F110: 0 | G110: 0
B111: =IF(ISBLANK(dms_E12_Projects_08),"",dms_E12_Projects_08) -> 3202 MAJOR PROJECTS - MOBILITY INTEGRATION | C111: 0 | D111: 0 | E111: 0 | F111: 0 | G111: 0
B112: =IF(ISBLANK(dms_E12_Projects_09),"",dms_E12_Projects_09) ->  | C112: 0 | D112: 0 | E112: 0 | F112: 0 | G112: 0
B113: =IF(ISBLANK(dms_E12_Projects_10),"",dms_E12_Projects_10) ->  | C113: 0 | D113: 0 | E113: 0 | F113: 0 | G113: 0
B114: =IF(ISBLANK(dms_E12_Projects_11),"",dms_E12_Projects_11) ->  | C114: 0 | D114: 0 | E114: 0 | F114: 0 | G114: 0
B115: =IF(ISBLANK(dms_E12_Projects_12),"",dms_E12_Projects_12) ->  | C115: 0 | D115: 0 | E115: 0 | F115: 0 | G115: 0
B116: =IF(ISBLANK(dms_E12_Projects_13),"",dms_E12_Projects_13) ->  | C116: 0 | D116: 0 | E116: 0 | F116: 0 | G116: 0
B117: =IF(ISBLANK(dms_E12_Projects_14),"",dms_E12_Projects_14) ->  | C117: 0 | D117: 0 | E117: 0 | F117: 0 | G117: 0
B118: =IF(ISBLANK(dms_E12_Projects_15),"",dms_E12_Projects_15) ->  | C118: 0 | D118: 0 | E118: 0 | F118: 0 | G118: 0
B119: Aggregate of other projects with total expenditure of less than $500,000 | C119: 0 | D119: 0 | E119: 0 | F119: 0 | G119: 0
B120: Total | C120: =SUM(C104:C119) -> 0 | D120: =SUM(D104:D119) -> 0 | E120: =SUM(E104:E119) -> 0 | F120: =SUM(F104:F119) -> 0 | G120: =SUM(G104:G119) -> 0
B122: F. CAPITAL CONTRIBUTIONS included in the above
B123: =IF(ISBLANK(dms_E12_Projects_01),"",dms_E12_Projects_01) -> 3037 MAJOR PROJECTS - EAM | C123: 0 | D123: 0 | E123: 0 | F123: 0 | G123: 0
B124: =IF(ISBLANK(dms_E12_Projects_02),"",dms_E12_Projects_02) -> 3198 MAJOR PROJECTS - GIS CONSOLIDATION | C124: 0 | D124: 0 | E124: 0 | F124: 0 | G124: 0
B125: =IF(ISBLANK(dms_E12_Projects_03),"",dms_E12_Projects_03) -> 3209 MAJOR PROJECTS - SA SCADA NIMDS UPGRADE | C125: 0 | D125: 0 | E125: 0 | F125: 0 | G125: 0
B126: =IF(ISBLANK(dms_E12_Projects_04),"",dms_E12_Projects_04) -> 3210 MAJOR PROJECTS - EAM UPGRADE | C126: 0 | D126: 0 | E126: 0 | F126: 0 | G126: 0
B127: =IF(ISBLANK(dms_E12_Projects_05),"",dms_E12_Projects_05) -> 3229 MAJOR PROJECTS - APPLICATIONS RENEWAL - CC&B UPGRADE | C127: 0 | D127: 0 | E127: 0 | F127: 0 | G127: 0
B128: =IF(ISBLANK(dms_E12_Projects_06),"",dms_E12_Projects_06) -> 3007 MAJOR PROJECTS - BILLING OPTIMISATION | C128: 0 | D128: 0 | E128: 0 | F128: 0 | G128: 0
B129: =IF(ISBLANK(dms_E12_Projects_07),"",dms_E12_Projects_07) -> 3199 MAJOR PROJECTS - MAXIMO LICENSES | C129: 0 | D129: 0 | E129: 0 | F129: 0 | G129: 0
B130: =IF(ISBLANK(dms_E12_Projects_08),"",dms_E12_Projects_08) -> 3202 MAJOR PROJECTS - MOBILITY INTEGRATION | C130: 0 | D130: 0 | E130: 0 | F130: 0 | G130: 0
B131: =IF(ISBLANK(dms_E12_Projects_09),"",dms_E12_Projects_09) ->  | C131: 0 | D131: 0 | E131: 0 | F131: 0 | G131: 0
B132: =IF(ISBLANK(dms_E12_Projects_10),"",dms_E12_Projects_10) ->  | C132: 0 | D132: 0 | E132: 0 | F132: 0 | G132: 0
B133: =IF(ISBLANK(dms_E12_Projects_11),"",dms_E12_Projects_11) ->  | C133: 0 | D133: 0 | E133: 0 | F133: 0 | G133: 0
B134: =IF(ISBLANK(dms_E12_Projects_12),"",dms_E12_Projects_12) ->  | C134: 0 | D134: 0 | E134: 0 | F134: 0 | G134: 0
B135: =IF(ISBLANK(dms_E12_Projects_13),"",dms_E12_Projects_13) ->  | C135: 0 | D135: 0 | E135: 0 | F135: 0 | G135: 0
B136: =IF(ISBLANK(dms_E12_Projects_14),"",dms_E12_Projects_14) ->  | C136: 0 | D136: 0 | E136: 0 | F136: 0 | G136: 0
B137: =IF(ISBLANK(dms_E12_Projects_15),"",dms_E12_Projects_15) ->  | C137: 0 | D137: 0 | E137: 0 | F137: 0 | G137: 0
B138: Aggregate of other projects with total expenditure of less than $500,000 | C138: 0 | D138: 0 | E138: 0 | F138: 0 | G138: 0
B139: Total | C139: =SUM(C123:C138) -> 0 | D139: =SUM(D123:D138) -> 0 | E139: =SUM(E123:E138) -> 0 | F139: =SUM(F123:F138) -> 0 | G139: =SUM(G123:G138) -> 0

Sheet E13. Other capex
B1: =INDEX(dms_Worksheet_List,MATCH(dms_Model,dms_Model_List)) -> HISTORICAL ANNUAL REPORTING
B2: =INDEX(dms_TradingNameFull_List,MATCH(dms_TradingName,dms_TradingName_List)) -> Australian Gas Distribution Co.
B3: =dms_Header_Span -> 2014-15 to 2018-19
B4: E13. OTHER CAPITAL EXPENDITURE
B6: Please list all projects here:
B7: 2106 C P - CORROSION PROTECTION - CAPEX <$500K
B8: 2130 MAINS ALTERATION CHRG - MA CL16 - Darlington S2 Mains
B9: 2130 MAINS ALTERATION CHRG - MA CL17 Darlington Stg3
B10: 2130 MAINS ALTERATION CHRG - MA CL18 - Oaklands Rd Rail X2
B11: 2130 MAINS ALTERATION CHRG - MA CL16 T2T WP3&4
B12: 2130 MAINS ALTERATION CHRG - MA CL15 - T2T
B13: 2130 MAINS ALTERATION CHRG - MA CL18 Nth Tce Tram Valve
B14: 2130 MAINS ALTERATION CHRG - MA CL18 - Oaklands Rd Rail X
B15: 2130 MAINS ALTERATION - CHARGEABLE - CAPEX <$500K
B16: 2131 MAINS ALTERATION - NON CHARGEABLE - CAPEX <$500K
B17: 2139 NETWORK - REGULATOR STAY IN BUSINESS <$500K
B18: 2142 NETWORK - REGULATOR CAPEX <$500K
B19: 2152 NETWORK - STOPPLE EQUIPMENT HDPE CAMERA
B20: 2152 NETWORK - STOPPLE EQUIPMENT<$500K
B21: 2190 OTHER - NON RETIC CAPITAL
B22: 3043 MAJOR PROJECTS - BOWDEN
B23: 2152 NETWORK - STOPPLE EQUIPMENT - INLETS INSIDE CAVITIES
B24: 2990 MAJOR PROJECTS - VIRGINIA
B25: 2997 MAJOR PROJECTS - BERRI
B28: E13.1 - CAPEX - BY PROJECT
C29: EXPENDITURE
C30: $0's
C31: =dms_y1 -> 2014-15 | D31: =dms_y2 -> 2015-16 | E31: =dms_y3 -> 2016-17 | F31: =dms_y4 -> 2017-18 | G31: =dms_y5 -> 2018-19
B32: A. DIRECT INTERNAL LABOUR EXPENDITURE
B33: =IF(ISBLANK(dms_E13_Projects_01),"",dms_E13_Projects_01) -> 2106 C P - CORROSION PROTECTION - CAPEX <$500K | C33: 0 | D33: 0 | E33: 0 | F33: 0 | G33: 0
B34: =IF(ISBLANK(dms_E13_Projects_02),"",dms_E13_Projects_02) -> 2130 MAINS ALTERATION CHRG - MA CL16 - Darlington S2 Mains | C34: 0 | D34: 0 | E34: 0 | F34: 0 | G34: 0
B35: =IF(ISBLANK(dms_E13_Projects_03),"",dms_E13_Projects_03) -> 2130 MAINS ALTERATION CHRG - MA CL17 Darlington Stg3 | C35: 0 | D35: 0 | E35: 0 | F35: 0 | G35: 0
B36: =IF(ISBLANK(dms_E13_Projects_04),"",dms_E13_Projects_04) -> 2130 MAINS ALTERATION CHRG - MA CL18 - Oaklands Rd Rail X2 | C36: 0 | D36: 0 | E36: 0 | F36: 0 | G36: 0
B37: =IF(ISBLANK(dms_E13_Projects_05),"",dms_E13_Projects_05) -> 2130 MAINS ALTERATION CHRG - MA CL16 T2T WP3&4 | C37: 0 | D37: 0 | E37: 0 | F37: 0 | G37: 0
B38: =IF(ISBLANK(dms_E13_Projects_06),"",dms_E13_Projects_06) -> 2130 MAINS ALTERATION CHRG - MA CL15 - T2T | C38: 0 | D38: 0 | E38: 0 | F38: 0 | G38: 0
B39: =IF(ISBLANK(dms_E13_Projects_07),"",dms_E13_Projects_07) -> 2130 MAINS ALTERATION CHRG - MA CL18 Nth Tce Tram Valve | C39: 0 | D39: 0 | E39: 0 | F39: 0 | G39: 0
B40: =IF(ISBLANK(dms_E13_Projects_08),"",dms_E13_Projects_08) -> 2130 MAINS ALTERATION CHRG - MA CL18 - Oaklands Rd Rail X | C40: 0 | D40: 0 | E40: 0 | F40: 0 | G40: 0
B41: =IF(ISBLANK(dms_E13_Projects_09),"",dms_E13_Projects_09) -> 2130 MAINS ALTERATION - CHARGEABLE - CAPEX <$500K | C41: 0 | D41: 0 | E41: 0 | F41: 0 | G41: 0
B42: =IF(ISBLANK(dms_E13_Projects_10),"",dms_E13_Projects_10) -> 2131 MAINS ALTERATION - NON CHARGEABLE - CAPEX <$500K | C42: 0 | D42: 0 | E42: 0 | F42: 0 | G42: 0
B43: =IF(ISBLANK(dms_E13_Projects_11),"",dms_E13_Projects_11) -> 2139 NETWORK - REGULATOR STAY IN BUSINESS <$500K | C43: 0 | D43: 0 | E43: 0 | F43: 0 | G43: 0
B44: =IF(ISBLANK(dms_E13_Projects_12),"",dms_E13_Projects_12) -> 2142 NETWORK - REGULATOR CAPEX <$500K | C44: 0 | D44: 0 | E44: 0 | F44: 0 | G44: 0
B45: =IF(ISBLANK(dms_E13_Projects_13),"",dms_E13_Projects_13) -> 2152 NETWORK - STOPPLE EQUIPMENT HDPE CAMERA | C45: 0 | D45: 0 | E45: 0 | F45: 0 | G45: 0
B46: =IF(ISBLANK(dms_E13_Projects_14),"",dms_E13_Projects_14) -> 2152 NETWORK - STOPPLE EQUIPMENT<$500K | C46: 0 | D46: 0 | E46: 0 | F46: 0 | G46: 0
B47: =IF(ISBLANK(dms_E13_Projects_15),"",dms_E13_Projects_15) -> 2190 OTHER - NON RETIC CAPITAL | C47: 0 | D47: 0 | E47: 0 | F47: 0 | G47: 0
B48: Aggregate of other projects with total expenditure of less than $500,000 | C48: 0 | D48: 0 | E48: 0 | F48: 0 | G48: 0
B49: Total | C49: =SUM(C33:C48) -> 0 | D49: =SUM(D33:D48) -> 0 | E49: =SUM(E33:E48) -> 0 | F49: =SUM(F33:F48) -> 0 | G49: =SUM(G33:G48) -> 0
B51: B. DIRECT CONTRACTOR EXPENDITURE
B52: =IF(ISBLANK(dms_E13_Projects_01),"",dms_E13_Projects_01) -> 2106 C P - CORROSION PROTECTION - CAPEX <$500K
B53: =IF(ISBLANK(dms_E13_Projects_02),"",dms_E13_Projects_02) -> 2130 MAINS ALTERATION CHRG - MA CL16 - Darlington S2 Mains
B54: =IF(ISBLANK(dms_E13_Projects_03),"",dms_E13_Projects_03) -> 2130 MAINS ALTERATION CHRG - MA CL17 Darlington Stg3
B55: =IF(ISBLANK(dms_E13_Projects_04),"",dms_E13_Projects_04) -> 2130 MAINS ALTERATION CHRG - MA CL18 - Oaklands Rd Rail X2
B56: =IF(ISBLANK(dms_E13_Projects_05),"",dms_E13_Projects_05) -> 2130 MAINS ALTERATION CHRG - MA CL16 T2T WP3&4
B57: =IF(ISBLANK(dms_E13_Projects_06),"",dms_E13_Projects_06) -> 2130 MAINS ALTERATION CHRG - MA CL15 - T2T
B58: =IF(ISBLANK(dms_E13_Projects_07),"",dms_E13_Projects_07) -> 2130 MAINS ALTERATION CHRG - MA CL18 Nth Tce Tram Valve
B59: =IF(ISBLANK(dms_E13_Projects_08),"",dms_E13_Projects_08) -> 2130 MAINS ALTERATION CHRG - MA CL18 - Oaklands Rd Rail X
B60: =IF(ISBLANK(dms_E13_Projects_09),"",dms_E13_Projects_09) -> 2130 MAINS ALTERATION - CHARGEABLE - CAPEX <$500K
B61: =IF(ISBLANK(dms_E13_Projects_10),"",dms_E13_Projects_10) -> 2131 MAINS ALTERATION - NON CHARGEABLE - CAPEX <$500K
B62: =IF(ISBLANK(dms_E13_Projects_11),"",dms_E13_Projects_11) -> 2139 NETWORK - REGULATOR STAY IN BUSINESS <$500K
B63: =IF(ISBLANK(dms_E13_Projects_12),"",dms_E13_Projects_12) -> 2142 NETWORK - REGULATOR CAPEX <$500K
B64: =IF(ISBLANK(dms_E13_Projects_13),"",dms_E13_Projects_13) -> 2152 NETWORK - STOPPLE EQUIPMENT HDPE CAMERA
B65: =IF(ISBLANK(dms_E13_Projects_14),"",dms_E13_Projects_14) -> 2152 NETWORK - STOPPLE EQUIPMENT<$500K
B66: =IF(ISBLANK(dms_E13_Projects_15),"",dms_E13_Projects_15) -> 2190 OTHER - NON RETIC CAPITAL
B67: =+B22 -> 3043 MAJOR PROJECTS - BOWDEN
B68: =+B23 -> 2152 NETWORK - STOPPLE EQUIPMENT - INLETS INSIDE CAVITIES
B69: 2990 MAJOR PROJECTS - VIRGINIA
B70: 2997 MAJOR PROJECTS - BERRI
C71: 0 | D71: 0 | E71: 0 | F71: 0 | G71: 0
C72: 0 | D72: 0 | E72: 0 | F72: 0 | G72: 0
C73: 0 | D73: 0 | E73: 0 | F73: 0 | G73: 0
C74: 0 | D74: 0 | E74: 0 | F74: 0 | G74: 0
C75: 0 | D75: 0 | E75: 0 | F75: 0 | G75: 0
C76: 0 | D76: 0 | E76: 0 | F76: 0 | G76: 0
C77: 0 | D77: 0 | E77: 0 | F77: 0 | G77: 0
C78: 0 | D78: 0 | E78: 0 | F78: 0 | G78: 0
C79: 0 | D79: 0 | E79: 0 | F79: 0 | G79: 0
C80: 0 | D80: 0 | E80: 0 | F80: 0 | G80: 0
C81: 0 | D81: 0 | E81: 0 | F81: 0 | G81: 0
C82: 0 | D82: 0 | E82: 0 | F82: 0 | G82: 0
C83: 0 | D83: 0 | E83: 0 | F83: 0 | G83: 0
C84: 0 | D84: 0 | E84: 0 | F84: 0 | G84: 0
B85: Aggregate of other projects with total expenditure of less than $500,000 | C85: 0 | D85: 0 | E85: 0 | F85: 0 | G85: 0
B86: Total | C86: =SUM(C52:C85) -> 0 | D86: =SUM(D52:D85) -> 0 | E86: =SUM(E52:E85) -> 0 | F86: =SUM(F52:F85) -> 0 | G86: =SUM(G52:G85) -> 0
B88: C. OTHER INTERNAL DIRECT EXPENDITURE
B89: =IF(ISBLANK(dms_E13_Projects_01),"",dms_E13_Projects_01) -> 2106 C P - CORROSION PROTECTION - CAPEX <$500K | C89: 0 | D89: 0 | E89: 0 | F89: 0 | G89: 0
B90: =IF(ISBLANK(dms_E13_Projects_02),"",dms_E13_Projects_02) -> 2130 MAINS ALTERATION CHRG - MA CL16 - Darlington S2 Mains | C90: 0 | D90: 0 | E90: 0 | F90: 0 | G90: 0
B91: =IF(ISBLANK(dms_E13_Projects_03),"",dms_E13_Projects_03) -> 2130 MAINS ALTERATION CHRG - MA CL17 Darlington Stg3 | C91: 0 | D91: 0 | E91: 0 | F91: 0 | G91: 0
B92: =IF(ISBLANK(dms_E13_Projects_04),"",dms_E13_Projects_04) -> 2130 MAINS ALTERATION CHRG - MA CL18 - Oaklands Rd Rail X2 | C92: 0 | D92: 0 | E92: 0 | F92: 0 | G92: 0
B93: =IF(ISBLANK(dms_E13_Projects_05),"",dms_E13_Projects_05) -> 2130 MAINS ALTERATION CHRG - MA CL16 T2T WP3&4 | C93: 0 | D93: 0 | E93: 0 | F93: 0 | G93: 0
B94: =IF(ISBLANK(dms_E13_Projects_06),"",dms_E13_Projects_06) -> 2130 MAINS ALTERATION CHRG - MA CL15 - T2T | C94: 0 | D94: 0 | E94: 0 | F94: 0 | G94: 0
B95: =IF(ISBLANK(dms_E13_Projects_07),"",dms_E13_Projects_07) -> 2130 MAINS ALTERATION CHRG - MA CL18 Nth Tce Tram Valve | C95: 0 | D95: 0 | E95: 0 | F95: 0 | G95: 0
B96: =IF(ISBLANK(dms_E13_Projects_08),"",dms_E13_Projects_08) -> 2130 MAINS ALTERATION CHRG - MA CL18 - Oaklands Rd Rail X | C96: 0 | D96: 0 | E96: 0 | F96: 0 | G96: 0
B97: =IF(ISBLANK(dms_E13_Projects_09),"",dms_E13_Projects_09) -> 2130 MAINS ALTERATION - CHARGEABLE - CAPEX <$500K | C97: 0 | D97: 0 | E97: 0 | F97: 0 | G97: 0
B98: =IF(ISBLANK(dms_E13_Projects_10),"",dms_E13_Projects_10) -> 2131 MAINS ALTERATION - NON CHARGEABLE - CAPEX <$500K | C98: 0 | D98: 0 | E98: 0 | F98: 0 | G98: 0
B99: =IF(ISBLANK(dms_E13_Projects_11),"",dms_E13_Projects_11) -> 2139 NETWORK - REGULATOR STAY IN BUSINESS <$500K | C99: 0 | D99: 0 | E99: 0 | F99: 0 | G99: 0
B100: =IF(ISBLANK(dms_E13_Projects_12),"",dms_E13_Projects_12) -> 2142 NETWORK - REGULATOR CAPEX <$500K | C100: 0 | D100: 0 | E100: 0 | F100: 0 | G100: 0
B101: =IF(ISBLANK(dms_E13_Projects_13),"",dms_E13_Projects_13) -> 2152 NETWORK - STOPPLE EQUIPMENT HDPE CAMERA | C101: 0 | D101: 0 | E101: 0 | F101: 0 | G101: 0
B102: =IF(ISBLANK(dms_E13_Projects_14),"",dms_E13_Projects_14) -> 2152 NETWORK - STOPPLE EQUIPMENT<$500K | C102: 0 | D102: 0 | E102: 0 | F102: 0 | G102: 0
B103: =IF(ISBLANK(dms_E13_Projects_15),"",dms_E13_Projects_15) -> 2190 OTHER - NON RETIC CAPITAL | C103: 0 | D103: 0 | E103: 0 | F103: 0 | G103: 0
B104: =+B22 -> 3043 MAJOR PROJECTS - BOWDEN | C104: 0 | D104: 0 | E104: 0 | F104: 0 | G104: 0
B105: =+B23 -> 2152 NETWORK - STOPPLE EQUIPMENT - INLETS INSIDE CAVITIES | C105: 0 | D105: 0 | E105: 0 | F105: 0 | G105: 0
B106: =+B24 -> 2990 MAJOR PROJECTS - VIRGINIA | C106: 0 | D106: 0 | E106: 0 | F106: 0 | G106: 0
B107: 2997 MAJOR PROJECTS - BERRI | C107: 0 | D107: 0 | E107: 0 | F107: 0 | G107: 0
C108: 0 | D108: 0 | E108: 0 | F108: 0 | G108: 0
B109: Aggregate of other projects with total expenditure of less than $500,000 | C109: 0 | D109: 9912.13 | E109: 8860 | F109: 15889.9 | G109: 14417.27
B110: Total | C110: =SUM(C89:C109) -> 0 | D110: =SUM(D89:D109) -> 9912.13 | E110: =SUM(E89:E109) -> 8860 | F110: =SUM(F89:F109) -> 15889.9 | G110: =SUM(G89:G109) -> 14417.27
B112: D. TOTAL OVERHEAD EXPENDITURE
B113: =IF(ISBLANK(dms_E13_Projects_01),"",dms_E13_Projects_01) -> 2106 C P - CORROSION PROTECTION - CAPEX <$500K | C113: 162076.562 | D113: 96462.67163 | E113: 88313.13432 | F113: 90081.29803 | G113: 85540.97954
B114: =IF(ISBLANK(dms_E13_Projects_02),"",dms_E13_Projects_02) -> 2130 MAINS ALTERATION CHRG - MA CL16 - Darlington S2 Mains | C114: 0 | D114: 0 | E114: 257554.6219 | F114: 66362.57542 | G114: 10182.55675
B115: =IF(ISBLANK(dms_E13_Projects_03),"",dms_E13_Projects_03) -> 2130 MAINS ALTERATION CHRG - MA CL17 Darlington Stg3 | C115: 0 | D115: 0 | E115: 98005.74365 | F115: 67984.6573 | G115: 11898.04297
B116: =IF(ISBLANK(dms_E13_Projects_04),"",dms_E13_Projects_04) -> 2130 MAINS ALTERATION CHRG - MA CL18 - Oaklands Rd Rail X2 | C116: 0 | D116: 0 | E116: 0 | F116: 0 | G116: 142599.9077
B117: =IF(ISBLANK(dms_E13_Projects_05),"",dms_E13_Projects_05) -> 2130 MAINS ALTERATION CHRG - MA CL16 T2T WP3&4 | C117: 0 | D117: 0 | E117: 90752.4396 | F117: 35650.52713 | G117: 0
B118: =IF(ISBLANK(dms_E13_Projects_06),"",dms_E13_Projects_06) -> 2130 MAINS ALTERATION CHRG - MA CL15 - T2T | C118: 0 | D118: 116261.0207 | E118: 25630.4906 | F118: 35.3223022 | G118: 0
B119: =IF(ISBLANK(dms_E13_Projects_07),"",dms_E13_Projects_07) -> 2130 MAINS ALTERATION CHRG - MA CL18 Nth Tce Tram Valve | C119: 0 | D119: 0 | E119: 0 | F119: 80393.515 | G119: 2495.209741
B120: =IF(ISBLANK(dms_E13_Projects_08),"",dms_E13_Projects_08) -> 2130 MAINS ALTERATION CHRG - MA CL18 - Oaklands Rd Rail X | C120: 0 | D120: 0 | E120: 0 | F120: 12663.64493 | G120: 31613.74214
B121: =IF(ISBLANK(dms_E13_Projects_09),"",dms_E13_Projects_09) -> 2130 MAINS ALTERATION - CHARGEABLE - CAPEX <$500K | C121: 56778.82205 | D121: 142478.2548 | E121: 105896.8862 | F121: 77800.69393 | G121: 89398.50598
B122: =IF(ISBLANK(dms_E13_Projects_10),"",dms_E13_Projects_10) -> 2131 MAINS ALTERATION - NON CHARGEABLE - CAPEX <$500K | C122: 7246.939498 | D122: 3418.488819 | E122: 3166.756596 | F122: 2351.610469 | G122: 4067.531783
B123: =IF(ISBLANK(dms_E13_Projects_11),"",dms_E13_Projects_11) -> 2139 NETWORK - REGULATOR STAY IN BUSINESS <$500K | C123: 129994.8167 | D123: 36284.98378 | E123: 3316.239833 | F123: 9232.369601 | G123: 47104.06306
B124: =IF(ISBLANK(dms_E13_Projects_12),"",dms_E13_Projects_12) -> 2142 NETWORK - REGULATOR CAPEX <$500K | C124: 237623.5156 | D124: 87944.92863 | E124: 18736.51795 | F124: 52036.26301 | G124: 59719.21219
B125: =IF(ISBLANK(dms_E13_Projects_13),"",dms_E13_Projects_13) -> 2152 NETWORK - STOPPLE EQUIPMENT HDPE CAMERA | C125: 0 | D125: 6757.577424 | E125: 125523.2626 | F125: 153563.3603 | G125: 93896.473
B126: =IF(ISBLANK(dms_E13_Projects_14),"",dms_E13_Projects_14) -> 2152 NETWORK - STOPPLE EQUIPMENT<$500K | C126: 22892.31389 | D126: 54732.01639 | E126: 31917.97665 | F126: 12506.32076 | G126: 42384.32619
B127: =IF(ISBLANK(dms_E13_Projects_15),"",dms_E13_Projects_15) -> 2190 OTHER - NON RETIC CAPITAL | C127: 74861.8574 | D127: 44189.22958 | E127: 67760.05397 | F127: 60746.91243 | G127: 28191.09413
B128: =+B22 -> 3043 MAJOR PROJECTS - BOWDEN | C128: 0 | D128: 51932.35369 | E128: 629207.4315 | F128: 292824.1982 | G128: -1704.971696
B129: =+B23 -> 2152 NETWORK - STOPPLE EQUIPMENT - INLETS INSIDE CAVITIES | C129: 124947.9806 | D129: 0 | E129: 0 | F129: 0 | G129: 0
B130: 2990 MAJOR PROJECTS - VIRGINIA | C130: 187919.7222 | D130: 86884.37684 | E130: 617.2788861 | F130: -4.800852058 | G130: 0
B131: 2997 MAJOR PROJECTS - BERRI | C131: 140000 | D131: 0 | E131: 0 | F131: 0 | G131: 0
B132: Aggregate of other projects with total expenditure of less than $500,000 | C132: 0 | D132: 0 | E132: 0 | F132: 0 | G132: 0
B133: Total | C133: =SUM(C113:C132) -> 1144342.53 | D133: =SUM(D113:D132) -> 727345.9023 | E133: =SUM(E113:E132) -> 1546398.834 | F133: =SUM(F113:F132) -> 1014228.468 | G133: =SUM(G113:G132) -> 647386.6735
B135: E. RELATED PARTY MARGIN EXPENDITURE
B136: =IF(ISBLANK(dms_E13_Projects_01),"",dms_E13_Projects_01) -> 2106 C P - CORROSION PROTECTION - CAPEX <$500K | C136: 0 | D136: 0 | E136: 0 | F136: 0 | G136: 0
B137: =IF(ISBLANK(dms_E13_Projects_02),"",dms_E13_Projects_02) -> 2130 MAINS ALTERATION CHRG - MA CL16 - Darlington S2 Mains | C137: 0 | D137: 0 | E137: 0 | F137: 0 | G137: 0
B138: =IF(ISBLANK(dms_E13_Projects_03),"",dms_E13_Projects_03) -> 2130 MAINS ALTERATION CHRG - MA CL17 Darlington Stg3 | C138: 0 | D138: 0 | E138: 0 | F138: 0 | G138: 0
B139: =IF(ISBLANK(dms_E13_Projects_04),"",dms_E13_Projects_04) -> 2130 MAINS ALTERATION CHRG - MA CL18 - Oaklands Rd Rail X2 | C139: 0 | D139: 0 | E139: 0 | F139: 0 | G139: 0
B140: =IF(ISBLANK(dms_E13_Projects_05),"",dms_E13_Projects_05) -> 2130 MAINS ALTERATION CHRG - MA CL16 T2T WP3&4 | C140: 0 | D140: 0 | E140: 0 | F140: 0 | G140: 0
B141: =IF(ISBLANK(dms_E13_Projects_06),"",dms_E13_Projects_06) -> 2130 MAINS ALTERATION CHRG - MA CL15 - T2T | C141: 0 | D141: 0 | E141: 0 | F141: 0 | G141: 0
B142: =IF(ISBLANK(dms_E13_Projects_07),"",dms_E13_Projects_07) -> 2130 MAINS ALTERATION CHRG - MA CL18 Nth Tce Tram Valve | C142: 0 | D142: 0 | E142: 0 | F142: 0 | G142: 0
B143: =IF(ISBLANK(dms_E13_Projects_08),"",dms_E13_Projects_08) -> 2130 MAINS ALTERATION CHRG - MA CL18 - Oaklands Rd Rail X | C143: 0 | D143: 0 | E143: 0 | F143: 0 | G143: 0
B144: =IF(ISBLANK(dms_E13_Projects_09),"",dms_E13_Projects_09) -> 2130 MAINS ALTERATION - CHARGEABLE - CAPEX <$500K | C144: 0 | D144: 0 | E144: 0 | F144: 0 | G144: 0
B145: =IF(ISBLANK(dms_E13_Projects_10),"",dms_E13_Projects_10) -> 2131 MAINS ALTERATION - NON CHARGEABLE - CAPEX <$500K | C145: 0 | D145: 0 | E145: 0 | F145: 0 | G145: 0
B146: =IF(ISBLANK(dms_E13_Projects_11),"",dms_E13_Projects_11) -> 2139 NETWORK - REGULATOR STAY IN BUSINESS <$500K | C146: 0 | D146: 0 | E146: 0 | F146: 0 | G146: 0
B147: =IF(ISBLANK(dms_E13_Projects_12),"",dms_E13_Projects_12) -> 2142 NETWORK - REGULATOR CAPEX <$500K | C147: 0 | D147: 0 | E147: 0 | F147: 0 | G147: 0
B148: =IF(ISBLANK(dms_E13_Projects_13),"",dms_E13_Projects_13) -> 2152 NETWORK - STOPPLE EQUIPMENT HDPE CAMERA | C148: 0 | D148: 0 | E148: 0 | F148: 0 | G148: 0
B149: =IF(ISBLANK(dms_E13_Projects_14),"",dms_E13_Projects_14) -> 2152 NETWORK - STOPPLE EQUIPMENT<$500K | C149: 0 | D149: 0 | E149: 0 | F149: 0 | G149: 0
B150: =IF(ISBLANK(dms_E13_Projects_15),"",dms_E13_Projects_15) -> 2190 OTHER - NON RETIC CAPITAL | C150: 0 | D150: 0 | E150: 0 | F150: 0 | G150: 0
B151: =+B22 -> 3043 MAJOR PROJECTS - BOWDEN | C151: 0 | D151: 0 | E151: 0 | F151: 0 | G151: 0
B152: =+B23 -> 2152 NETWORK - STOPPLE EQUIPMENT - INLETS INSIDE CAVITIES | C152: 0 | D152: 0 | E152: 0 | F152: 0 | G152: 0
B153: 2990 MAJOR PROJECTS - VIRGINIA | C153: 0 | D153: 0 | E153: 0 | F153: 0 | G153: 0
B154: 2997 MAJOR PROJECTS - BERRI | C154: 0 | D154: 0 | E154: 0 | F154: 0 | G154: 0
C155: 0 | D155: 0 | E155: 0 | F155: 0 | G155: 0
B156: Aggregate of other projects with total expenditure of less than $500,000 | C156: 0 | D156: 0 | E156: 0 | F156: 0 | G156: 0
B157: Total | C157: =SUM(C136:C156) -> 0 | D157: =SUM(D136:D156) -> 0 | E157: =SUM(E136:E156) -> 0 | F157: =SUM(F136:F156) -> 0 | G157: =SUM(G136:G156) -> 0
B159: F. CAPITAL CONTRIBUTIONS included in the above
B160: =IF(ISBLANK(dms_E13_Projects_01),"",dms_E13_Projects_01) -> 2106 C P - CORROSION PROTECTION - CAPEX <$500K
B161: =IF(ISBLANK(dms_E13_Projects_02),"",dms_E13_Projects_02) -> 2130 MAINS ALTERATION CHRG - MA CL16 - Darlington S2 Mains
B162: =IF(ISBLANK(dms_E13_Projects_03),"",dms_E13_Projects_03) -> 2130 MAINS ALTERATION CHRG - MA CL17 Darlington Stg3
B163: =IF(ISBLANK(dms_E13_Projects_04),"",dms_E13_Projects_04) -> 2130 MAINS ALTERATION CHRG - MA CL18 - Oaklands Rd Rail X2
B164: =IF(ISBLANK(dms_E13_Projects_05),"",dms_E13_Projects_05) -> 2130 MAINS ALTERATION CHRG - MA CL16 T2T WP3&4
B165: =IF(ISBLANK(dms_E13_Projects_06),"",dms_E13_Projects_06) -> 2130 MAINS ALTERATION CHRG - MA CL15 - T2T
B166: =IF(ISBLANK(dms_E13_Projects_07),"",dms_E13_Projects_07) -> 2130 MAINS ALTERATION CHRG - MA CL18 Nth Tce Tram Valve
B167: =IF(ISBLANK(dms_E13_Projects_08),"",dms_E13_Projects_08) -> 2130 MAINS ALTERATION CHRG - MA CL18 - Oaklands Rd Rail X
B168: =IF(ISBLANK(dms_E13_Projects_09),"",dms_E13_Projects_09) -> 2130 MAINS ALTERATION - CHARGEABLE - CAPEX <$500K
B169: =IF(ISBLANK(dms_E13_Projects_10),"",dms_E13_Projects_10) -> 2131 MAINS ALTERATION - NON CHARGEABLE - CAPEX <$500K
B170: =IF(ISBLANK(dms_E13_Projects_11),"",dms_E13_Projects_11) -> 2139 NETWORK - REGULATOR STAY IN BUSINESS <$500K
B171: =IF(ISBLANK(dms_E13_Projects_12),"",dms_E13_Projects_12) -> 2142 NETWORK - REGULATOR CAPEX <$500K
B172: =IF(ISBLANK(dms_E13_Projects_13),"",dms_E13_Projects_13) -> 2152 NETWORK - STOPPLE EQUIPMENT HDPE CAMERA
B173: =IF(ISBLANK(dms_E13_Projects_14),"",dms_E13_Projects_14) -> 2152 NETWORK - STOPPLE EQUIPMENT<$500K
B174: =IF(ISBLANK(dms_E13_Projects_15),"",dms_E13_Projects_15) -> 2190 OTHER - NON RETIC CAPITAL
B175: =+B22 -> 3043 MAJOR PROJECTS - BOWDEN
B176: =+B23 -> 2152 NETWORK - STOPPLE EQUIPMENT - INLETS INSIDE CAVITIES
B177: 2990 MAJOR PROJECTS - VIRGINIA
B178: =+B25 -> 2997 MAJOR PROJECTS - BERRI
B179: Aggregate of other projects with total expenditure of less than $500,000
B180: Total | C180: =SUM(C160:C179) -> 0 | D180: =SUM(D160:D179) -> 0 | E180: =SUM(E160:E179) -> 0 | F180: =SUM(F160:F179) -> 0 | G180: =SUM(G160:G179) -> 0

Sheet N2. Network characteristics
B1: =INDEX(dms_Worksheet_List,MATCH(dms_Model,dms_Model_List)) -> HISTORICAL ANNUAL REPORTING
B2: =INDEX(dms_TradingNameFull_List,MATCH(dms_TradingName,dms_TradingName_List)) -> Australian Gas Networks Limited (reporting data for SA)
B3: =dms_Header_Span -> 2014-15 to 2018-19
B4: N2. NETWORK CHARACTERISTICS
B7: N2.5 - NETWORK LENGTH - BY POST CODE
D8: VOLUMES
D9: Metres, 0's
B10: Post Code | C10: Asset Type (drop down) | D10: =dms_y1 -> 2014-15 | E10: =dms_y2 -> 2015-16 | F10: =dms_y3 -> 2016-17 | G10: =dms_y4 -> 2017-18 | H10: =dms_y5 -> 2018-19
B11: 5000 | C11: Cast Iron | D11: 45263 | E11: 35952 | F11: 26566 | G11: 24267 | H11: 13047
B12: 5000 | C12: PVC | D12: 0 | E12: 0 | F12: 0 | G12: 0 | H12: 0
B13: 5000 | C13: Polyamide | D13: 0 | E13: 0 | F13: 0 | G13: 0 | H13: 0
B14: 5000 | C14: High density polyethylene (80) | D14: 0 | E14: 0 | F14: 0 | G14: 0 | H14: 0
B15: 5000 | C15: High density polyethylene (100) | D15: 3410 | E15: 18476 | F15: 35258 | G15: 38836 | H15: 49400
B16: 5000 | C16: High density polyethylene (250) | D16: 3213 | E16: 1621 | F16: 480 | G16: 379 | H16: 168
B17: 5000 | C17: High density polyethylene (575) | D17: 4754 | E17: 3119 | F17: 2724 | G17: 2351 | H17: 2135
B18: 5000 | C18: Medium density polyethylene | D18: 25718 | E18: 24474 | F18: 24056 | G18: 24040 | H18: 23685
B19: 5000 | C19: Unprotected steel | D19: 3504 | E19: 2850 | F19: 2285 | G19: 1907 | H19: 1134
B20: 5000 | C20: Protected steel | D20: 31998 | E20: 30507 | F20: 28399 | G20: 27753 | H20: 27433
B21: 5000 | C21: Other | D21: 128 | E21: 128 | F21: 137 | G21: 141 | H21: 160
B22: 5006 | C22: Cast Iron | D22: 23143 | E22: 22899 | F22: 22899 | G22: 22899 | H22: 22879
B23: 5006 | C23: PVC | D23: 0 | E23: 0 | F23: 0 | G23: 0 | H23: 0
B24: 5006 | C24: Polyamide | D24: 0 | E24: 0 | F24: 0 | G24: 0 | H24: 0
B25: 5006 | C25: High density polyethylene (80) | D25: 0 | E25: 0 | F25: 0 | G25: 0 | H25: 0
B26: 5006 | C26: High density polyethylene (100) | D26: 0 | E26: 98 | F26: 184 | G26: 200 | H26: 269
B27: 5006 | C27: High density polyethylene (250) | D27: 7891 | E27: 8025 | F27: 8025 | G27: 8025 | H27: 8025
B28: 5006 | C28: High density polyethylene (575) | D28: 2711 | E28: 2719 | F28: 2735 | G28: 2748 | H28: 2748
B29: 5006 | C29: Medium density polyethylene | D29: 5181 | E29: 5586 | F29: 5737 | G29: 5737 | H29: 5714
B30: 5006 | C30: Unprotected steel | D30: 1732 | E30: 1769 | F30: 1705 | G30: 1692 | H30: 1692
B31: 5006 | C31: Protected steel | D31: 9785 | E31: 9964 | F31: 10031 | G31: 10005 | H31: 10021
B32: 5006 | C32: Other | D32: 0 | E32: 0 | F32: 0 | G32: 0 | H32: 0
B33: 5007 | C33: Cast Iron | D33: 2265 | E33: 2265 | F33: 2043 | G33: 655 | H33: 445
B34: 5007 | C34: PVC | D34: 0 | E34: 0 | F34: 0 | G34: 0 | H34: 0
B35: 5007 | C35: Polyamide | D35: 0 | E35: 0 | F35: 0 | G35: 0 | H35: 0
B36: 5007 | C36: High density polyethylene (80) | D36: 0 | E36: 0 | F36: 0 | G36: 0 | H36: 0
B37: 5007 | C37: High density polyethylene (100) | D37: 0 | E37: 1003 | F37: 1612 | G37: 10372 | H37: 10981
B38: 5007 | C38: High density polyethylene (250) | D38: 1688 | E38: 1615 | F38: 1288 | G38: 187 | H38: 187
B39: 5007 | C39: High density polyethylene (575) | D39: 17347 | E39: 17058 | F39: 16914 | G39: 12022 | H39: 12132
B40: 5007 | C40: Medium density polyethylene | D40: 26779 | E40: 25750 | F40: 25704 | G40: 25482 | H40: 25477
B41: 5007 | C41: Unprotected steel | D41: 762 | E41: 762 | F41: 762 | G41: 276 | H41: 0
B42: 5007 | C42: Protected steel | D42: 7338 | E42: 7201 | F42: 7234 | G42: 7245 | H42: 7252
B43: 5007 | C43: Other | D43: 0 | E43: 0 | F43: 0 | G43: 0 | H43: 0
B44: 5008 | C44: Cast Iron | D44: 5884 | E44: 5667 | F44: 5667 | G44: 5244 | H44: 5139
B45: 5008 | C45: PVC | D45: 0 | E45: 0 | F45: 0 | G45: 0 | H45: 0
B46: 5008 | C46: Polyamide | D46: 0 | E46: 0 | F46: 0 | G46: 0 | H46: 0
B47: 5008 | C47: High density polyethylene (80) | D47: 0 | E47: 0 | F47: 0 | G47: 0 | H47: 0
B48: 5008 | C48: High density polyethylene (100) | D48: 0 | E48: 999 | F48: 2616 | G48: 6053 | H48: 7328
B49: 5008 | C49: High density polyethylene (250) | D49: 13800 | E49: 13956 | F49: 13878 | G49: 13558 | H49: 12730
B50: 5008 | C50: High density polyethylene (575) | D50: 26726 | E50: 26253 | F50: 26200 | G50: 26119 | H50: 26036
B51: 5008 | C51: Medium density polyethylene | D51: 24403 | E51: 23797 | F51: 23410 | G51: 23055 | H51: 23044
B52: 5008 | C52: Unprotected steel | D52: 2530 | E52: 2530 | F52: 2530 | G52: 1213 | H52: 1193
B53: 5008 | C53: Protected steel | D53: 7832 | E53: 7840 | F53: 7803 | G53: 7762 | H53: 8060
B54: 5008 | C54: Other | D54: 0 | E54: 0 | F54: 0 | G54: 0 | H54: 0
B55: 5009 | C55: Cast Iron | D55: 2126 | E55: 2126 | F55: 2044 | G55: 2044 | H55: 1321
B56: 5009 | C56: PVC | D56: 0 | E56: 0 | F56: 0 | G56: 0 | H56: 0
B57: 5009 | C57: Polyamide | D57: 0 | E57: 0 | F57: 0 | G57: 0 | H57: 0
B58: 5009 | C58: High density polyethylene (80) | D58: 0 | E58: 0 | F58: 0 | G58: 0 | H58: 0
B59: 5009 | C59: High density polyethylene (100) | D59: 0 | E59: 0 | F59: 455 | G59: 971 | H59: 4288
B60: 5009 | C60: High density polyethylene (250) | D60: 4377 | E60: 4377 | F60: 4341 | G60: 4341 | H60: 1649
B61: 5009 | C61: High density polyethylene (575) | D61: 12752 | E61: 12773 | F61: 12772 | G61: 12770 | H61: 12778
B62: 5009 | C62: Medium density polyethylene | D62: 15524 | E62: 15538 | F62: 15532 | G62: 15532 | H62: 15523
B63: 5009 | C63: Unprotected steel | D63: 346 | E63: 346 | F63: 320 | G63: 319 | H63: 181
B64: 5009 | C64: Protected steel | D64: 6086 | E64: 6086 | F64: 6086 | G64: 6086 | H64: 5777
B65: 5009 | C65: Other | D65: 16 | E65: 16 | F65: 16 | G65: 16 | H65: 0
B66: 5010 | C66: Cast Iron | D66: 5590 | E66: 5578 | F66: 1508 | G66: 810 | H66: 810
B67: 5010 | C67: PVC | D67: 0 | E67: 0 | F67: 0 | G67: 0 | H67: 0
B68: 5010 | C68: Polyamide | D68: 0 | E68: 0 | F68: 0 | G68: 0 | H68: 0
B69: 5010 | C69: High density polyethylene (80) | D69: 0 | E69: 0 | F69: 0 | G69: 0 | H69: 0
B70: 5010 | C70: High density polyethylene (100) | D70: 0 | E70: 135 | F70: 5357 | G70: 6998 | H70: 6998
B71: 5010 | C71: High density polyethylene (250) | D71: 4879 | E71: 4879 | F71: 4512 | G71: 4512 | H71: 4527
B72: 5010 | C72: High density polyethylene (575) | D72: 3730 | E72: 3733 | F72: 3577 | G72: 3577 | H72: 3575
B73: 5010 | C73: Medium density polyethylene | D73: 14016 | E73: 14320 | F73: 14111 | G73: 14090 | H73: 13930
B74: 5010 | C74: Unprotected steel | D74: 100 | E74: 100 | F74: 0 | G74: 0 | H74: 0
B75: 5010 | C75: Protected steel | D75: 11933 | E75: 11937 | F75: 11801 | G75: 11795 | H75: 11795
B76: 5010 | C76: Other | D76: 0 | E76: 0 | F76: 0 | G76: 0 | H76: 0
B77: 5011 | C77: Cast Iron | D77: 4433 | E77: 2816 | F77: 2704 | G77: 2704 | H77: 2651
B78: 5011 | C78: PVC | D78: 0 | E78: 0 | F78: 0 | G78: 0 | H78: 0
B79: 5011 | C79: Polyamide | D79: 0 | E79: 0 | F79: 0 | G79: 0 | H79: 0
B80: 5011 | C80: High density polyethylene (80) | D80: 0 | E80: 0 | F80: 0 | G80: 0 | H80: 0
B81: 5011 | C81: High density polyethylene (100) | D81: 426 | E81: 2400 | F81: 5498 | G81: 6227 | H81: 8315
B82: 5011 | C82: High density polyethylene (250) | D82: 6897 | E82: 6465 | F82: 6522 | G82: 6465 | H82: 5227
B83: 5011 | C83: High density polyethylene (575) | D83: 10848 | E83: 10921 | F83: 10918 | G83: 10918 | H83: 10851
B84: 5011 | C84: Medium density polyethylene | D84: 45213 | E84: 48048 | F84: 48119 | G84: 48078 | H84: 48145
B85: 5011 | C85: Unprotected steel | D85: 910 | E85: 612 | F85: 230 | G85: 230 | H85: 73
B86: 5011 | C86: Protected steel | D86: 5294 | E86: 5329 | F86: 5329 | G86: 5329 | H86: 5311
B87: 5011 | C87: Other | D87: 102 | E87: 102 | F87: 102 | G87: 102 | H87: 102
B88: 5012 | C88: Cast Iron | D88: 15178 | E88: 8920 | F88: 2250 | G88: 1 | H88: 0
B89: 5012 | C89: PVC | D89: 0 | E89: 0 | F89: 0 | G89: 0 | H89: 0
B90: 5012 | C90: Polyamide | D90: 0 | E90: 0 | F90: 0 | G90: 0 | H90: 0
B91: 5012 | C91: High density polyethylene (80) | D91: 0 | E91: 0 | F91: 0 | G91: 0 | H91: 0
B92: 5012 | C92: High density polyethylene (100) | D92: 0 | E92: 11534 | F92: 24644 | G92: 29722 | H92: 29817
B93: 5012 | C93: High density polyethylene (250) | D93: 5893 | E93: 4172 | F93: 1707 | G93: 104 | H93: 104
B94: 5012 | C94: High density polyethylene (575) | D94: 13753 | E94: 12826 | F94: 11729 | G94: 11373 | H94: 11373
B95: 5012 | C95: Medium density polyethylene | D95: 14237 | E95: 13094 | F95: 12694 | G95: 12541 | H95: 12541
B96: 5012 | C96: Unprotected steel | D96: 3155 | E96: 2003 | F96: 181 | G96: 83 | H96: 16
B97: 5012 | C97: Protected steel | D97: 5339 | E97: 5263 | F97: 5244 | G97: 5435 | H97: 5435
B98: 5012 | C98: Other | D98: 5 | E98: 5 | F98: 5 | G98: 5 | H98: 5
B99: 5013 | C99: Cast Iron | D99: 13114 | E99: 3490 | F99: 1431 | G99: 1431 | H99: 1431
B100: 5013 | C100: PVC | D100: 0 | E100: 0 | F100: 0 | G100: 0 | H100: 0
B101: 5013 | C101: Polyamide | D101: 0 | E101: 0 | F101: 0 | G101: 0 | H101: 0
B102: 5013 | C102: High density polyethylene (80) | D102: 0 | E102: 0 | F102: 0 | G102: 0 | H102: 0
B103: 5013 | C103: High density polyethylene (100) | D103: 5884 | E103: 22158 | F103: 22590 | G103: 22709 | H103: 23006
B104: 5013 | C104: High density polyethylene (250) | D104: 5352 | E104: 49 | F104: 0 | G104: 0 | H104: 0
B105: 5013 | C105: High density polyethylene (575) | D105: 7554 | E105: 5228 | F105: 5228 | G105: 5228 | H105: 5229
B106: 5013 | C106: Medium density polyethylene | D106: 32884 | E106: 34987 | F106: 35067 | G106: 35052 | H106: 35041
B107: 5013 | C107: Unprotected steel | D107: 1335 | E107: 112 | F107: 0 | G107: 0 | H107: 0
B108: 5013 | C108: Protected steel | D108: 20418 | E108: 20380 | F108: 19903 | G108: 19903 | H108: 19903
B109: 5013 | C109: Other | D109: 0 | E109: 0 | F109: 0 | G109: 0 | H109: 0
B110: 5014 | C110: Cast Iron | D110: 12450 | E110: 10485 | F110: 10413 | G110: 10311 | H110: 10311
B111: 5014 | C111: PVC | D111: 0 | E111: 0 | F111: 0 | G111: 0 | H111: 0
B112: 5014 | C112: Polyamide | D112: 0 | E112: 0 | F112: 0 | G112: 0 | H112: 0
B113: 5014 | C113: High density polyethylene (80) | D113: 0 | E113: 0 | F113: 0 | G113: 0 | H113: 0
B114: 5014 | C114: High density polyethylene (100) | D114: 301 | E114: 1795 | F114: 2587 | G114: 3293 | H114: 3453
B115: 5014 | C115: High density polyethylene (250) | D115: 8993 | E115: 8048 | F115: 7873 | G115: 7853 | H115: 7853
B116: 5014 | C116: High density polyethylene (575) | D116: 35599 | E116: 35472 | F116: 35562 | G116: 35569 | H116: 35566
B117: 5014 | C117: Medium density polyethylene | D117: 14834 | E117: 16252 | F117: 16239 | G117: 16247 | H117: 16223
B118: 5014 | C118: Unprotected steel | D118: 796 | E118: 620 | F118: 620 | G118: 620 | H118: 620
B119: 5014 | C119: Protected steel | D119: 9233 | E119: 9258 | F119: 9248 | G119: 9226 | H119: 9226
B120: 5014 | C120: Other | D120: 0 | E120: 0 | F120: 0 | G120: 0 | H120: 0
B121: 5015 | C121: Cast Iron | D121: 11501 | E121: 11501 | F121: 11291 | G121: 11248 | H121: 11248
B122: 5015 | C122: PVC | D122: 0 | E122: 0 | F122: 0 | G122: 0 | H122: 0
B123: 5015 | C123: Polyamide | D123: 0 | E123: 0 | F123: 0 | G123: 0 | H123: 0
B124: 5015 | C124: High density polyethylene (80) | D124: 0 | E124: 0 | F124: 0 | G124: 0 | H124: 0
B125: 5015 | C125: High density polyethylene (100) | D125: 0 | E125: 56 | F125: 215 | G125: 6705 | H125: 7977
B126: 5015 | C126: High density polyethylene (250) | D126: 14815 | E126: 14815 | F126: 14732 | G126: 9731 | H126: 9289
B127: 5015 | C127: High density polyethylene (575) | D127: 6827 | E127: 6830 | F127: 6830 | G127: 6610 | H127: 6580
B128: 5015 | C128: Medium density polyethylene | D128: 8085 | E128: 8171 | F128: 8179 | G128: 8125 | H128: 8099
B129: 5015 | C129: Unprotected steel | D129: 2357 | E129: 2357 | F129: 2357 | G129: 2357 | H129: 2357
B130: 5015 | C130: Protected steel | D130: 5290 | E130: 5328 | F130: 5316 | G130: 5316 | H130: 5316
B131: 5015 | C131: Other | D131: 0 | E131: 0 | F131: 0 | G131: 0 | H131: 0
B132: 5016 | C132: Cast Iron | D132: 29834 | E132: 29834 | F132: 15110 | G132: 14649 | H132: 14649
B133: 5016 | C133: PVC | D133: 0 | E133: 0 | F133: 0 | G133: 0 | H133: 0
B134: 5016 | C134: Polyamide | D134: 0 | E134: 0 | F134: 0 | G134: 0 | H134: 0
B135: 5016 | C135: High density polyethylene (80) | D135: 0 | E135: 0 | F135: 0 | G135: 0 | H135: 0
B136: 5016 | C136: High density polyethylene (100) | D136: 0 | E136: 2847 | F136: 26372 | G136: 27155 | H136: 28202
B137: 5016 | C137: High density polyethylene (250) | D137: 4558 | E137: 3952 | F137: 1758 | G137: 1470 | H137: 1470
B138: 5016 | C138: High density polyethylene (575) | D138: 4885 | E138: 2719 | F138: 1106 | G138: 1100 | H138: 1067
B139: 5016 | C139: Medium density polyethylene | D139: 5661 | E139: 5953 | F139: 4758 | G139: 4758 | H139: 4758
B140: 5016 | C140: Unprotected steel | D140: 6340 | E140: 6340 | F140: 3926 | G140: 3700 | H140: 3523
B141: 5016 | C141: Protected steel | D141: 2779 | E141: 2788 | F141: 2789 | G141: 2772 | H141: 2772
B142: 5016 | C142: Other | D142: 0 | E142: 0 | F142: 0 | G142: 0 | H142: 0
B143: 5017 | C143: Cast Iron | D143: 21564 | E143: 21564 | F143: 17149 | G143: 16582 | H143: 16581
B144: 5017 | C144: PVC | D144: 0 | E144: 0 | F144: 0 | G144: 0 | H144: 0
B145: 5017 | C145: Polyamide | D145: 0 | E145: 0 | F145: 0 | G145: 0 | H145: 0
B146: 5017 | C146: High density polyethylene (80) | D146: 0 | E146: 0 | F146: 0 | G146: 0 | H146: 0
B147: 5017 | C147: High density polyethylene (100) | D147: 0 | E147: 100 | F147: 8275 | G147: 9440 | H147: 9580
B148: 5017 | C148: High density polyethylene (250) | D148: 2819 | E148: 2819 | F148: 1231 | G148: 1263 | H148: 1263
B149: 5017 | C149: High density polyethylene (575) | D149: 1591 | E149: 1588 | F149: 1176 | G149: 1162 | H149: 1162
B150: 5017 | C150: Medium density polyethylene | D150: 2678 | E150: 2690 | F150: 2363 | G150: 2331 | H150: 2317
B151: 5017 | C151: Unprotected steel | D151: 4422 | E151: 4422 | F151: 3637 | G151: 3637 | H151: 3637
B152: 5017 | C152: Protected steel | D152: 2295 | E152: 2295 | F152: 2306 | G152: 2284 | H152: 2284
B153: 5017 | C153: Other | D153: 0 | E153: 0 | F153: 0 | G153: 0 | H153: 0
B154: 5018 | C154: Cast Iron | D154: 639 | E154: 639 | F154: 639 | G154: 639 | H154: 639
B155: 5018 | C155: PVC | D155: 0 | E155: 0 | F155: 0 | G155: 0 | H155: 0
B156: 5018 | C156: Polyamide | D156: 0 | E156: 0 | F156: 0 | G156: 0 | H156: 0
B157: 5018 | C157: High density polyethylene (80) | D157: 0 | E157: 0 | F157: 0 | G157: 0 | H157: 0
B158: 5018 | C158: High density polyethylene (100) | D158: 0 | E158: 0 | F158: 0 | G158: 0 | H158: 8672
B159: 5018 | C159: High density polyethylene (250) | D159: 21853 | E159: 21853 | F159: 21853 | G159: 21853 | H159: 12855
B160: 5018 | C160: High density polyethylene (575) | D160: 6869 | E160: 6868 | F160: 6868 | G160: 6868 | H160: 6806
B161: 5018 | C161: Medium density polyethylene | D161: 1650 | E161: 1658 | F161: 1658 | G161: 1658 | H161: 1655
B162: 5018 | C162: Unprotected steel | D162: 120 | E162: 120 | F162: 120 | G162: 120 | H162: 120
B163: 5018 | C163: Protected steel | D163: 1704 | E163: 1704 | F163: 1704 | G163: 1704 | H163: 1704
B164: 5018 | C164: Other | D164: 0 | E164: 0 | F164: 0 | G164: 0 | H164: 0
B165: 5019 | C165: Cast Iron | D165: 21614 | E165: 21571 | F165: 21391 | G165: 21389 | H165: 21389
B166: 5019 | C166: PVC | D166: 0 | E166: 0 | F166: 0 | G166: 0 | H166: 0
B167: 5019 | C167: Polyamide | D167: 0 | E167: 0 | F167: 0 | G167: 0 | H167: 0
B168: 5019 | C168: High density polyethylene (80) | D168: 0 | E168: 0 | F168: 0 | G168: 0 | H168: 0
B169: 5019 | C169: High density polyethylene (100) | D169: 0 | E169: 8 | F169: 213 | G169: 8495 | H169: 8993
B170: 5019 | C170: High density polyethylene (250) | D170: 10578 | E170: 10542 | F170: 10541 | G170: 2933 | H170: 2227
B171: 5019 | C171: High density polyethylene (575) | D171: 3381 | E171: 3446 | F171: 3446 | G171: 3185 | H171: 3172
B172: 5019 | C172: Medium density polyethylene | D172: 11220 | E172: 11485 | F172: 11561 | G172: 11494 | H172: 11494
B173: 5019 | C173: Unprotected steel | D173: 1350 | E173: 1350 | F173: 1350 | G173: 1350 | H173: 1350
B174: 5019 | C174: Protected steel | D174: 3248 | E174: 3228 | F174: 3228 | G174: 3243 | H174: 3247
B175: 5019 | C175: Other | D175: 0 | E175: 0 | F175: 0 | G175: 0 | H175: 0
B176: 5020 | C176: Cast Iron | D176: 1325 | E176: 0 | F176: 0 | G176: 0 | H176: 0
B177: 5020 | C177: PVC | D177: 0 | E177: 0 | F177: 0 | G177: 0 | H177: 0
B178: 5020 | C178: Polyamide | D178: 0 | E178: 0 | F178: 0 | G178: 0 | H178: 0
B179: 5020 | C179: High density polyethylene (80) | D179: 0 | E179: 0 | F179: 0 | G179: 0 | H179: 0
B180: 5020 | C180: High density polyethylene (100) | D180: 0 | E180: 0 | F180: 74 | G180: 14110 | H180: 16531
B181: 5020 | C181: High density polyethylene (250) | D181: 16769 | E181: 16734 | F181: 16719 | G181: 5822 | H181: 930
B182: 5020 | C182: High density polyethylene (575) | D182: 1375 | E182: 1375 | F182: 1375 | G182: 778 | H182: 788
B183: 5020 | C183: Medium density polyethylene | D183: 1047 | E183: 1048 | F183: 1048 | G183: 1170 | H183: 1171
B184: 5020 | C184: Unprotected steel | D184: 0 | E184: 0 | F184: 0 | G184: 0 | H184: 0
B185: 5020 | C185: Protected steel | D185: 257 | E185: 257 | F185: 257 | G185: 65 | H185: 47
B186: 5020 | C186: Other | D186: 0 | E186: 0 | F186: 0 | G186: 0 | H186: 0
B187: 5021 | C187: Cast Iron | D187: 0 | E187: 0 | F187: 0 | G187: 0 | H187: 0
B188: 5021 | C188: PVC | D188: 0 | E188: 0 | F188: 0 | G188: 0 | H188: 0
B189: 5021 | C189: Polyamide | D189: 0 | E189: 0 | F189: 0 | G189: 0 | H189: 0
B190: 5021 | C190: High density polyethylene (80) | D190: 0 | E190: 0 | F190: 0 | G190: 0 | H190: 0
B191: 5021 | C191: High density polyethylene (100) | D191: 0 | E191: 0 | F191: 1282 | G191: 8102 | H191: 12712
B192: 5021 | C192: High density polyethylene (250) | D192: 25416 | E192: 25416 | F192: 25415 | G192: 20456 | H192: 15530
B193: 5021 | C193: High density polyethylene (575) | D193: 10366 | E193: 10366 | F193: 10366 | G193: 10301 | H193: 10301
B194: 5021 | C194: Medium density polyethylene | D194: 322 | E194: 322 | F194: 340 | G194: 467 | H194: 355
B195: 5021 | C195: Unprotected steel | D195: 21 | E195: 21 | F195: 21 | G195: 21 | H195: 21
B196: 5021 | C196: Protected steel | D196: 1849 | E196: 1849 | F196: 1849 | G196: 1849 | H196: 1804
B197: 5021 | C197: Other | D197: 0 | E197: 0 | F197: 0 | G197: 0 | H197: 0
B198: 5022 | C198: Cast Iron | D198: 9038 | E198: 8566 | F198: 8566 | G198: 8488 | H198: 8488
B199: 5022 | C199: PVC | D199: 0 | E199: 0 | F199: 0 | G199: 0 | H199: 0
B200: 5022 | C200: Polyamide | D200: 0 | E200: 0 | F200: 0 | G200: 0 | H200: 0
B201: 5022 | C201: High density polyethylene (80) | D201: 0 | E201: 0 | F201: 0 | G201: 0 | H201: 0
B202: 5022 | C202: High density polyethylene (100) | D202: 0 | E202: 76 | F202: 366 | G202: 5307 | H202: 13676
... 1227 more rows

Sheet Additional disclosures
